{"text_format":"1","workbook":"xlsx","n_sheets":14,"sheets":["Comment remplir","Sommaire","BD","BGAD1","BGAD2","BGAD3","BGAD4","BGAD5","BGAD6","BGAD7","BGAD8","BGAD9","BGAD10","Liste"],"not_rendered":{"charts":0,"images":5,"macros":1,"external_links":0,"defined_names":23,"comments":0,"pivot_tables":1},"unopened":[],"bounds":{"document_bytes":16777216,"sheet_cells":100000,"rows_first":2000,"rows_last":500,"rows_between":2000,"halvings":0,"cell_chars":16384,"cell_head_chars":4096},"cells_cut":0,"cells_raw":0,"read":"whole","date_system":"1900"}

{"sheet":"Comment remplir","index":0,"n_rows":94,"n_cols":18,"rows_kept":94,"cut":false,"hidden":false,"merged":[[2,1,2,6],[8,1,8,10],[9,1,9,10],[10,1,10,10],[11,1,11,10],[3,1,3,10],[4,1,4,10],[5,1,5,10],[7,1,7,10]]}
[]
["Déclaration de vidange des secteurs récoltés par BGAd ou PRAU",null,null,null,null,null,null,null,"( un seul onglet par BGA)"]
[]
["1-","Choisir dans le menu déroulant"]
["2-","Choisir dans le menu déroulant"]
["3-","Inscrire manuellement"]
["4-","Nom du chantier enregistré à la PRANA inscrire manuellement ( obligatoire pour tous les chantiers ) "]
["5-","Choisir dans le menu déroulant ou manuelle*"]
["6-","Remplissage automatique à partir du no. Client Mesubois * manuelle si no client entré manuelle"]
["7-","Choisir dans le menu déroulant"]
["8-","Choisir dans le menu déroulant"]
["9-","Inscrire les volumes de tous les chantiers (si vidangés inscrire 0 m3)"]
["10-","Inscrire manuellement selon l'entente avec le MRNF coordonées gps ou le numéro séquentiel ( valider le format avec l'UG) "]
[]
[]
[]
[]
[]
[]
[]
[]
[]
[]
[]
[]
[]
[]
[]
[]
[]
[]
[]
[]
[]
["Production du sommaire des déclarations de vidange des bois déclarés par les BGAd et les PRAU"]
["Le représentant des BGA ne peut effectuer aucune modification aux volumes déclarés par les BGAd et les PRAU."]
[]
["Le représentant des BGA doit : "]
["1 -","Inscrire l'unité d'aménagement pour laquelle le sommaire est produit"]
["2 -","S'assurer d'intégrer les déclarations de vidange des bois d'une seule unité d'aménagement (UA)"]
["3 -","Copier les lignes de la feuille excel reçue présentant la déclaration de vidange des bois reçue de chacun des BGAd et PRAU (Une feuille par BGAD/PRAU, maximum 10 déclarations). "]
["4- ","Ajouter des lignes au besoin (voir note)"]
["5 -","Produire le sommaire des déclarations de vidange des bois en cliquant sur le bouton dans la feuille «SOMMAIRE»"]
["6 -","Appliquer la procédure de communication des données au ministre"]
[]
[]
[]
[]
[]
[]
[]
[]
[]
[]
[]
[]
[null,null,null,null,null,null,null,null,null,null,null,null,null,null,null,null,null,"    "]
[]
[]
[]
[]
[]
[]
[]
[]
[]
[]
[]
[]
[]
[]
[]
[]
[null,"Gestion des lignes ajoutées"]
[]
[null,"Le bouton \"Production du Sommaire de l'UA\" compile les déclarations, pour les lignes 1 à 51 de chaque fichier."]
[]
[null,"Si des lignes ont été ajoutées, il faudra modifier en conséquence la macro selon cette procédure."]
[]
["1-","Ouvrir le module de macros (AFFICHAGE/Macros/Afficher les macros)"]
[]
["2-","Sélectionner la macro \"sommaire\"' et cliquer sur Modifier"]
[]
["3-","Pour la feuille visée modifier les lignes en conséquence"]
[]
[null,"Ex: ","Sheets(\"BGAD3\").Select"]
[null,null,"    Rows(\"9:151\").Select",null,null,"(dans le cas où 100 lignes ont été ajoutées)"]
[null,null,"    Selection.Copy"]
[null,null,"    Sheets(\"BD\").Select"]
[null,null,"    Rows(\"300:300\").Select"]
[null,null,"    ActiveSheet.Paste"]
[]
[]
["4-","Enregistrer."]

{"sheet":"Sommaire","index":1,"n_rows":13,"n_cols":16,"rows_kept":13,"cut":false,"hidden":false,"merged":[[0,0,0,6],[4,0,4,6],[8,4,8,5]]}
["Sommaire des déclarations de vidange des bois - Tous clients"]
[]
["Année de récolte :","2024-2025"]
["Unité d'aménagement :"]
["Je déclare avoir obtenu les déclarations de vidange signées par un ingénieur forestier pour tous les secteurs/chantiers récoltés de l’unité d’aménagement forestier, incluant les secteurs/chantiers avec des volumes résiduels et ceux completement vidangés."]
[null,null,null,null,null,null,null,null,null,null,null,null,null,null,null," MLNU SP seulement pour Client 999"]
["Nom du représentant des BGAs :"]
[]
["Signature :",null,null,"Date :"]
[]
["Somme de Volume estimé (m3)"]
["Numéro de secteur d'intervention \nou \nNom du chantier","No client mesubois","Nom du BGA/PRAU détenteur du droit","Code d'essence","Qualité (pour les droits SQ/QI)","Total"]
["Total général"]

{"sheet":"BD","index":2,"n_rows":1406,"n_cols":7,"rows_kept":1406,"cut":false,"hidden":true,"merged":[[1330,0,1330,6],[895,0,895,6],[1045,0,1045,6],[1195,0,1195,6]]}
["Numéro de secteur d'intervention \nou \nNom du chantier","No client mesubois","Nom du BGA/PRAU détenteur du droit","Code d'essence","Qualité (pour les droits SQ/QI)","Volume estimé (m3)","coordonéesGPS(WGS84)    no séquentiel shp"]
[null,null,{"$f":"IFERROR(VLOOKUP(B2,Liste!M:N,2,FALSE),\"\")","v":""}]
[null,null,{"$f":"IFERROR(VLOOKUP(B3,Liste!M:N,2,FALSE),\"\")","v":""}]
[null,null,{"$f":"IFERROR(VLOOKUP(B4,Liste!M:N,2,FALSE),\"\")","v":""}]
[null,null,{"$f":"IFERROR(VLOOKUP(B5,Liste!M:N,2,FALSE),\"\")","v":""}]
[null,null,{"$f":"IFERROR(VLOOKUP(B6,Liste!M:N,2,FALSE),\"\")","v":""}]
[null,null,{"$f":"IFERROR(VLOOKUP(B7,Liste!M:N,2,FALSE),\"\")","v":""}]
[null,null,{"$f":"IFERROR(VLOOKUP(B8,Liste!M:N,2,FALSE),\"\")","v":""}]
[null,null,{"$f":"IFERROR(VLOOKUP(B9,Liste!M:N,2,FALSE),\"\")","v":""}]
[null,null,{"$f":"IFERROR(VLOOKUP(B10,Liste!M:N,2,FALSE),\"\")","v":""}]
[null,null,{"$f":"IFERROR(VLOOKUP(B11,Liste!M:N,2,FALSE),\"\")","v":""}]
[null,null,{"$f":"IFERROR(VLOOKUP(B12,Liste!M:N,2,FALSE),\"\")","v":""}]
[null,null,{"$f":"IFERROR(VLOOKUP(B13,Liste!M:N,2,FALSE),\"\")","v":""}]
[null,null,{"$f":"IFERROR(VLOOKUP(B14,Liste!M:N,2,FALSE),\"\")","v":""}]
[null,null,{"$f":"IFERROR(VLOOKUP(B15,Liste!M:N,2,FALSE),\"\")","v":""}]
[null,null,{"$f":"IFERROR(VLOOKUP(B16,Liste!M:N,2,FALSE),\"\")","v":""}]
[null,null,{"$f":"IFERROR(VLOOKUP(B17,Liste!M:N,2,FALSE),\"\")","v":""}]
[null,null,{"$f":"IFERROR(VLOOKUP(B18,Liste!M:N,2,FALSE),\"\")","v":""}]
[null,null,{"$f":"IFERROR(VLOOKUP(B19,Liste!M:N,2,FALSE),\"\")","v":""}]
[null,null,{"$f":"IFERROR(VLOOKUP(B20,Liste!M:N,2,FALSE),\"\")","v":""}]
[null,null,{"$f":"IFERROR(VLOOKUP(B21,Liste!M:N,2,FALSE),\"\")","v":""}]
[null,null,{"$f":"IFERROR(VLOOKUP(B22,Liste!M:N,2,FALSE),\"\")","v":""}]
[null,null,{"$f":"IFERROR(VLOOKUP(B23,Liste!M:N,2,FALSE),\"\")","v":""}]
[null,null,{"$f":"IFERROR(VLOOKUP(B24,Liste!M:N,2,FALSE),\"\")","v":""}]
[null,null,{"$f":"IFERROR(VLOOKUP(B25,Liste!M:N,2,FALSE),\"\")","v":""}]
[null,null,{"$f":"IFERROR(VLOOKUP(B26,Liste!M:N,2,FALSE),\"\")","v":""}]
[null,null,{"$f":"IFERROR(VLOOKUP(B27,Liste!M:N,2,FALSE),\"\")","v":""}]
[null,null,{"$f":"IFERROR(VLOOKUP(B28,Liste!M:N,2,FALSE),\"\")","v":""}]
[null,null,{"$f":"IFERROR(VLOOKUP(B29,Liste!M:N,2,FALSE),\"\")","v":""}]
[null,null,{"$f":"IFERROR(VLOOKUP(B30,Liste!M:N,2,FALSE),\"\")","v":""}]
[null,null,{"$f":"IFERROR(VLOOKUP(B31,Liste!M:N,2,FALSE),\"\")","v":""}]
[null,null,{"$f":"IFERROR(VLOOKUP(B32,Liste!M:N,2,FALSE),\"\")","v":""}]
[null,null,{"$f":"IFERROR(VLOOKUP(B33,Liste!M:N,2,FALSE),\"\")","v":""}]
[null,null,{"$f":"IFERROR(VLOOKUP(B34,Liste!M:N,2,FALSE),\"\")","v":""}]
[null,null,{"$f":"IFERROR(VLOOKUP(B35,Liste!M:N,2,FALSE),\"\")","v":""}]
[null,null,{"$f":"IFERROR(VLOOKUP(B36,Liste!M:N,2,FALSE),\"\")","v":""}]
[null,null,{"$f":"IFERROR(VLOOKUP(B37,Liste!M:N,2,FALSE),\"\")","v":""}]
[null,null,{"$f":"IFERROR(VLOOKUP(B38,Liste!M:N,2,FALSE),\"\")","v":""}]
[null,null,{"$f":"IFERROR(VLOOKUP(B39,Liste!M:N,2,FALSE),\"\")","v":""}]
[null,null,{"$f":"IFERROR(VLOOKUP(B40,Liste!M:N,2,FALSE),\"\")","v":""}]
[null,null,{"$f":"IFERROR(VLOOKUP(B41,Liste!M:N,2,FALSE),\"\")","v":""}]
[null,null,{"$f":"IFERROR(VLOOKUP(B42,Liste!M:N,2,FALSE),\"\")","v":""}]
[null,null,{"$f":"IFERROR(VLOOKUP(B43,Liste!M:N,2,FALSE),\"\")","v":""}]
[null,null,{"$f":"IFERROR(VLOOKUP(B44,Liste!M:N,2,FALSE),\"\")","v":""}]
[null,null,{"$f":"IFERROR(VLOOKUP(B45,Liste!M:N,2,FALSE),\"\")","v":""}]
[null,null,{"$f":"IFERROR(VLOOKUP(B46,Liste!M:N,2,FALSE),\"\")","v":""}]
[null,null,{"$f":"IFERROR(VLOOKUP(B47,Liste!M:N,2,FALSE),\"\")","v":""}]
[null,null,{"$f":"IFERROR(VLOOKUP(B48,Liste!M:N,2,FALSE),\"\")","v":""}]
[null,null,{"$f":"IFERROR(VLOOKUP(B49,Liste!M:N,2,FALSE),\"\")","v":""}]
[null,null,{"$f":"IFERROR(VLOOKUP(B50,Liste!M:N,2,FALSE),\"\")","v":""}]
[null,null,{"$f":"IFERROR(VLOOKUP(B51,Liste!M:N,2,FALSE),\"\")","v":""}]
[null,null,{"$f":"IFERROR(VLOOKUP(B52,Liste!M:N,2,FALSE),\"\")","v":""}]
[null,null,{"$f":"IFERROR(VLOOKUP(B53,Liste!M:N,2,FALSE),\"\")","v":""}]
[null,null,{"$f":"IFERROR(VLOOKUP(B54,Liste!M:N,2,FALSE),\"\")","v":""}]
[null,null,{"$f":"IFERROR(VLOOKUP(B55,Liste!M:N,2,FALSE),\"\")","v":""}]
[null,null,{"$f":"IFERROR(VLOOKUP(B56,Liste!M:N,2,FALSE),\"\")","v":""}]
[null,null,{"$f":"IFERROR(VLOOKUP(B57,Liste!M:N,2,FALSE),\"\")","v":""}]
[null,null,{"$f":"IFERROR(VLOOKUP(B58,Liste!M:N,2,FALSE),\"\")","v":""}]
[]
[]
[]
[]
[]
[]
[]
[]
[]
[]
[]
[]
[]
[]
[]
[]
[]
[]
[]
[]
[]
[]
[]
[]
[]
[]
[]
[]
[]
[]
[]
[]
[]
[]
[]
[]
[]
[]
[]
[]
[]
[]
[]
[]
[]
[]
[]
[]
[]
[]
[]
[]
[]
[]
[]
[]
[]
[]
[]
[]
[]
[]
[]
[]
[]
[]
[]
[]
[]
[]
[]
[]
[]
[]
[]
[]
[]
[]
[]
[]
[]
[]
[]
[]
[]
[]
[]
[]
[]
[]
[]
[null,null,{"$f":"IFERROR(VLOOKUP(B150,Liste!M:N,2,FALSE),\"\")","v":""}]
[null,null,{"$f":"IFERROR(VLOOKUP(B151,Liste!M:N,2,FALSE),\"\")","v":""}]
[null,null,{"$f":"IFERROR(VLOOKUP(B152,Liste!M:N,2,FALSE),\"\")","v":""}]
[null,null,{"$f":"IFERROR(VLOOKUP(B153,Liste!M:N,2,FALSE),\"\")","v":""}]
[null,null,{"$f":"IFERROR(VLOOKUP(B154,Liste!M:N,2,FALSE),\"\")","v":""}]
[null,null,{"$f":"IFERROR(VLOOKUP(B155,Liste!M:N,2,FALSE),\"\")","v":""}]
[null,null,{"$f":"IFERROR(VLOOKUP(B156,Liste!M:N,2,FALSE),\"\")","v":""}]
[null,null,{"$f":"IFERROR(VLOOKUP(B157,Liste!M:N,2,FALSE),\"\")","v":""}]
[null,null,{"$f":"IFERROR(VLOOKUP(B158,Liste!M:N,2,FALSE),\"\")","v":""}]
[null,null,{"$f":"IFERROR(VLOOKUP(B159,Liste!M:N,2,FALSE),\"\")","v":""}]
[null,null,{"$f":"IFERROR(VLOOKUP(B160,Liste!M:N,2,FALSE),\"\")","v":""}]
[null,null,{"$f":"IFERROR(VLOOKUP(B161,Liste!M:N,2,FALSE),\"\")","v":""}]
[null,null,{"$f":"IFERROR(VLOOKUP(B162,Liste!M:N,2,FALSE),\"\")","v":""}]
[null,null,{"$f":"IFERROR(VLOOKUP(B163,Liste!M:N,2,FALSE),\"\")","v":""}]
[null,null,{"$f":"IFERROR(VLOOKUP(B164,Liste!M:N,2,FALSE),\"\")","v":""}]
[null,null,{"$f":"IFERROR(VLOOKUP(B165,Liste!M:N,2,FALSE),\"\")","v":""}]
[null,null,{"$f":"IFERROR(VLOOKUP(B166,Liste!M:N,2,FALSE),\"\")","v":""}]
[null,null,{"$f":"IFERROR(VLOOKUP(B167,Liste!M:N,2,FALSE),\"\")","v":""}]
[null,null,{"$f":"IFERROR(VLOOKUP(B168,Liste!M:N,2,FALSE),\"\")","v":""}]
[null,null,{"$f":"IFERROR(VLOOKUP(B169,Liste!M:N,2,FALSE),\"\")","v":""}]
[null,null,{"$f":"IFERROR(VLOOKUP(B170,Liste!M:N,2,FALSE),\"\")","v":""}]
[null,null,{"$f":"IFERROR(VLOOKUP(B171,Liste!M:N,2,FALSE),\"\")","v":""}]
[null,null,{"$f":"IFERROR(VLOOKUP(B172,Liste!M:N,2,FALSE),\"\")","v":""}]
[null,null,{"$f":"IFERROR(VLOOKUP(B173,Liste!M:N,2,FALSE),\"\")","v":""}]
[null,null,{"$f":"IFERROR(VLOOKUP(B174,Liste!M:N,2,FALSE),\"\")","v":""}]
[null,null,{"$f":"IFERROR(VLOOKUP(B175,Liste!M:N,2,FALSE),\"\")","v":""}]
[null,null,{"$f":"IFERROR(VLOOKUP(B176,Liste!M:N,2,FALSE),\"\")","v":""}]
[null,null,{"$f":"IFERROR(VLOOKUP(B177,Liste!M:N,2,FALSE),\"\")","v":""}]
[null,null,{"$f":"IFERROR(VLOOKUP(B178,Liste!M:N,2,FALSE),\"\")","v":""}]
[null,null,{"$f":"IFERROR(VLOOKUP(B179,Liste!M:N,2,FALSE),\"\")","v":""}]
[null,null,{"$f":"IFERROR(VLOOKUP(B180,Liste!M:N,2,FALSE),\"\")","v":""}]
[null,null,{"$f":"IFERROR(VLOOKUP(B181,Liste!M:N,2,FALSE),\"\")","v":""}]
[null,null,{"$f":"IFERROR(VLOOKUP(B182,Liste!M:N,2,FALSE),\"\")","v":""}]
[null,null,{"$f":"IFERROR(VLOOKUP(B183,Liste!M:N,2,FALSE),\"\")","v":""}]
[null,null,{"$f":"IFERROR(VLOOKUP(B184,Liste!M:N,2,FALSE),\"\")","v":""}]
[null,null,{"$f":"IFERROR(VLOOKUP(B185,Liste!M:N,2,FALSE),\"\")","v":""}]
[null,null,{"$f":"IFERROR(VLOOKUP(B186,Liste!M:N,2,FALSE),\"\")","v":""}]
[null,null,{"$f":"IFERROR(VLOOKUP(B187,Liste!M:N,2,FALSE),\"\")","v":""}]
[null,null,{"$f":"IFERROR(VLOOKUP(B188,Liste!M:N,2,FALSE),\"\")","v":""}]
[null,null,{"$f":"IFERROR(VLOOKUP(B189,Liste!M:N,2,FALSE),\"\")","v":""}]
[null,null,{"$f":"IFERROR(VLOOKUP(B190,Liste!M:N,2,FALSE),\"\")","v":""}]
[null,null,{"$f":"IFERROR(VLOOKUP(B191,Liste!M:N,2,FALSE),\"\")","v":""}]
[null,null,{"$f":"IFERROR(VLOOKUP(B192,Liste!M:N,2,FALSE),\"\")","v":""}]
[null,null,{"$f":"IFERROR(VLOOKUP(B193,Liste!M:N,2,FALSE),\"\")","v":""}]
[null,null,{"$f":"IFERROR(VLOOKUP(B194,Liste!M:N,2,FALSE),\"\")","v":""}]
[null,null,{"$f":"IFERROR(VLOOKUP(B195,Liste!M:N,2,FALSE),\"\")","v":""}]
[null,null,{"$f":"IFERROR(VLOOKUP(B196,Liste!M:N,2,FALSE),\"\")","v":""}]
[null,null,{"$f":"IFERROR(VLOOKUP(B197,Liste!M:N,2,FALSE),\"\")","v":""}]
[null,null,{"$f":"IFERROR(VLOOKUP(B198,Liste!M:N,2,FALSE),\"\")","v":""}]
[null,null,{"$f":"IFERROR(VLOOKUP(B199,Liste!M:N,2,FALSE),\"\")","v":""}]
[null,null,{"$f":"IFERROR(VLOOKUP(B200,Liste!M:N,2,FALSE),\"\")","v":""}]
[null,null,{"$f":"IFERROR(VLOOKUP(B201,Liste!M:N,2,FALSE),\"\")","v":""}]
[null,null,{"$f":"IFERROR(VLOOKUP(B202,Liste!M:N,2,FALSE),\"\")","v":""}]
[null,null,{"$f":"IFERROR(VLOOKUP(B203,Liste!M:N,2,FALSE),\"\")","v":""}]
[null,null,{"$f":"IFERROR(VLOOKUP(B204,Liste!M:N,2,FALSE),\"\")","v":""}]
[null,null,{"$f":"IFERROR(VLOOKUP(B205,Liste!M:N,2,FALSE),\"\")","v":""}]
[null,null,{"$f":"IFERROR(VLOOKUP(B206,Liste!M:N,2,FALSE),\"\")","v":""}]
[]
[]
[]
[]
[]
[]
[]
[]
[]
[]
[]
[]
[]
[]
[]
[]
[]
[]
[]
[]
[]
[]
[]
[]
[]
[]
[]
[]
[]
[]
[]
[]
[]
[]
[]
[]
[]
[]
[]
[]
[]
[]
[]
[]
[]
[]
[]
[]
[]
[]
[]
[]
[]
[]
[]
[]
[]
[]
[]
[]
[]
[]
[]
[]
[]
[]
[]
[]
[]
[]
[]
[]
[]
[]
[]
[]
[]
[]
[]
[]
[]
[]
[]
[]
[]
[]
[]
[]
[]
[]
[]
[]
[]
[null,null,{"$f":"IFERROR(VLOOKUP(B300,Liste!M:N,2,FALSE),\"\")","v":""}]
[null,null,{"$f":"IFERROR(VLOOKUP(B301,Liste!M:N,2,FALSE),\"\")","v":""}]
[null,null,{"$f":"IFERROR(VLOOKUP(B302,Liste!M:N,2,FALSE),\"\")","v":""}]
[null,null,{"$f":"IFERROR(VLOOKUP(B303,Liste!M:N,2,FALSE),\"\")","v":""}]
[null,null,{"$f":"IFERROR(VLOOKUP(B304,Liste!M:N,2,FALSE),\"\")","v":""}]
[null,null,{"$f":"IFERROR(VLOOKUP(B305,Liste!M:N,2,FALSE),\"\")","v":""}]
[null,null,{"$f":"IFERROR(VLOOKUP(B306,Liste!M:N,2,FALSE),\"\")","v":""}]
[null,null,{"$f":"IFERROR(VLOOKUP(B307,Liste!M:N,2,FALSE),\"\")","v":""}]
[null,null,{"$f":"IFERROR(VLOOKUP(B308,Liste!M:N,2,FALSE),\"\")","v":""}]
[null,null,{"$f":"IFERROR(VLOOKUP(B309,Liste!M:N,2,FALSE),\"\")","v":""}]
[null,null,{"$f":"IFERROR(VLOOKUP(B310,Liste!M:N,2,FALSE),\"\")","v":""}]
[null,null,{"$f":"IFERROR(VLOOKUP(B311,Liste!M:N,2,FALSE),\"\")","v":""}]
[null,null,{"$f":"IFERROR(VLOOKUP(B312,Liste!M:N,2,FALSE),\"\")","v":""}]
[null,null,{"$f":"IFERROR(VLOOKUP(B313,Liste!M:N,2,FALSE),\"\")","v":""}]
[null,null,{"$f":"IFERROR(VLOOKUP(B314,Liste!M:N,2,FALSE),\"\")","v":""}]
[null,null,{"$f":"IFERROR(VLOOKUP(B315,Liste!M:N,2,FALSE),\"\")","v":""}]
[null,null,{"$f":"IFERROR(VLOOKUP(B316,Liste!M:N,2,FALSE),\"\")","v":""}]
[null,null,{"$f":"IFERROR(VLOOKUP(B317,Liste!M:N,2,FALSE),\"\")","v":""}]
[null,null,{"$f":"IFERROR(VLOOKUP(B318,Liste!M:N,2,FALSE),\"\")","v":""}]
[null,null,{"$f":"IFERROR(VLOOKUP(B319,Liste!M:N,2,FALSE),\"\")","v":""}]
[null,null,{"$f":"IFERROR(VLOOKUP(B320,Liste!M:N,2,FALSE),\"\")","v":""}]
[null,null,{"$f":"IFERROR(VLOOKUP(B321,Liste!M:N,2,FALSE),\"\")","v":""}]
[null,null,{"$f":"IFERROR(VLOOKUP(B322,Liste!M:N,2,FALSE),\"\")","v":""}]
[null,null,{"$f":"IFERROR(VLOOKUP(B323,Liste!M:N,2,FALSE),\"\")","v":""}]
[null,null,{"$f":"IFERROR(VLOOKUP(B324,Liste!M:N,2,FALSE),\"\")","v":""}]
[null,null,{"$f":"IFERROR(VLOOKUP(B325,Liste!M:N,2,FALSE),\"\")","v":""}]
[null,null,{"$f":"IFERROR(VLOOKUP(B326,Liste!M:N,2,FALSE),\"\")","v":""}]
[null,null,{"$f":"IFERROR(VLOOKUP(B327,Liste!M:N,2,FALSE),\"\")","v":""}]
[null,null,{"$f":"IFERROR(VLOOKUP(B328,Liste!M:N,2,FALSE),\"\")","v":""}]
[null,null,{"$f":"IFERROR(VLOOKUP(B329,Liste!M:N,2,FALSE),\"\")","v":""}]
[null,null,{"$f":"IFERROR(VLOOKUP(B330,Liste!M:N,2,FALSE),\"\")","v":""}]
[null,null,{"$f":"IFERROR(VLOOKUP(B331,Liste!M:N,2,FALSE),\"\")","v":""}]
[null,null,{"$f":"IFERROR(VLOOKUP(B332,Liste!M:N,2,FALSE),\"\")","v":""}]
[null,null,{"$f":"IFERROR(VLOOKUP(B333,Liste!M:N,2,FALSE),\"\")","v":""}]
[null,null,{"$f":"IFERROR(VLOOKUP(B334,Liste!M:N,2,FALSE),\"\")","v":""}]
[null,null,{"$f":"IFERROR(VLOOKUP(B335,Liste!M:N,2,FALSE),\"\")","v":""}]
[null,null,{"$f":"IFERROR(VLOOKUP(B336,Liste!M:N,2,FALSE),\"\")","v":""}]
[null,null,{"$f":"IFERROR(VLOOKUP(B337,Liste!M:N,2,FALSE),\"\")","v":""}]
[null,null,{"$f":"IFERROR(VLOOKUP(B338,Liste!M:N,2,FALSE),\"\")","v":""}]
[null,null,{"$f":"IFERROR(VLOOKUP(B339,Liste!M:N,2,FALSE),\"\")","v":""}]
[null,null,{"$f":"IFERROR(VLOOKUP(B340,Liste!M:N,2,FALSE),\"\")","v":""}]
[null,null,{"$f":"IFERROR(VLOOKUP(B341,Liste!M:N,2,FALSE),\"\")","v":""}]
[null,null,{"$f":"IFERROR(VLOOKUP(B342,Liste!M:N,2,FALSE),\"\")","v":""}]
[null,null,{"$f":"IFERROR(VLOOKUP(B343,Liste!M:N,2,FALSE),\"\")","v":""}]
[null,null,{"$f":"IFERROR(VLOOKUP(B344,Liste!M:N,2,FALSE),\"\")","v":""}]
[null,null,{"$f":"IFERROR(VLOOKUP(B345,Liste!M:N,2,FALSE),\"\")","v":""}]
[null,null,{"$f":"IFERROR(VLOOKUP(B346,Liste!M:N,2,FALSE),\"\")","v":""}]
[null,null,{"$f":"IFERROR(VLOOKUP(B347,Liste!M:N,2,FALSE),\"\")","v":""}]
[null,null,{"$f":"IFERROR(VLOOKUP(B348,Liste!M:N,2,FALSE),\"\")","v":""}]
[null,null,{"$f":"IFERROR(VLOOKUP(B349,Liste!M:N,2,FALSE),\"\")","v":""}]
[null,null,{"$f":"IFERROR(VLOOKUP(B350,Liste!M:N,2,FALSE),\"\")","v":""}]
[null,null,{"$f":"IFERROR(VLOOKUP(B351,Liste!M:N,2,FALSE),\"\")","v":""}]
[null,null,{"$f":"IFERROR(VLOOKUP(B352,Liste!M:N,2,FALSE),\"\")","v":""}]
[null,null,{"$f":"IFERROR(VLOOKUP(B353,Liste!M:N,2,FALSE),\"\")","v":""}]
[null,null,{"$f":"IFERROR(VLOOKUP(B354,Liste!M:N,2,FALSE),\"\")","v":""}]
[null,null,{"$f":"IFERROR(VLOOKUP(B355,Liste!M:N,2,FALSE),\"\")","v":""}]
[null,null,{"$f":"IFERROR(VLOOKUP(B356,Liste!M:N,2,FALSE),\"\")","v":""}]
[]
[]
[]
[]
[]
[]
[]
[]
[]
[]
[]
[]
[]
[]
[]
[]
[]
[]
[]
[]
[]
[]
[]
[]
[]
[]
[]
[]
[]
[]
[]
[]
[]
[]
[]
[]
[]
[]
[]
[]
[]
[]
[]
[]
[]
[]
[]
[]
[]
[]
[]
[]
[]
[]
[]
[]
[]
[]
[]
[]
[]
[]
[]
[]
[]
[]
[]
[]
[]
[]
[]
[]
[]
[]
[]
[]
[]
[]
[]
[]
[]
[]
[]
[]
[]
[]
[]
[]
[]
[]
[]
[]
[]
[null,null,{"$f":"IFERROR(VLOOKUP(B450,Liste!M:N,2,FALSE),\"\")","v":""}]
[null,null,{"$f":"IFERROR(VLOOKUP(B451,Liste!M:N,2,FALSE),\"\")","v":""}]
[null,null,{"$f":"IFERROR(VLOOKUP(B452,Liste!M:N,2,FALSE),\"\")","v":""}]
[null,null,{"$f":"IFERROR(VLOOKUP(B453,Liste!M:N,2,FALSE),\"\")","v":""}]
[null,null,{"$f":"IFERROR(VLOOKUP(B454,Liste!M:N,2,FALSE),\"\")","v":""}]
[null,null,{"$f":"IFERROR(VLOOKUP(B455,Liste!M:N,2,FALSE),\"\")","v":""}]
[null,null,{"$f":"IFERROR(VLOOKUP(B456,Liste!M:N,2,FALSE),\"\")","v":""}]
[null,null,{"$f":"IFERROR(VLOOKUP(B457,Liste!M:N,2,FALSE),\"\")","v":""}]
[null,null,{"$f":"IFERROR(VLOOKUP(B458,Liste!M:N,2,FALSE),\"\")","v":""}]
[null,null,{"$f":"IFERROR(VLOOKUP(B459,Liste!M:N,2,FALSE),\"\")","v":""}]
[null,null,{"$f":"IFERROR(VLOOKUP(B460,Liste!M:N,2,FALSE),\"\")","v":""}]
[null,null,{"$f":"IFERROR(VLOOKUP(B461,Liste!M:N,2,FALSE),\"\")","v":""}]
[null,null,{"$f":"IFERROR(VLOOKUP(B462,Liste!M:N,2,FALSE),\"\")","v":""}]
[null,null,{"$f":"IFERROR(VLOOKUP(B463,Liste!M:N,2,FALSE),\"\")","v":""}]
[null,null,{"$f":"IFERROR(VLOOKUP(B464,Liste!M:N,2,FALSE),\"\")","v":""}]
[null,null,{"$f":"IFERROR(VLOOKUP(B465,Liste!M:N,2,FALSE),\"\")","v":""}]
[null,null,{"$f":"IFERROR(VLOOKUP(B466,Liste!M:N,2,FALSE),\"\")","v":""}]
[null,null,{"$f":"IFERROR(VLOOKUP(B467,Liste!M:N,2,FALSE),\"\")","v":""}]
[null,null,{"$f":"IFERROR(VLOOKUP(B468,Liste!M:N,2,FALSE),\"\")","v":""}]
[null,null,{"$f":"IFERROR(VLOOKUP(B469,Liste!M:N,2,FALSE),\"\")","v":""}]
[null,null,{"$f":"IFERROR(VLOOKUP(B470,Liste!M:N,2,FALSE),\"\")","v":""}]
[null,null,{"$f":"IFERROR(VLOOKUP(B471,Liste!M:N,2,FALSE),\"\")","v":""}]
[null,null,{"$f":"IFERROR(VLOOKUP(B472,Liste!M:N,2,FALSE),\"\")","v":""}]
[null,null,{"$f":"IFERROR(VLOOKUP(B473,Liste!M:N,2,FALSE),\"\")","v":""}]
[null,null,{"$f":"IFERROR(VLOOKUP(B474,Liste!M:N,2,FALSE),\"\")","v":""}]
[null,null,{"$f":"IFERROR(VLOOKUP(B475,Liste!M:N,2,FALSE),\"\")","v":""}]
[null,null,{"$f":"IFERROR(VLOOKUP(B476,Liste!M:N,2,FALSE),\"\")","v":""}]
[null,null,{"$f":"IFERROR(VLOOKUP(B477,Liste!M:N,2,FALSE),\"\")","v":""}]
[null,null,{"$f":"IFERROR(VLOOKUP(B478,Liste!M:N,2,FALSE),\"\")","v":""}]
[null,null,{"$f":"IFERROR(VLOOKUP(B479,Liste!M:N,2,FALSE),\"\")","v":""}]
[null,null,{"$f":"IFERROR(VLOOKUP(B480,Liste!M:N,2,FALSE),\"\")","v":""}]
[null,null,{"$f":"IFERROR(VLOOKUP(B481,Liste!M:N,2,FALSE),\"\")","v":""}]
[null,null,{"$f":"IFERROR(VLOOKUP(B482,Liste!M:N,2,FALSE),\"\")","v":""}]
[null,null,{"$f":"IFERROR(VLOOKUP(B483,Liste!M:N,2,FALSE),\"\")","v":""}]
[null,null,{"$f":"IFERROR(VLOOKUP(B484,Liste!M:N,2,FALSE),\"\")","v":""}]
[null,null,{"$f":"IFERROR(VLOOKUP(B485,Liste!M:N,2,FALSE),\"\")","v":""}]
[null,null,{"$f":"IFERROR(VLOOKUP(B486,Liste!M:N,2,FALSE),\"\")","v":""}]
[null,null,{"$f":"IFERROR(VLOOKUP(B487,Liste!M:N,2,FALSE),\"\")","v":""}]
[null,null,{"$f":"IFERROR(VLOOKUP(B488,Liste!M:N,2,FALSE),\"\")","v":""}]
[null,null,{"$f":"IFERROR(VLOOKUP(B489,Liste!M:N,2,FALSE),\"\")","v":""}]
[null,null,{"$f":"IFERROR(VLOOKUP(B490,Liste!M:N,2,FALSE),\"\")","v":""}]
[null,null,{"$f":"IFERROR(VLOOKUP(B491,Liste!M:N,2,FALSE),\"\")","v":""}]
[null,null,{"$f":"IFERROR(VLOOKUP(B492,Liste!M:N,2,FALSE),\"\")","v":""}]
[null,null,{"$f":"IFERROR(VLOOKUP(B493,Liste!M:N,2,FALSE),\"\")","v":""}]
[null,null,{"$f":"IFERROR(VLOOKUP(B494,Liste!M:N,2,FALSE),\"\")","v":""}]
[null,null,{"$f":"IFERROR(VLOOKUP(B495,Liste!M:N,2,FALSE),\"\")","v":""}]
[null,null,{"$f":"IFERROR(VLOOKUP(B496,Liste!M:N,2,FALSE),\"\")","v":""}]
[null,null,{"$f":"IFERROR(VLOOKUP(B497,Liste!M:N,2,FALSE),\"\")","v":""}]
[null,null,{"$f":"IFERROR(VLOOKUP(B498,Liste!M:N,2,FALSE),\"\")","v":""}]
[null,null,{"$f":"IFERROR(VLOOKUP(B499,Liste!M:N,2,FALSE),\"\")","v":""}]
[null,null,{"$f":"IFERROR(VLOOKUP(B500,Liste!M:N,2,FALSE),\"\")","v":""}]
[null,null,{"$f":"IFERROR(VLOOKUP(B501,Liste!M:N,2,FALSE),\"\")","v":""}]
[null,null,{"$f":"IFERROR(VLOOKUP(B502,Liste!M:N,2,FALSE),\"\")","v":""}]
[null,null,{"$f":"IFERROR(VLOOKUP(B503,Liste!M:N,2,FALSE),\"\")","v":""}]
[null,null,{"$f":"IFERROR(VLOOKUP(B504,Liste!M:N,2,FALSE),\"\")","v":""}]
[null,null,{"$f":"IFERROR(VLOOKUP(B505,Liste!M:N,2,FALSE),\"\")","v":""}]
[null,null,{"$f":"IFERROR(VLOOKUP(B506,Liste!M:N,2,FALSE),\"\")","v":""}]
[]
[]
[]
[]
[]
[]
[]
[]
[]
[]
[]
[]
[]
[]
[]
[]
[]
[]
[]
[]
[]
[]
[]
[]
[]
[]
[]
[]
[]
[]
[]
[]
[]
[]
[]
[]
[]
[]
[]
[]
[]
[]
[]
[]
[]
[]
[]
[]
[]
[]
[]
[]
[]
[]
[]
[]
[]
[]
[]
[]
[]
[]
[]
[]
[]
[]
[]
[]
[]
[]
[]
[]
[]
[]
[]
[]
[]
[]
[]
[]
[]
[]
[]
[]
[]
[]
[]
[]
[]
[]
[]
[]
[]
[null,null,{"$f":"IFERROR(VLOOKUP(B600,Liste!M:N,2,FALSE),\"\")","v":""}]
[null,null,{"$f":"IFERROR(VLOOKUP(B601,Liste!M:N,2,FALSE),\"\")","v":""}]
[null,null,{"$f":"IFERROR(VLOOKUP(B602,Liste!M:N,2,FALSE),\"\")","v":""}]
[null,null,{"$f":"IFERROR(VLOOKUP(B603,Liste!M:N,2,FALSE),\"\")","v":""}]
[null,null,{"$f":"IFERROR(VLOOKUP(B604,Liste!M:N,2,FALSE),\"\")","v":""}]
[null,null,{"$f":"IFERROR(VLOOKUP(B605,Liste!M:N,2,FALSE),\"\")","v":""}]
[null,null,{"$f":"IFERROR(VLOOKUP(B606,Liste!M:N,2,FALSE),\"\")","v":""}]
[null,null,{"$f":"IFERROR(VLOOKUP(B607,Liste!M:N,2,FALSE),\"\")","v":""}]
[null,null,{"$f":"IFERROR(VLOOKUP(B608,Liste!M:N,2,FALSE),\"\")","v":""}]
[null,null,{"$f":"IFERROR(VLOOKUP(B609,Liste!M:N,2,FALSE),\"\")","v":""}]
[null,null,{"$f":"IFERROR(VLOOKUP(B610,Liste!M:N,2,FALSE),\"\")","v":""}]
[null,null,{"$f":"IFERROR(VLOOKUP(B611,Liste!M:N,2,FALSE),\"\")","v":""}]
[null,null,{"$f":"IFERROR(VLOOKUP(B612,Liste!M:N,2,FALSE),\"\")","v":""}]
[null,null,{"$f":"IFERROR(VLOOKUP(B613,Liste!M:N,2,FALSE),\"\")","v":""}]
[null,null,{"$f":"IFERROR(VLOOKUP(B614,Liste!M:N,2,FALSE),\"\")","v":""}]
[null,null,{"$f":"IFERROR(VLOOKUP(B615,Liste!M:N,2,FALSE),\"\")","v":""}]
[null,null,{"$f":"IFERROR(VLOOKUP(B616,Liste!M:N,2,FALSE),\"\")","v":""}]
[null,null,{"$f":"IFERROR(VLOOKUP(B617,Liste!M:N,2,FALSE),\"\")","v":""}]
[null,null,{"$f":"IFERROR(VLOOKUP(B618,Liste!M:N,2,FALSE),\"\")","v":""}]
[null,null,{"$f":"IFERROR(VLOOKUP(B619,Liste!M:N,2,FALSE),\"\")","v":""}]
[null,null,{"$f":"IFERROR(VLOOKUP(B620,Liste!M:N,2,FALSE),\"\")","v":""}]
[null,null,{"$f":"IFERROR(VLOOKUP(B621,Liste!M:N,2,FALSE),\"\")","v":""}]
[null,null,{"$f":"IFERROR(VLOOKUP(B622,Liste!M:N,2,FALSE),\"\")","v":""}]
[null,null,{"$f":"IFERROR(VLOOKUP(B623,Liste!M:N,2,FALSE),\"\")","v":""}]
[null,null,{"$f":"IFERROR(VLOOKUP(B624,Liste!M:N,2,FALSE),\"\")","v":""}]
[null,null,{"$f":"IFERROR(VLOOKUP(B625,Liste!M:N,2,FALSE),\"\")","v":""}]
[null,null,{"$f":"IFERROR(VLOOKUP(B626,Liste!M:N,2,FALSE),\"\")","v":""}]
[null,null,{"$f":"IFERROR(VLOOKUP(B627,Liste!M:N,2,FALSE),\"\")","v":""}]
[null,null,{"$f":"IFERROR(VLOOKUP(B628,Liste!M:N,2,FALSE),\"\")","v":""}]
[null,null,{"$f":"IFERROR(VLOOKUP(B629,Liste!M:N,2,FALSE),\"\")","v":""}]
[null,null,{"$f":"IFERROR(VLOOKUP(B630,Liste!M:N,2,FALSE),\"\")","v":""}]
[null,null,{"$f":"IFERROR(VLOOKUP(B631,Liste!M:N,2,FALSE),\"\")","v":""}]
[null,null,{"$f":"IFERROR(VLOOKUP(B632,Liste!M:N,2,FALSE),\"\")","v":""}]
[null,null,{"$f":"IFERROR(VLOOKUP(B633,Liste!M:N,2,FALSE),\"\")","v":""}]
[null,null,{"$f":"IFERROR(VLOOKUP(B634,Liste!M:N,2,FALSE),\"\")","v":""}]
[null,null,{"$f":"IFERROR(VLOOKUP(B635,Liste!M:N,2,FALSE),\"\")","v":""}]
[null,null,{"$f":"IFERROR(VLOOKUP(B636,Liste!M:N,2,FALSE),\"\")","v":""}]
[null,null,{"$f":"IFERROR(VLOOKUP(B637,Liste!M:N,2,FALSE),\"\")","v":""}]
[null,null,{"$f":"IFERROR(VLOOKUP(B638,Liste!M:N,2,FALSE),\"\")","v":""}]
[null,null,{"$f":"IFERROR(VLOOKUP(B639,Liste!M:N,2,FALSE),\"\")","v":""}]
[null,null,{"$f":"IFERROR(VLOOKUP(B640,Liste!M:N,2,FALSE),\"\")","v":""}]
[null,null,{"$f":"IFERROR(VLOOKUP(B641,Liste!M:N,2,FALSE),\"\")","v":""}]
[null,null,{"$f":"IFERROR(VLOOKUP(B642,Liste!M:N,2,FALSE),\"\")","v":""}]
[null,null,{"$f":"IFERROR(VLOOKUP(B643,Liste!M:N,2,FALSE),\"\")","v":""}]
[null,null,{"$f":"IFERROR(VLOOKUP(B644,Liste!M:N,2,FALSE),\"\")","v":""}]
[null,null,{"$f":"IFERROR(VLOOKUP(B645,Liste!M:N,2,FALSE),\"\")","v":""}]
[null,null,{"$f":"IFERROR(VLOOKUP(B646,Liste!M:N,2,FALSE),\"\")","v":""}]
[null,null,{"$f":"IFERROR(VLOOKUP(B647,Liste!M:N,2,FALSE),\"\")","v":""}]
[null,null,{"$f":"IFERROR(VLOOKUP(B648,Liste!M:N,2,FALSE),\"\")","v":""}]
[null,null,{"$f":"IFERROR(VLOOKUP(B649,Liste!M:N,2,FALSE),\"\")","v":""}]
[null,null,{"$f":"IFERROR(VLOOKUP(B650,Liste!M:N,2,FALSE),\"\")","v":""}]
[null,null,{"$f":"IFERROR(VLOOKUP(B651,Liste!M:N,2,FALSE),\"\")","v":""}]
[null,null,{"$f":"IFERROR(VLOOKUP(B652,Liste!M:N,2,FALSE),\"\")","v":""}]
[null,null,{"$f":"IFERROR(VLOOKUP(B653,Liste!M:N,2,FALSE),\"\")","v":""}]
[null,null,{"$f":"IFERROR(VLOOKUP(B654,Liste!M:N,2,FALSE),\"\")","v":""}]
[null,null,{"$f":"IFERROR(VLOOKUP(B655,Liste!M:N,2,FALSE),\"\")","v":""}]
[null,null,{"$f":"IFERROR(VLOOKUP(B656,Liste!M:N,2,FALSE),\"\")","v":""}]
[]
[]
[]
[]
[]
[]
[]
[]
[]
[]
[]
[]
[]
[]
[]
[]
[]
[]
[]
[]
[]
[]
[]
[]
[]
[]
[]
[]
[]
[]
[]
[]
[]
[]
[]
[]
[]
[]
[]
[]
[]
[]
[]
[]
[]
[]
[]
[]
[]
[]
[]
[]
[]
[]
[]
[]
[]
[]
[]
[]
[]
[]
[]
[]
[]
[]
[]
[]
[]
[]
[]
[]
[]
[]
[]
[]
[]
[]
[]
[]
[]
[]
[]
[]
[]
[]
[]
[]
[]
[]
[]
[]
[]
[null,null,{"$f":"IFERROR(VLOOKUP(B750,Liste!M:N,2,FALSE),\"\")","v":""}]
[null,null,{"$f":"IFERROR(VLOOKUP(B751,Liste!M:N,2,FALSE),\"\")","v":""}]
[null,null,{"$f":"IFERROR(VLOOKUP(B752,Liste!M:N,2,FALSE),\"\")","v":""}]
[null,null,{"$f":"IFERROR(VLOOKUP(B753,Liste!M:N,2,FALSE),\"\")","v":""}]
[null,null,{"$f":"IFERROR(VLOOKUP(B754,Liste!M:N,2,FALSE),\"\")","v":""}]
[null,null,{"$f":"IFERROR(VLOOKUP(B755,Liste!M:N,2,FALSE),\"\")","v":""}]
[null,null,{"$f":"IFERROR(VLOOKUP(B756,Liste!M:N,2,FALSE),\"\")","v":""}]
[null,null,{"$f":"IFERROR(VLOOKUP(B757,Liste!M:N,2,FALSE),\"\")","v":""}]
[null,null,{"$f":"IFERROR(VLOOKUP(B758,Liste!M:N,2,FALSE),\"\")","v":""}]
[null,null,{"$f":"IFERROR(VLOOKUP(B759,Liste!M:N,2,FALSE),\"\")","v":""}]
[null,null,{"$f":"IFERROR(VLOOKUP(B760,Liste!M:N,2,FALSE),\"\")","v":""}]
[null,null,{"$f":"IFERROR(VLOOKUP(B761,Liste!M:N,2,FALSE),\"\")","v":""}]
[null,null,{"$f":"IFERROR(VLOOKUP(B762,Liste!M:N,2,FALSE),\"\")","v":""}]
[null,null,{"$f":"IFERROR(VLOOKUP(B763,Liste!M:N,2,FALSE),\"\")","v":""}]
[null,null,{"$f":"IFERROR(VLOOKUP(B764,Liste!M:N,2,FALSE),\"\")","v":""}]
[null,null,{"$f":"IFERROR(VLOOKUP(B765,Liste!M:N,2,FALSE),\"\")","v":""}]
[null,null,{"$f":"IFERROR(VLOOKUP(B766,Liste!M:N,2,FALSE),\"\")","v":""}]
[null,null,{"$f":"IFERROR(VLOOKUP(B767,Liste!M:N,2,FALSE),\"\")","v":""}]
[null,null,{"$f":"IFERROR(VLOOKUP(B768,Liste!M:N,2,FALSE),\"\")","v":""}]
[null,null,{"$f":"IFERROR(VLOOKUP(B769,Liste!M:N,2,FALSE),\"\")","v":""}]
[null,null,{"$f":"IFERROR(VLOOKUP(B770,Liste!M:N,2,FALSE),\"\")","v":""}]
[null,null,{"$f":"IFERROR(VLOOKUP(B771,Liste!M:N,2,FALSE),\"\")","v":""}]
[null,null,{"$f":"IFERROR(VLOOKUP(B772,Liste!M:N,2,FALSE),\"\")","v":""}]
[null,null,{"$f":"IFERROR(VLOOKUP(B773,Liste!M:N,2,FALSE),\"\")","v":""}]
[null,null,{"$f":"IFERROR(VLOOKUP(B774,Liste!M:N,2,FALSE),\"\")","v":""}]
[null,null,{"$f":"IFERROR(VLOOKUP(B775,Liste!M:N,2,FALSE),\"\")","v":""}]
[null,null,{"$f":"IFERROR(VLOOKUP(B776,Liste!M:N,2,FALSE),\"\")","v":""}]
[null,null,{"$f":"IFERROR(VLOOKUP(B777,Liste!M:N,2,FALSE),\"\")","v":""}]
[null,null,{"$f":"IFERROR(VLOOKUP(B778,Liste!M:N,2,FALSE),\"\")","v":""}]
[null,null,{"$f":"IFERROR(VLOOKUP(B779,Liste!M:N,2,FALSE),\"\")","v":""}]
[null,null,{"$f":"IFERROR(VLOOKUP(B780,Liste!M:N,2,FALSE),\"\")","v":""}]
[null,null,{"$f":"IFERROR(VLOOKUP(B781,Liste!M:N,2,FALSE),\"\")","v":""}]
[null,null,{"$f":"IFERROR(VLOOKUP(B782,Liste!M:N,2,FALSE),\"\")","v":""}]
[null,null,{"$f":"IFERROR(VLOOKUP(B783,Liste!M:N,2,FALSE),\"\")","v":""}]
[null,null,{"$f":"IFERROR(VLOOKUP(B784,Liste!M:N,2,FALSE),\"\")","v":""}]
[null,null,{"$f":"IFERROR(VLOOKUP(B785,Liste!M:N,2,FALSE),\"\")","v":""}]
[null,null,{"$f":"IFERROR(VLOOKUP(B786,Liste!M:N,2,FALSE),\"\")","v":""}]
[null,null,{"$f":"IFERROR(VLOOKUP(B787,Liste!M:N,2,FALSE),\"\")","v":""}]
[null,null,{"$f":"IFERROR(VLOOKUP(B788,Liste!M:N,2,FALSE),\"\")","v":""}]
[null,null,{"$f":"IFERROR(VLOOKUP(B789,Liste!M:N,2,FALSE),\"\")","v":""}]
[null,null,{"$f":"IFERROR(VLOOKUP(B790,Liste!M:N,2,FALSE),\"\")","v":""}]
[null,null,{"$f":"IFERROR(VLOOKUP(B791,Liste!M:N,2,FALSE),\"\")","v":""}]
[null,null,{"$f":"IFERROR(VLOOKUP(B792,Liste!M:N,2,FALSE),\"\")","v":""}]
[null,null,{"$f":"IFERROR(VLOOKUP(B793,Liste!M:N,2,FALSE),\"\")","v":""}]
[null,null,{"$f":"IFERROR(VLOOKUP(B794,Liste!M:N,2,FALSE),\"\")","v":""}]
[null,null,{"$f":"IFERROR(VLOOKUP(B795,Liste!M:N,2,FALSE),\"\")","v":""}]
[null,null,{"$f":"IFERROR(VLOOKUP(B796,Liste!M:N,2,FALSE),\"\")","v":""}]
[null,null,{"$f":"IFERROR(VLOOKUP(B797,Liste!M:N,2,FALSE),\"\")","v":""}]
[null,null,{"$f":"IFERROR(VLOOKUP(B798,Liste!M:N,2,FALSE),\"\")","v":""}]
[null,null,{"$f":"IFERROR(VLOOKUP(B799,Liste!M:N,2,FALSE),\"\")","v":""}]
[null,null,{"$f":"IFERROR(VLOOKUP(B800,Liste!M:N,2,FALSE),\"\")","v":""}]
[null,null,{"$f":"IFERROR(VLOOKUP(B801,Liste!M:N,2,FALSE),\"\")","v":""}]
[null,null,{"$f":"IFERROR(VLOOKUP(B802,Liste!M:N,2,FALSE),\"\")","v":""}]
[null,null,{"$f":"IFERROR(VLOOKUP(B803,Liste!M:N,2,FALSE),\"\")","v":""}]
[null,null,{"$f":"IFERROR(VLOOKUP(B804,Liste!M:N,2,FALSE),\"\")","v":""}]
[null,null,{"$f":"IFERROR(VLOOKUP(B805,Liste!M:N,2,FALSE),\"\")","v":""}]
[null,null,{"$f":"IFERROR(VLOOKUP(B806,Liste!M:N,2,FALSE),\"\")","v":""}]
[]
[]
[]
[]
[]
[]
[]
[]
[]
[]
[]
[]
[]
[]
[]
[]
[]
[]
[]
[]
[]
[]
[]
[]
[]
[]
[]
[]
[]
[]
[]
[]
[]
[]
[]
[]
[]
[]
[]
[]
[]
[]
[]
[]
[]
[]
[]
[]
[]
[]
[]
[]
[]
[]
[]
[]
[]
[]
[]
[]
[]
[]
[]
[]
[]
[]
[]
[]
[]
[]
[]
[]
[]
[]
[]
[]
[]
[]
[]
[]
[]
[]
[]
[]
[]
[]
[]
[]
[]
[]
[]
[]
[]
[null,null,{"$f":"IFERROR(VLOOKUP(B900,Liste!M:N,2,FALSE),\"\")","v":""}]
[null,null,{"$f":"IFERROR(VLOOKUP(B901,Liste!M:N,2,FALSE),\"\")","v":""}]
[null,null,{"$f":"IFERROR(VLOOKUP(B902,Liste!M:N,2,FALSE),\"\")","v":""}]
[null,null,{"$f":"IFERROR(VLOOKUP(B903,Liste!M:N,2,FALSE),\"\")","v":""}]
[null,null,{"$f":"IFERROR(VLOOKUP(B904,Liste!M:N,2,FALSE),\"\")","v":""}]
[null,null,{"$f":"IFERROR(VLOOKUP(B905,Liste!M:N,2,FALSE),\"\")","v":""}]
[null,null,{"$f":"IFERROR(VLOOKUP(B906,Liste!M:N,2,FALSE),\"\")","v":""}]
[null,null,{"$f":"IFERROR(VLOOKUP(B907,Liste!M:N,2,FALSE),\"\")","v":""}]
[null,null,{"$f":"IFERROR(VLOOKUP(B908,Liste!M:N,2,FALSE),\"\")","v":""}]
[null,null,{"$f":"IFERROR(VLOOKUP(B909,Liste!M:N,2,FALSE),\"\")","v":""}]
[null,null,{"$f":"IFERROR(VLOOKUP(B910,Liste!M:N,2,FALSE),\"\")","v":""}]
[null,null,{"$f":"IFERROR(VLOOKUP(B911,Liste!M:N,2,FALSE),\"\")","v":""}]
[null,null,{"$f":"IFERROR(VLOOKUP(B912,Liste!M:N,2,FALSE),\"\")","v":""}]
[null,null,{"$f":"IFERROR(VLOOKUP(B913,Liste!M:N,2,FALSE),\"\")","v":""}]
[null,null,{"$f":"IFERROR(VLOOKUP(B914,Liste!M:N,2,FALSE),\"\")","v":""}]
[null,null,{"$f":"IFERROR(VLOOKUP(B915,Liste!M:N,2,FALSE),\"\")","v":""}]
[null,null,{"$f":"IFERROR(VLOOKUP(B916,Liste!M:N,2,FALSE),\"\")","v":""}]
[null,null,{"$f":"IFERROR(VLOOKUP(B917,Liste!M:N,2,FALSE),\"\")","v":""}]
[null,null,{"$f":"IFERROR(VLOOKUP(B918,Liste!M:N,2,FALSE),\"\")","v":""}]
[null,null,{"$f":"IFERROR(VLOOKUP(B919,Liste!M:N,2,FALSE),\"\")","v":""}]
[null,null,{"$f":"IFERROR(VLOOKUP(B920,Liste!M:N,2,FALSE),\"\")","v":""}]
[null,null,{"$f":"IFERROR(VLOOKUP(B921,Liste!M:N,2,FALSE),\"\")","v":""}]
[null,null,{"$f":"IFERROR(VLOOKUP(B922,Liste!M:N,2,FALSE),\"\")","v":""}]
[null,null,{"$f":"IFERROR(VLOOKUP(B923,Liste!M:N,2,FALSE),\"\")","v":""}]
[null,null,{"$f":"IFERROR(VLOOKUP(B924,Liste!M:N,2,FALSE),\"\")","v":""}]
[null,null,{"$f":"IFERROR(VLOOKUP(B925,Liste!M:N,2,FALSE),\"\")","v":""}]
[null,null,{"$f":"IFERROR(VLOOKUP(B926,Liste!M:N,2,FALSE),\"\")","v":""}]
[null,null,{"$f":"IFERROR(VLOOKUP(B927,Liste!M:N,2,FALSE),\"\")","v":""}]
[null,null,{"$f":"IFERROR(VLOOKUP(B928,Liste!M:N,2,FALSE),\"\")","v":""}]
[null,null,{"$f":"IFERROR(VLOOKUP(B929,Liste!M:N,2,FALSE),\"\")","v":""}]
[null,null,{"$f":"IFERROR(VLOOKUP(B930,Liste!M:N,2,FALSE),\"\")","v":""}]
[null,null,{"$f":"IFERROR(VLOOKUP(B931,Liste!M:N,2,FALSE),\"\")","v":""}]
[null,null,{"$f":"IFERROR(VLOOKUP(B932,Liste!M:N,2,FALSE),\"\")","v":""}]
[null,null,{"$f":"IFERROR(VLOOKUP(B933,Liste!M:N,2,FALSE),\"\")","v":""}]
[null,null,{"$f":"IFERROR(VLOOKUP(B934,Liste!M:N,2,FALSE),\"\")","v":""}]
[null,null,{"$f":"IFERROR(VLOOKUP(B935,Liste!M:N,2,FALSE),\"\")","v":""}]
[null,null,{"$f":"IFERROR(VLOOKUP(B936,Liste!M:N,2,FALSE),\"\")","v":""}]
[null,null,{"$f":"IFERROR(VLOOKUP(B937,Liste!M:N,2,FALSE),\"\")","v":""}]
[null,null,{"$f":"IFERROR(VLOOKUP(B938,Liste!M:N,2,FALSE),\"\")","v":""}]
[null,null,{"$f":"IFERROR(VLOOKUP(B939,Liste!M:N,2,FALSE),\"\")","v":""}]
[null,null,{"$f":"IFERROR(VLOOKUP(B940,Liste!M:N,2,FALSE),\"\")","v":""}]
[null,null,{"$f":"IFERROR(VLOOKUP(B941,Liste!M:N,2,FALSE),\"\")","v":""}]
[null,null,{"$f":"IFERROR(VLOOKUP(B942,Liste!M:N,2,FALSE),\"\")","v":""}]
[null,null,{"$f":"IFERROR(VLOOKUP(B943,Liste!M:N,2,FALSE),\"\")","v":""}]
[null,null,{"$f":"IFERROR(VLOOKUP(B944,Liste!M:N,2,FALSE),\"\")","v":""}]
[null,null,{"$f":"IFERROR(VLOOKUP(B945,Liste!M:N,2,FALSE),\"\")","v":""}]
[null,null,{"$f":"IFERROR(VLOOKUP(B946,Liste!M:N,2,FALSE),\"\")","v":""}]
[null,null,{"$f":"IFERROR(VLOOKUP(B947,Liste!M:N,2,FALSE),\"\")","v":""}]
[null,null,{"$f":"IFERROR(VLOOKUP(B948,Liste!M:N,2,FALSE),\"\")","v":""}]
[null,null,{"$f":"IFERROR(VLOOKUP(B949,Liste!M:N,2,FALSE),\"\")","v":""}]
[null,null,{"$f":"IFERROR(VLOOKUP(B950,Liste!M:N,2,FALSE),\"\")","v":""}]
[null,null,{"$f":"IFERROR(VLOOKUP(B951,Liste!M:N,2,FALSE),\"\")","v":""}]
[null,null,{"$f":"IFERROR(VLOOKUP(B952,Liste!M:N,2,FALSE),\"\")","v":""}]
[null,null,{"$f":"IFERROR(VLOOKUP(B953,Liste!M:N,2,FALSE),\"\")","v":""}]
[null,null,{"$f":"IFERROR(VLOOKUP(B954,Liste!M:N,2,FALSE),\"\")","v":""}]
[null,null,{"$f":"IFERROR(VLOOKUP(B955,Liste!M:N,2,FALSE),\"\")","v":""}]
[null,null,{"$f":"IFERROR(VLOOKUP(B956,Liste!M:N,2,FALSE),\"\")","v":""}]
[]
[]
[]
[]
[]
[]
[]
[]
[]
[]
[]
[]
[]
[]
[]
[]
[]
[]
[]
[]
[]
[]
[]
[]
[]
[]
[]
[]
[]
[]
[]
[]
[]
[]
[]
[]
[]
[]
[]
[]
[]
[]
[]
[]
[]
[]
[]
[]
[]
[]
[]
[]
[]
[]
[]
[]
[]
[]
[]
[]
[]
[]
[]
[]
[]
[]
[]
[]
[]
[]
[]
[]
[]
[]
[]
[]
[]
[]
[]
[]
[]
[]
[]
[]
[]
[]
[]
[]
[]
[]
[]
[]
[]
[null,null,{"$f":"IFERROR(VLOOKUP(B1050,Liste!M:N,2,FALSE),\"\")","v":""}]
[null,null,{"$f":"IFERROR(VLOOKUP(B1051,Liste!M:N,2,FALSE),\"\")","v":""}]
[null,null,{"$f":"IFERROR(VLOOKUP(B1052,Liste!M:N,2,FALSE),\"\")","v":""}]
[null,null,{"$f":"IFERROR(VLOOKUP(B1053,Liste!M:N,2,FALSE),\"\")","v":""}]
[null,null,{"$f":"IFERROR(VLOOKUP(B1054,Liste!M:N,2,FALSE),\"\")","v":""}]
[null,null,{"$f":"IFERROR(VLOOKUP(B1055,Liste!M:N,2,FALSE),\"\")","v":""}]
[null,null,{"$f":"IFERROR(VLOOKUP(B1056,Liste!M:N,2,FALSE),\"\")","v":""}]
[null,null,{"$f":"IFERROR(VLOOKUP(B1057,Liste!M:N,2,FALSE),\"\")","v":""}]
[null,null,{"$f":"IFERROR(VLOOKUP(B1058,Liste!M:N,2,FALSE),\"\")","v":""}]
[null,null,{"$f":"IFERROR(VLOOKUP(B1059,Liste!M:N,2,FALSE),\"\")","v":""}]
[null,null,{"$f":"IFERROR(VLOOKUP(B1060,Liste!M:N,2,FALSE),\"\")","v":""}]
[null,null,{"$f":"IFERROR(VLOOKUP(B1061,Liste!M:N,2,FALSE),\"\")","v":""}]
[null,null,{"$f":"IFERROR(VLOOKUP(B1062,Liste!M:N,2,FALSE),\"\")","v":""}]
[null,null,{"$f":"IFERROR(VLOOKUP(B1063,Liste!M:N,2,FALSE),\"\")","v":""}]
[null,null,{"$f":"IFERROR(VLOOKUP(B1064,Liste!M:N,2,FALSE),\"\")","v":""}]
[null,null,{"$f":"IFERROR(VLOOKUP(B1065,Liste!M:N,2,FALSE),\"\")","v":""}]
[null,null,{"$f":"IFERROR(VLOOKUP(B1066,Liste!M:N,2,FALSE),\"\")","v":""}]
[null,null,{"$f":"IFERROR(VLOOKUP(B1067,Liste!M:N,2,FALSE),\"\")","v":""}]
[null,null,{"$f":"IFERROR(VLOOKUP(B1068,Liste!M:N,2,FALSE),\"\")","v":""}]
[null,null,{"$f":"IFERROR(VLOOKUP(B1069,Liste!M:N,2,FALSE),\"\")","v":""}]
[null,null,{"$f":"IFERROR(VLOOKUP(B1070,Liste!M:N,2,FALSE),\"\")","v":""}]
[null,null,{"$f":"IFERROR(VLOOKUP(B1071,Liste!M:N,2,FALSE),\"\")","v":""}]
[null,null,{"$f":"IFERROR(VLOOKUP(B1072,Liste!M:N,2,FALSE),\"\")","v":""}]
[null,null,{"$f":"IFERROR(VLOOKUP(B1073,Liste!M:N,2,FALSE),\"\")","v":""}]
[null,null,{"$f":"IFERROR(VLOOKUP(B1074,Liste!M:N,2,FALSE),\"\")","v":""}]
[null,null,{"$f":"IFERROR(VLOOKUP(B1075,Liste!M:N,2,FALSE),\"\")","v":""}]
[null,null,{"$f":"IFERROR(VLOOKUP(B1076,Liste!M:N,2,FALSE),\"\")","v":""}]
[null,null,{"$f":"IFERROR(VLOOKUP(B1077,Liste!M:N,2,FALSE),\"\")","v":""}]
[null,null,{"$f":"IFERROR(VLOOKUP(B1078,Liste!M:N,2,FALSE),\"\")","v":""}]
[null,null,{"$f":"IFERROR(VLOOKUP(B1079,Liste!M:N,2,FALSE),\"\")","v":""}]
[null,null,{"$f":"IFERROR(VLOOKUP(B1080,Liste!M:N,2,FALSE),\"\")","v":""}]
[null,null,{"$f":"IFERROR(VLOOKUP(B1081,Liste!M:N,2,FALSE),\"\")","v":""}]
[null,null,{"$f":"IFERROR(VLOOKUP(B1082,Liste!M:N,2,FALSE),\"\")","v":""}]
[null,null,{"$f":"IFERROR(VLOOKUP(B1083,Liste!M:N,2,FALSE),\"\")","v":""}]
[null,null,{"$f":"IFERROR(VLOOKUP(B1084,Liste!M:N,2,FALSE),\"\")","v":""}]
[null,null,{"$f":"IFERROR(VLOOKUP(B1085,Liste!M:N,2,FALSE),\"\")","v":""}]
[null,null,{"$f":"IFERROR(VLOOKUP(B1086,Liste!M:N,2,FALSE),\"\")","v":""}]
[null,null,{"$f":"IFERROR(VLOOKUP(B1087,Liste!M:N,2,FALSE),\"\")","v":""}]
[null,null,{"$f":"IFERROR(VLOOKUP(B1088,Liste!M:N,2,FALSE),\"\")","v":""}]
[null,null,{"$f":"IFERROR(VLOOKUP(B1089,Liste!M:N,2,FALSE),\"\")","v":""}]
[null,null,{"$f":"IFERROR(VLOOKUP(B1090,Liste!M:N,2,FALSE),\"\")","v":""}]
[null,null,{"$f":"IFERROR(VLOOKUP(B1091,Liste!M:N,2,FALSE),\"\")","v":""}]
[null,null,{"$f":"IFERROR(VLOOKUP(B1092,Liste!M:N,2,FALSE),\"\")","v":""}]
[null,null,{"$f":"IFERROR(VLOOKUP(B1093,Liste!M:N,2,FALSE),\"\")","v":""}]
[null,null,{"$f":"IFERROR(VLOOKUP(B1094,Liste!M:N,2,FALSE),\"\")","v":""}]
[null,null,{"$f":"IFERROR(VLOOKUP(B1095,Liste!M:N,2,FALSE),\"\")","v":""}]
[null,null,{"$f":"IFERROR(VLOOKUP(B1096,Liste!M:N,2,FALSE),\"\")","v":""}]
[null,null,{"$f":"IFERROR(VLOOKUP(B1097,Liste!M:N,2,FALSE),\"\")","v":""}]
[null,null,{"$f":"IFERROR(VLOOKUP(B1098,Liste!M:N,2,FALSE),\"\")","v":""}]
[null,null,{"$f":"IFERROR(VLOOKUP(B1099,Liste!M:N,2,FALSE),\"\")","v":""}]
[null,null,{"$f":"IFERROR(VLOOKUP(B1100,Liste!M:N,2,FALSE),\"\")","v":""}]
[null,null,{"$f":"IFERROR(VLOOKUP(B1101,Liste!M:N,2,FALSE),\"\")","v":""}]
[null,null,{"$f":"IFERROR(VLOOKUP(B1102,Liste!M:N,2,FALSE),\"\")","v":""}]
[null,null,{"$f":"IFERROR(VLOOKUP(B1103,Liste!M:N,2,FALSE),\"\")","v":""}]
[null,null,{"$f":"IFERROR(VLOOKUP(B1104,Liste!M:N,2,FALSE),\"\")","v":""}]
[null,null,{"$f":"IFERROR(VLOOKUP(B1105,Liste!M:N,2,FALSE),\"\")","v":""}]
[null,null,{"$f":"IFERROR(VLOOKUP(B1106,Liste!M:N,2,FALSE),\"\")","v":""}]
[]
[]
[]
[]
[]
[]
[]
[]
[]
[]
[]
[]
[]
[]
[]
[]
[]
[]
[]
[]
[]
[]
[]
[]
[]
[]
[]
[]
[]
[]
[]
[]
[]
[]
[]
[]
[]
[]
[]
[]
[]
[]
[]
[]
[]
[]
[]
[]
[]
[]
[]
[]
[]
[]
[]
[]
[]
[]
[]
[]
[]
[]
[]
[]
[]
[]
[]
[]
[]
[]
[]
[]
[]
[]
[]
[]
[]
[]
[]
[]
[]
[]
[]
[]
[]
[]
[]
[]
[]
[]
[]
[]
[]
[null,null,{"$f":"IFERROR(VLOOKUP(B1200,Liste!M:N,2,FALSE),\"\")","v":""}]
[null,null,{"$f":"IFERROR(VLOOKUP(B1201,Liste!M:N,2,FALSE),\"\")","v":""}]
[null,null,{"$f":"IFERROR(VLOOKUP(B1202,Liste!M:N,2,FALSE),\"\")","v":""}]
[null,null,{"$f":"IFERROR(VLOOKUP(B1203,Liste!M:N,2,FALSE),\"\")","v":""}]
[null,null,{"$f":"IFERROR(VLOOKUP(B1204,Liste!M:N,2,FALSE),\"\")","v":""}]
[null,null,{"$f":"IFERROR(VLOOKUP(B1205,Liste!M:N,2,FALSE),\"\")","v":""}]
[null,null,{"$f":"IFERROR(VLOOKUP(B1206,Liste!M:N,2,FALSE),\"\")","v":""}]
[null,null,{"$f":"IFERROR(VLOOKUP(B1207,Liste!M:N,2,FALSE),\"\")","v":""}]
[null,null,{"$f":"IFERROR(VLOOKUP(B1208,Liste!M:N,2,FALSE),\"\")","v":""}]
[null,null,{"$f":"IFERROR(VLOOKUP(B1209,Liste!M:N,2,FALSE),\"\")","v":""}]
[null,null,{"$f":"IFERROR(VLOOKUP(B1210,Liste!M:N,2,FALSE),\"\")","v":""}]
[null,null,{"$f":"IFERROR(VLOOKUP(B1211,Liste!M:N,2,FALSE),\"\")","v":""}]
[null,null,{"$f":"IFERROR(VLOOKUP(B1212,Liste!M:N,2,FALSE),\"\")","v":""}]
[null,null,{"$f":"IFERROR(VLOOKUP(B1213,Liste!M:N,2,FALSE),\"\")","v":""}]
[null,null,{"$f":"IFERROR(VLOOKUP(B1214,Liste!M:N,2,FALSE),\"\")","v":""}]
[null,null,{"$f":"IFERROR(VLOOKUP(B1215,Liste!M:N,2,FALSE),\"\")","v":""}]
[null,null,{"$f":"IFERROR(VLOOKUP(B1216,Liste!M:N,2,FALSE),\"\")","v":""}]
[null,null,{"$f":"IFERROR(VLOOKUP(B1217,Liste!M:N,2,FALSE),\"\")","v":""}]
[null,null,{"$f":"IFERROR(VLOOKUP(B1218,Liste!M:N,2,FALSE),\"\")","v":""}]
[null,null,{"$f":"IFERROR(VLOOKUP(B1219,Liste!M:N,2,FALSE),\"\")","v":""}]
[null,null,{"$f":"IFERROR(VLOOKUP(B1220,Liste!M:N,2,FALSE),\"\")","v":""}]
[null,null,{"$f":"IFERROR(VLOOKUP(B1221,Liste!M:N,2,FALSE),\"\")","v":""}]
[null,null,{"$f":"IFERROR(VLOOKUP(B1222,Liste!M:N,2,FALSE),\"\")","v":""}]
[null,null,{"$f":"IFERROR(VLOOKUP(B1223,Liste!M:N,2,FALSE),\"\")","v":""}]
[null,null,{"$f":"IFERROR(VLOOKUP(B1224,Liste!M:N,2,FALSE),\"\")","v":""}]
[null,null,{"$f":"IFERROR(VLOOKUP(B1225,Liste!M:N,2,FALSE),\"\")","v":""}]
[null,null,{"$f":"IFERROR(VLOOKUP(B1226,Liste!M:N,2,FALSE),\"\")","v":""}]
[null,null,{"$f":"IFERROR(VLOOKUP(B1227,Liste!M:N,2,FALSE),\"\")","v":""}]
[null,null,{"$f":"IFERROR(VLOOKUP(B1228,Liste!M:N,2,FALSE),\"\")","v":""}]
[null,null,{"$f":"IFERROR(VLOOKUP(B1229,Liste!M:N,2,FALSE),\"\")","v":""}]
[null,null,{"$f":"IFERROR(VLOOKUP(B1230,Liste!M:N,2,FALSE),\"\")","v":""}]
[null,null,{"$f":"IFERROR(VLOOKUP(B1231,Liste!M:N,2,FALSE),\"\")","v":""}]
[null,null,{"$f":"IFERROR(VLOOKUP(B1232,Liste!M:N,2,FALSE),\"\")","v":""}]
[null,null,{"$f":"IFERROR(VLOOKUP(B1233,Liste!M:N,2,FALSE),\"\")","v":""}]
[null,null,{"$f":"IFERROR(VLOOKUP(B1234,Liste!M:N,2,FALSE),\"\")","v":""}]
[null,null,{"$f":"IFERROR(VLOOKUP(B1235,Liste!M:N,2,FALSE),\"\")","v":""}]
[null,null,{"$f":"IFERROR(VLOOKUP(B1236,Liste!M:N,2,FALSE),\"\")","v":""}]
[null,null,{"$f":"IFERROR(VLOOKUP(B1237,Liste!M:N,2,FALSE),\"\")","v":""}]
[null,null,{"$f":"IFERROR(VLOOKUP(B1238,Liste!M:N,2,FALSE),\"\")","v":""}]
[null,null,{"$f":"IFERROR(VLOOKUP(B1239,Liste!M:N,2,FALSE),\"\")","v":""}]
[null,null,{"$f":"IFERROR(VLOOKUP(B1240,Liste!M:N,2,FALSE),\"\")","v":""}]
[null,null,{"$f":"IFERROR(VLOOKUP(B1241,Liste!M:N,2,FALSE),\"\")","v":""}]
[null,null,{"$f":"IFERROR(VLOOKUP(B1242,Liste!M:N,2,FALSE),\"\")","v":""}]
[null,null,{"$f":"IFERROR(VLOOKUP(B1243,Liste!M:N,2,FALSE),\"\")","v":""}]
[null,null,{"$f":"IFERROR(VLOOKUP(B1244,Liste!M:N,2,FALSE),\"\")","v":""}]
[null,null,{"$f":"IFERROR(VLOOKUP(B1245,Liste!M:N,2,FALSE),\"\")","v":""}]
[null,null,{"$f":"IFERROR(VLOOKUP(B1246,Liste!M:N,2,FALSE),\"\")","v":""}]
[null,null,{"$f":"IFERROR(VLOOKUP(B1247,Liste!M:N,2,FALSE),\"\")","v":""}]
[null,null,{"$f":"IFERROR(VLOOKUP(B1248,Liste!M:N,2,FALSE),\"\")","v":""}]
[null,null,{"$f":"IFERROR(VLOOKUP(B1249,Liste!M:N,2,FALSE),\"\")","v":""}]
[null,null,{"$f":"IFERROR(VLOOKUP(B1250,Liste!M:N,2,FALSE),\"\")","v":""}]
[null,null,{"$f":"IFERROR(VLOOKUP(B1251,Liste!M:N,2,FALSE),\"\")","v":""}]
[null,null,{"$f":"IFERROR(VLOOKUP(B1252,Liste!M:N,2,FALSE),\"\")","v":""}]
[null,null,{"$f":"IFERROR(VLOOKUP(B1253,Liste!M:N,2,FALSE),\"\")","v":""}]
[null,null,{"$f":"IFERROR(VLOOKUP(B1254,Liste!M:N,2,FALSE),\"\")","v":""}]
[null,null,{"$f":"IFERROR(VLOOKUP(B1255,Liste!M:N,2,FALSE),\"\")","v":""}]
[null,null,{"$f":"IFERROR(VLOOKUP(B1256,Liste!M:N,2,FALSE),\"\")","v":""}]
[]
[]
[]
[]
[]
[]
[]
[]
[]
[]
[]
[]
[]
[]
[]
[]
[]
[]
[]
[]
[]
[]
[]
[]
[]
[]
[]
[]
[]
[]
[]
[]
[]
[]
[]
[]
[]
[]
[]
[]
[]
[]
[]
[]
[]
[]
[]
[]
[]
[]
[]
[]
[]
[]
[]
[]
[]
[]
[]
[]
[]
[]
[]
[]
[]
[]
[]
[]
[]
[]
[]
[]
[]
[]
[]
[]
[]
[]
[]
[]
[]
[]
[]
[]
[]
[]
[]
[]
[]
[]
[]
[]
[]
[null,null,{"$f":"IFERROR(VLOOKUP(B1350,Liste!M:N,2,FALSE),\"\")","v":""}]
[null,null,{"$f":"IFERROR(VLOOKUP(B1351,Liste!M:N,2,FALSE),\"\")","v":""}]
[null,null,{"$f":"IFERROR(VLOOKUP(B1352,Liste!M:N,2,FALSE),\"\")","v":""}]
[null,null,{"$f":"IFERROR(VLOOKUP(B1353,Liste!M:N,2,FALSE),\"\")","v":""}]
[null,null,{"$f":"IFERROR(VLOOKUP(B1354,Liste!M:N,2,FALSE),\"\")","v":""}]
[null,null,{"$f":"IFERROR(VLOOKUP(B1355,Liste!M:N,2,FALSE),\"\")","v":""}]
[null,null,{"$f":"IFERROR(VLOOKUP(B1356,Liste!M:N,2,FALSE),\"\")","v":""}]
[null,null,{"$f":"IFERROR(VLOOKUP(B1357,Liste!M:N,2,FALSE),\"\")","v":""}]
[null,null,{"$f":"IFERROR(VLOOKUP(B1358,Liste!M:N,2,FALSE),\"\")","v":""}]
[null,null,{"$f":"IFERROR(VLOOKUP(B1359,Liste!M:N,2,FALSE),\"\")","v":""}]
[null,null,{"$f":"IFERROR(VLOOKUP(B1360,Liste!M:N,2,FALSE),\"\")","v":""}]
[null,null,{"$f":"IFERROR(VLOOKUP(B1361,Liste!M:N,2,FALSE),\"\")","v":""}]
[null,null,{"$f":"IFERROR(VLOOKUP(B1362,Liste!M:N,2,FALSE),\"\")","v":""}]
[null,null,{"$f":"IFERROR(VLOOKUP(B1363,Liste!M:N,2,FALSE),\"\")","v":""}]
[null,null,{"$f":"IFERROR(VLOOKUP(B1364,Liste!M:N,2,FALSE),\"\")","v":""}]
[null,null,{"$f":"IFERROR(VLOOKUP(B1365,Liste!M:N,2,FALSE),\"\")","v":""}]
[null,null,{"$f":"IFERROR(VLOOKUP(B1366,Liste!M:N,2,FALSE),\"\")","v":""}]
[null,null,{"$f":"IFERROR(VLOOKUP(B1367,Liste!M:N,2,FALSE),\"\")","v":""}]
[null,null,{"$f":"IFERROR(VLOOKUP(B1368,Liste!M:N,2,FALSE),\"\")","v":""}]
[null,null,{"$f":"IFERROR(VLOOKUP(B1369,Liste!M:N,2,FALSE),\"\")","v":""}]
[null,null,{"$f":"IFERROR(VLOOKUP(B1370,Liste!M:N,2,FALSE),\"\")","v":""}]
[null,null,{"$f":"IFERROR(VLOOKUP(B1371,Liste!M:N,2,FALSE),\"\")","v":""}]
[null,null,{"$f":"IFERROR(VLOOKUP(B1372,Liste!M:N,2,FALSE),\"\")","v":""}]
[null,null,{"$f":"IFERROR(VLOOKUP(B1373,Liste!M:N,2,FALSE),\"\")","v":""}]
[null,null,{"$f":"IFERROR(VLOOKUP(B1374,Liste!M:N,2,FALSE),\"\")","v":""}]
[null,null,{"$f":"IFERROR(VLOOKUP(B1375,Liste!M:N,2,FALSE),\"\")","v":""}]
[null,null,{"$f":"IFERROR(VLOOKUP(B1376,Liste!M:N,2,FALSE),\"\")","v":""}]
[null,null,{"$f":"IFERROR(VLOOKUP(B1377,Liste!M:N,2,FALSE),\"\")","v":""}]
[null,null,{"$f":"IFERROR(VLOOKUP(B1378,Liste!M:N,2,FALSE),\"\")","v":""}]
[null,null,{"$f":"IFERROR(VLOOKUP(B1379,Liste!M:N,2,FALSE),\"\")","v":""}]
[null,null,{"$f":"IFERROR(VLOOKUP(B1380,Liste!M:N,2,FALSE),\"\")","v":""}]
[null,null,{"$f":"IFERROR(VLOOKUP(B1381,Liste!M:N,2,FALSE),\"\")","v":""}]
[null,null,{"$f":"IFERROR(VLOOKUP(B1382,Liste!M:N,2,FALSE),\"\")","v":""}]
[null,null,{"$f":"IFERROR(VLOOKUP(B1383,Liste!M:N,2,FALSE),\"\")","v":""}]
[null,null,{"$f":"IFERROR(VLOOKUP(B1384,Liste!M:N,2,FALSE),\"\")","v":""}]
[null,null,{"$f":"IFERROR(VLOOKUP(B1385,Liste!M:N,2,FALSE),\"\")","v":""}]
[null,null,{"$f":"IFERROR(VLOOKUP(B1386,Liste!M:N,2,FALSE),\"\")","v":""}]
[null,null,{"$f":"IFERROR(VLOOKUP(B1387,Liste!M:N,2,FALSE),\"\")","v":""}]
[null,null,{"$f":"IFERROR(VLOOKUP(B1388,Liste!M:N,2,FALSE),\"\")","v":""}]
[null,null,{"$f":"IFERROR(VLOOKUP(B1389,Liste!M:N,2,FALSE),\"\")","v":""}]
[null,null,{"$f":"IFERROR(VLOOKUP(B1390,Liste!M:N,2,FALSE),\"\")","v":""}]
[null,null,{"$f":"IFERROR(VLOOKUP(B1391,Liste!M:N,2,FALSE),\"\")","v":""}]
[null,null,{"$f":"IFERROR(VLOOKUP(B1392,Liste!M:N,2,FALSE),\"\")","v":""}]
[null,null,{"$f":"IFERROR(VLOOKUP(B1393,Liste!M:N,2,FALSE),\"\")","v":""}]
[null,null,{"$f":"IFERROR(VLOOKUP(B1394,Liste!M:N,2,FALSE),\"\")","v":""}]
[null,null,{"$f":"IFERROR(VLOOKUP(B1395,Liste!M:N,2,FALSE),\"\")","v":""}]
[null,null,{"$f":"IFERROR(VLOOKUP(B1396,Liste!M:N,2,FALSE),\"\")","v":""}]
[null,null,{"$f":"IFERROR(VLOOKUP(B1397,Liste!M:N,2,FALSE),\"\")","v":""}]
[null,null,{"$f":"IFERROR(VLOOKUP(B1398,Liste!M:N,2,FALSE),\"\")","v":""}]
[null,null,{"$f":"IFERROR(VLOOKUP(B1399,Liste!M:N,2,FALSE),\"\")","v":""}]
[null,null,{"$f":"IFERROR(VLOOKUP(B1400,Liste!M:N,2,FALSE),\"\")","v":""}]
[null,null,{"$f":"IFERROR(VLOOKUP(B1401,Liste!M:N,2,FALSE),\"\")","v":""}]
[null,null,{"$f":"IFERROR(VLOOKUP(B1402,Liste!M:N,2,FALSE),\"\")","v":""}]
[null,null,{"$f":"IFERROR(VLOOKUP(B1403,Liste!M:N,2,FALSE),\"\")","v":""}]
[null,null,{"$f":"IFERROR(VLOOKUP(B1404,Liste!M:N,2,FALSE),\"\")","v":""}]
[null,null,{"$f":"IFERROR(VLOOKUP(B1405,Liste!M:N,2,FALSE),\"\")","v":""}]
[null,null,{"$f":"IFERROR(VLOOKUP(B1406,Liste!M:N,2,FALSE),\"\")","v":""}]

{"sheet":"BGAD1","index":3,"n_rows":72,"n_cols":7,"rows_kept":72,"cut":false,"hidden":false,"merged":[[67,0,67,6],[71,5,71,6],[0,0,0,5],[2,1,2,2],[3,1,3,2],[4,1,4,2],[5,0,5,4],[6,0,6,4]]}
["Déclaration de vidange des secteurs récoltés par BGAd ou PRAU"]
[]
["Année de récolte :"]
["Unité d'aménagement :"]
["Nom Du BGAd :"]
[]
["(insérer des lignes au besoin)"]
["Numéro de secteur d'intervention \nou \nNom du chantier","No client mesubois","Nom du BGA/PRAU détenteur du droit","Code d'essence","Qualité ","Volume estimé (m3)","coordonnéesGPS(WGS84)    no séquentiel shp"]
[null,null,{"$f":"IFERROR(VLOOKUP(B9,Liste!M:N,2,FALSE),\"\")","v":""}]
[null,null,{"$f":"IFERROR(VLOOKUP(B10,Liste!M:N,2,FALSE),\"\")","v":""}]
[null,null,{"$f":"IFERROR(VLOOKUP(B11,Liste!M:N,2,FALSE),\"\")","v":""}]
[null,null,{"$f":"IFERROR(VLOOKUP(B12,Liste!M:N,2,FALSE),\"\")","v":""}]
[null,null,{"$f":"IFERROR(VLOOKUP(B13,Liste!M:N,2,FALSE),\"\")","v":""}]
[null,null,{"$f":"IFERROR(VLOOKUP(B14,Liste!M:N,2,FALSE),\"\")","v":""}]
[null,null,{"$f":"IFERROR(VLOOKUP(B15,Liste!M:N,2,FALSE),\"\")","v":""}]
[null,null,{"$f":"IFERROR(VLOOKUP(B16,Liste!M:N,2,FALSE),\"\")","v":""}]
[null,null,{"$f":"IFERROR(VLOOKUP(B17,Liste!M:N,2,FALSE),\"\")","v":""}]
[null,null,{"$f":"IFERROR(VLOOKUP(B18,Liste!M:N,2,FALSE),\"\")","v":""}]
[null,null,{"$f":"IFERROR(VLOOKUP(B19,Liste!M:N,2,FALSE),\"\")","v":""}]
[null,null,{"$f":"IFERROR(VLOOKUP(B20,Liste!M:N,2,FALSE),\"\")","v":""}]
[null,null,{"$f":"IFERROR(VLOOKUP(B21,Liste!M:N,2,FALSE),\"\")","v":""}]
[null,null,{"$f":"IFERROR(VLOOKUP(B22,Liste!M:N,2,FALSE),\"\")","v":""}]
[null,null,{"$f":"IFERROR(VLOOKUP(B23,Liste!M:N,2,FALSE),\"\")","v":""}]
[null,null,{"$f":"IFERROR(VLOOKUP(B24,Liste!M:N,2,FALSE),\"\")","v":""}]
[null,null,{"$f":"IFERROR(VLOOKUP(B25,Liste!M:N,2,FALSE),\"\")","v":""}]
[null,null,{"$f":"IFERROR(VLOOKUP(B26,Liste!M:N,2,FALSE),\"\")","v":""}]
[null,null,{"$f":"IFERROR(VLOOKUP(B27,Liste!M:N,2,FALSE),\"\")","v":""}]
[null,null,{"$f":"IFERROR(VLOOKUP(B28,Liste!M:N,2,FALSE),\"\")","v":""}]
[null,null,{"$f":"IFERROR(VLOOKUP(B29,Liste!M:N,2,FALSE),\"\")","v":""}]
[null,null,{"$f":"IFERROR(VLOOKUP(B30,Liste!M:N,2,FALSE),\"\")","v":""}]
[null,null,{"$f":"IFERROR(VLOOKUP(B31,Liste!M:N,2,FALSE),\"\")","v":""}]
[null,null,{"$f":"IFERROR(VLOOKUP(B32,Liste!M:N,2,FALSE),\"\")","v":""}]
[null,null,{"$f":"IFERROR(VLOOKUP(B33,Liste!M:N,2,FALSE),\"\")","v":""}]
[null,null,{"$f":"IFERROR(VLOOKUP(B34,Liste!M:N,2,FALSE),\"\")","v":""}]
[null,null,{"$f":"IFERROR(VLOOKUP(B35,Liste!M:N,2,FALSE),\"\")","v":""}]
[null,null,{"$f":"IFERROR(VLOOKUP(B36,Liste!M:N,2,FALSE),\"\")","v":""}]
[null,null,{"$f":"IFERROR(VLOOKUP(B37,Liste!M:N,2,FALSE),\"\")","v":""}]
[null,null,{"$f":"IFERROR(VLOOKUP(B38,Liste!M:N,2,FALSE),\"\")","v":""}]
[null,null,{"$f":"IFERROR(VLOOKUP(B39,Liste!M:N,2,FALSE),\"\")","v":""}]
[null,null,{"$f":"IFERROR(VLOOKUP(B40,Liste!M:N,2,FALSE),\"\")","v":""}]
[null,null,{"$f":"IFERROR(VLOOKUP(B41,Liste!M:N,2,FALSE),\"\")","v":""}]
[null,null,{"$f":"IFERROR(VLOOKUP(B42,Liste!M:N,2,FALSE),\"\")","v":""}]
[null,null,{"$f":"IFERROR(VLOOKUP(B43,Liste!M:N,2,FALSE),\"\")","v":""}]
[null,null,{"$f":"IFERROR(VLOOKUP(B44,Liste!M:N,2,FALSE),\"\")","v":""}]
[null,null,{"$f":"IFERROR(VLOOKUP(B45,Liste!M:N,2,FALSE),\"\")","v":""}]
[null,null,{"$f":"IFERROR(VLOOKUP(B46,Liste!M:N,2,FALSE),\"\")","v":""}]
[null,null,{"$f":"IFERROR(VLOOKUP(B47,Liste!M:N,2,FALSE),\"\")","v":""}]
[null,null,{"$f":"IFERROR(VLOOKUP(B48,Liste!M:N,2,FALSE),\"\")","v":""}]
[null,null,{"$f":"IFERROR(VLOOKUP(B49,Liste!M:N,2,FALSE),\"\")","v":""}]
[null,null,{"$f":"IFERROR(VLOOKUP(B50,Liste!M:N,2,FALSE),\"\")","v":""}]
[null,null,{"$f":"IFERROR(VLOOKUP(B51,Liste!M:N,2,FALSE),\"\")","v":""}]
[null,null,{"$f":"IFERROR(VLOOKUP(B52,Liste!M:N,2,FALSE),\"\")","v":""}]
[null,null,{"$f":"IFERROR(VLOOKUP(B53,Liste!M:N,2,FALSE),\"\")","v":""}]
[null,null,{"$f":"IFERROR(VLOOKUP(B54,Liste!M:N,2,FALSE),\"\")","v":""}]
[null,null,{"$f":"IFERROR(VLOOKUP(B55,Liste!M:N,2,FALSE),\"\")","v":""}]
[null,null,{"$f":"IFERROR(VLOOKUP(B56,Liste!M:N,2,FALSE),\"\")","v":""}]
[null,null,{"$f":"IFERROR(VLOOKUP(B57,Liste!M:N,2,FALSE),\"\")","v":""}]
[null,null,{"$f":"IFERROR(VLOOKUP(B58,Liste!M:N,2,FALSE),\"\")","v":""}]
[null,null,{"$f":"IFERROR(VLOOKUP(B59,Liste!M:N,2,FALSE),\"\")","v":""}]
[null,null,{"$f":"IFERROR(VLOOKUP(B60,Liste!M:N,2,FALSE),\"\")","v":""}]
[null,null,{"$f":"IFERROR(VLOOKUP(B61,Liste!M:N,2,FALSE),\"\")","v":""}]
[null,null,{"$f":"IFERROR(VLOOKUP(B62,Liste!M:N,2,FALSE),\"\")","v":""}]
[null,null,{"$f":"IFERROR(VLOOKUP(B63,Liste!M:N,2,FALSE),\"\")","v":""}]
[null,null,{"$f":"IFERROR(VLOOKUP(B64,Liste!M:N,2,FALSE),\"\")","v":""}]
[null,null,{"$f":"IFERROR(VLOOKUP(B65,Liste!M:N,2,FALSE),\"\")","v":""}]
[]
[]
["Je déclare que les volumes identifiés dans ce rapport sont encore en forêt ou, le cas échéant, que la vidange de ces secteurs est complété dans l’unité d’aménagement visée par cette déclaration pour l’année d’exploitation visée."]
[]
["Représentant du BGA :"]
[]
["Signature :",null,null,null,"Date :"]

{"sheet":"BGAD2","index":4,"n_rows":72,"n_cols":7,"rows_kept":72,"cut":false,"hidden":false,"merged":[[67,0,67,6],[71,5,71,6],[0,0,0,5],[2,1,2,2],[3,1,3,2],[4,1,4,2],[5,0,5,4],[6,0,6,4]]}
["Déclaration de vidange des secteurs récoltés par BGAd ou PRAU"]
[]
["Année de récolte :"]
["Unité d'aménagement :"]
["Nom Du BGAd :"]
[]
["(insérer des lignes au besoin)"]
["Numéro de secteur d'intervention \nou \nNom du chantier","No client mesubois","Nom du BGA/PRAU détenteur du droit","Code d'essence","Qualité ","Volume estimé (m3)","coordonnéesGPS(WGS84)    no séquentiel shp"]
[null,null,{"$f":"IFERROR(VLOOKUP(B9,Liste!M:N,2,FALSE),\"\")","v":""}]
[null,null,{"$f":"IFERROR(VLOOKUP(B10,Liste!M:N,2,FALSE),\"\")","v":""}]
[null,null,{"$f":"IFERROR(VLOOKUP(B11,Liste!M:N,2,FALSE),\"\")","v":""}]
[null,null,{"$f":"IFERROR(VLOOKUP(B12,Liste!M:N,2,FALSE),\"\")","v":""}]
[null,null,{"$f":"IFERROR(VLOOKUP(B13,Liste!M:N,2,FALSE),\"\")","v":""}]
[null,null,{"$f":"IFERROR(VLOOKUP(B14,Liste!M:N,2,FALSE),\"\")","v":""}]
[null,null,{"$f":"IFERROR(VLOOKUP(B15,Liste!M:N,2,FALSE),\"\")","v":""}]
[null,null,{"$f":"IFERROR(VLOOKUP(B16,Liste!M:N,2,FALSE),\"\")","v":""}]
[null,null,{"$f":"IFERROR(VLOOKUP(B17,Liste!M:N,2,FALSE),\"\")","v":""}]
[null,null,{"$f":"IFERROR(VLOOKUP(B18,Liste!M:N,2,FALSE),\"\")","v":""}]
[null,null,{"$f":"IFERROR(VLOOKUP(B19,Liste!M:N,2,FALSE),\"\")","v":""}]
[null,null,{"$f":"IFERROR(VLOOKUP(B20,Liste!M:N,2,FALSE),\"\")","v":""}]
[null,null,{"$f":"IFERROR(VLOOKUP(B21,Liste!M:N,2,FALSE),\"\")","v":""}]
[null,null,{"$f":"IFERROR(VLOOKUP(B22,Liste!M:N,2,FALSE),\"\")","v":""}]
[null,null,{"$f":"IFERROR(VLOOKUP(B23,Liste!M:N,2,FALSE),\"\")","v":""}]
[null,null,{"$f":"IFERROR(VLOOKUP(B24,Liste!M:N,2,FALSE),\"\")","v":""}]
[null,null,{"$f":"IFERROR(VLOOKUP(B25,Liste!M:N,2,FALSE),\"\")","v":""}]
[null,null,{"$f":"IFERROR(VLOOKUP(B26,Liste!M:N,2,FALSE),\"\")","v":""}]
[null,null,{"$f":"IFERROR(VLOOKUP(B27,Liste!M:N,2,FALSE),\"\")","v":""}]
[null,null,{"$f":"IFERROR(VLOOKUP(B28,Liste!M:N,2,FALSE),\"\")","v":""}]
[null,null,{"$f":"IFERROR(VLOOKUP(B29,Liste!M:N,2,FALSE),\"\")","v":""}]
[null,null,{"$f":"IFERROR(VLOOKUP(B30,Liste!M:N,2,FALSE),\"\")","v":""}]
[null,null,{"$f":"IFERROR(VLOOKUP(B31,Liste!M:N,2,FALSE),\"\")","v":""}]
[null,null,{"$f":"IFERROR(VLOOKUP(B32,Liste!M:N,2,FALSE),\"\")","v":""}]
[null,null,{"$f":"IFERROR(VLOOKUP(B33,Liste!M:N,2,FALSE),\"\")","v":""}]
[null,null,{"$f":"IFERROR(VLOOKUP(B34,Liste!M:N,2,FALSE),\"\")","v":""}]
[null,null,{"$f":"IFERROR(VLOOKUP(B35,Liste!M:N,2,FALSE),\"\")","v":""}]
[null,null,{"$f":"IFERROR(VLOOKUP(B36,Liste!M:N,2,FALSE),\"\")","v":""}]
[null,null,{"$f":"IFERROR(VLOOKUP(B37,Liste!M:N,2,FALSE),\"\")","v":""}]
[null,null,{"$f":"IFERROR(VLOOKUP(B38,Liste!M:N,2,FALSE),\"\")","v":""}]
[null,null,{"$f":"IFERROR(VLOOKUP(B39,Liste!M:N,2,FALSE),\"\")","v":""}]
[null,null,{"$f":"IFERROR(VLOOKUP(B40,Liste!M:N,2,FALSE),\"\")","v":""}]
[null,null,{"$f":"IFERROR(VLOOKUP(B41,Liste!M:N,2,FALSE),\"\")","v":""}]
[null,null,{"$f":"IFERROR(VLOOKUP(B42,Liste!M:N,2,FALSE),\"\")","v":""}]
[null,null,{"$f":"IFERROR(VLOOKUP(B43,Liste!M:N,2,FALSE),\"\")","v":""}]
[null,null,{"$f":"IFERROR(VLOOKUP(B44,Liste!M:N,2,FALSE),\"\")","v":""}]
[null,null,{"$f":"IFERROR(VLOOKUP(B45,Liste!M:N,2,FALSE),\"\")","v":""}]
[null,null,{"$f":"IFERROR(VLOOKUP(B46,Liste!M:N,2,FALSE),\"\")","v":""}]
[null,null,{"$f":"IFERROR(VLOOKUP(B47,Liste!M:N,2,FALSE),\"\")","v":""}]
[null,null,{"$f":"IFERROR(VLOOKUP(B48,Liste!M:N,2,FALSE),\"\")","v":""}]
[null,null,{"$f":"IFERROR(VLOOKUP(B49,Liste!M:N,2,FALSE),\"\")","v":""}]
[null,null,{"$f":"IFERROR(VLOOKUP(B50,Liste!M:N,2,FALSE),\"\")","v":""}]
[null,null,{"$f":"IFERROR(VLOOKUP(B51,Liste!M:N,2,FALSE),\"\")","v":""}]
[null,null,{"$f":"IFERROR(VLOOKUP(B52,Liste!M:N,2,FALSE),\"\")","v":""}]
[null,null,{"$f":"IFERROR(VLOOKUP(B53,Liste!M:N,2,FALSE),\"\")","v":""}]
[null,null,{"$f":"IFERROR(VLOOKUP(B54,Liste!M:N,2,FALSE),\"\")","v":""}]
[null,null,{"$f":"IFERROR(VLOOKUP(B55,Liste!M:N,2,FALSE),\"\")","v":""}]
[null,null,{"$f":"IFERROR(VLOOKUP(B56,Liste!M:N,2,FALSE),\"\")","v":""}]
[null,null,{"$f":"IFERROR(VLOOKUP(B57,Liste!M:N,2,FALSE),\"\")","v":""}]
[null,null,{"$f":"IFERROR(VLOOKUP(B58,Liste!M:N,2,FALSE),\"\")","v":""}]
[null,null,{"$f":"IFERROR(VLOOKUP(B59,Liste!M:N,2,FALSE),\"\")","v":""}]
[null,null,{"$f":"IFERROR(VLOOKUP(B60,Liste!M:N,2,FALSE),\"\")","v":""}]
[null,null,{"$f":"IFERROR(VLOOKUP(B61,Liste!M:N,2,FALSE),\"\")","v":""}]
[null,null,{"$f":"IFERROR(VLOOKUP(B62,Liste!M:N,2,FALSE),\"\")","v":""}]
[null,null,{"$f":"IFERROR(VLOOKUP(B63,Liste!M:N,2,FALSE),\"\")","v":""}]
[null,null,{"$f":"IFERROR(VLOOKUP(B64,Liste!M:N,2,FALSE),\"\")","v":""}]
[null,null,{"$f":"IFERROR(VLOOKUP(B65,Liste!M:N,2,FALSE),\"\")","v":""}]
[]
[]
["Je déclare que les volumes identifiés dans ce rapport sont encore en forêt ou, le cas échéant, que la vidange de ces secteurs est complété dans l’unité d’aménagement visée par cette déclaration pour l’année d’exploitation visée."]
[]
["Représentant du BGA :"]
[]
["Signature :",null,null,null,"Date :"]

{"sheet":"BGAD3","index":5,"n_rows":72,"n_cols":7,"rows_kept":72,"cut":false,"hidden":false,"merged":[[67,0,67,6],[71,5,71,6],[0,0,0,5],[2,1,2,2],[3,1,3,2],[4,1,4,2],[5,0,5,4],[6,0,6,4]]}
["Déclaration de vidange des secteurs récoltés par BGAd ou PRAU"]
[]
["Année de récolte :"]
["Unité d'aménagement :"]
["Nom Du BGAd :"]
[]
["(insérer des lignes au besoin)"]
["Numéro de secteur d'intervention \nou \nNom du chantier","No client mesubois","Nom du BGA/PRAU détenteur du droit","Code d'essence","Qualité ","Volume estimé (m3)","coordonnéesGPS(WGS84)    no séquentiel shp"]
[null,null,{"$f":"IFERROR(VLOOKUP(B9,Liste!M:N,2,FALSE),\"\")","v":""}]
[null,null,{"$f":"IFERROR(VLOOKUP(B10,Liste!M:N,2,FALSE),\"\")","v":""}]
[null,null,{"$f":"IFERROR(VLOOKUP(B11,Liste!M:N,2,FALSE),\"\")","v":""}]
[null,null,{"$f":"IFERROR(VLOOKUP(B12,Liste!M:N,2,FALSE),\"\")","v":""}]
[null,null,{"$f":"IFERROR(VLOOKUP(B13,Liste!M:N,2,FALSE),\"\")","v":""}]
[null,null,{"$f":"IFERROR(VLOOKUP(B14,Liste!M:N,2,FALSE),\"\")","v":""}]
[null,null,{"$f":"IFERROR(VLOOKUP(B15,Liste!M:N,2,FALSE),\"\")","v":""}]
[null,null,{"$f":"IFERROR(VLOOKUP(B16,Liste!M:N,2,FALSE),\"\")","v":""}]
[null,null,{"$f":"IFERROR(VLOOKUP(B17,Liste!M:N,2,FALSE),\"\")","v":""}]
[null,null,{"$f":"IFERROR(VLOOKUP(B18,Liste!M:N,2,FALSE),\"\")","v":""}]
[null,null,{"$f":"IFERROR(VLOOKUP(B19,Liste!M:N,2,FALSE),\"\")","v":""}]
[null,null,{"$f":"IFERROR(VLOOKUP(B20,Liste!M:N,2,FALSE),\"\")","v":""}]
[null,null,{"$f":"IFERROR(VLOOKUP(B21,Liste!M:N,2,FALSE),\"\")","v":""}]
[null,null,{"$f":"IFERROR(VLOOKUP(B22,Liste!M:N,2,FALSE),\"\")","v":""}]
[null,null,{"$f":"IFERROR(VLOOKUP(B23,Liste!M:N,2,FALSE),\"\")","v":""}]
[null,null,{"$f":"IFERROR(VLOOKUP(B24,Liste!M:N,2,FALSE),\"\")","v":""}]
[null,null,{"$f":"IFERROR(VLOOKUP(B25,Liste!M:N,2,FALSE),\"\")","v":""}]
[null,null,{"$f":"IFERROR(VLOOKUP(B26,Liste!M:N,2,FALSE),\"\")","v":""}]
[null,null,{"$f":"IFERROR(VLOOKUP(B27,Liste!M:N,2,FALSE),\"\")","v":""}]
[null,null,{"$f":"IFERROR(VLOOKUP(B28,Liste!M:N,2,FALSE),\"\")","v":""}]
[null,null,{"$f":"IFERROR(VLOOKUP(B29,Liste!M:N,2,FALSE),\"\")","v":""}]
[null,null,{"$f":"IFERROR(VLOOKUP(B30,Liste!M:N,2,FALSE),\"\")","v":""}]
[null,null,{"$f":"IFERROR(VLOOKUP(B31,Liste!M:N,2,FALSE),\"\")","v":""}]
[null,null,{"$f":"IFERROR(VLOOKUP(B32,Liste!M:N,2,FALSE),\"\")","v":""}]
[null,null,{"$f":"IFERROR(VLOOKUP(B33,Liste!M:N,2,FALSE),\"\")","v":""}]
[null,null,{"$f":"IFERROR(VLOOKUP(B34,Liste!M:N,2,FALSE),\"\")","v":""}]
[null,null,{"$f":"IFERROR(VLOOKUP(B35,Liste!M:N,2,FALSE),\"\")","v":""}]
[null,null,{"$f":"IFERROR(VLOOKUP(B36,Liste!M:N,2,FALSE),\"\")","v":""}]
[null,null,{"$f":"IFERROR(VLOOKUP(B37,Liste!M:N,2,FALSE),\"\")","v":""}]
[null,null,{"$f":"IFERROR(VLOOKUP(B38,Liste!M:N,2,FALSE),\"\")","v":""}]
[null,null,{"$f":"IFERROR(VLOOKUP(B39,Liste!M:N,2,FALSE),\"\")","v":""}]
[null,null,{"$f":"IFERROR(VLOOKUP(B40,Liste!M:N,2,FALSE),\"\")","v":""}]
[null,null,{"$f":"IFERROR(VLOOKUP(B41,Liste!M:N,2,FALSE),\"\")","v":""}]
[null,null,{"$f":"IFERROR(VLOOKUP(B42,Liste!M:N,2,FALSE),\"\")","v":""}]
[null,null,{"$f":"IFERROR(VLOOKUP(B43,Liste!M:N,2,FALSE),\"\")","v":""}]
[null,null,{"$f":"IFERROR(VLOOKUP(B44,Liste!M:N,2,FALSE),\"\")","v":""}]
[null,null,{"$f":"IFERROR(VLOOKUP(B45,Liste!M:N,2,FALSE),\"\")","v":""}]
[null,null,{"$f":"IFERROR(VLOOKUP(B46,Liste!M:N,2,FALSE),\"\")","v":""}]
[null,null,{"$f":"IFERROR(VLOOKUP(B47,Liste!M:N,2,FALSE),\"\")","v":""}]
[null,null,{"$f":"IFERROR(VLOOKUP(B48,Liste!M:N,2,FALSE),\"\")","v":""}]
[null,null,{"$f":"IFERROR(VLOOKUP(B49,Liste!M:N,2,FALSE),\"\")","v":""}]
[null,null,{"$f":"IFERROR(VLOOKUP(B50,Liste!M:N,2,FALSE),\"\")","v":""}]
[null,null,{"$f":"IFERROR(VLOOKUP(B51,Liste!M:N,2,FALSE),\"\")","v":""}]
[null,null,{"$f":"IFERROR(VLOOKUP(B52,Liste!M:N,2,FALSE),\"\")","v":""}]
[null,null,{"$f":"IFERROR(VLOOKUP(B53,Liste!M:N,2,FALSE),\"\")","v":""}]
[null,null,{"$f":"IFERROR(VLOOKUP(B54,Liste!M:N,2,FALSE),\"\")","v":""}]
[null,null,{"$f":"IFERROR(VLOOKUP(B55,Liste!M:N,2,FALSE),\"\")","v":""}]
[null,null,{"$f":"IFERROR(VLOOKUP(B56,Liste!M:N,2,FALSE),\"\")","v":""}]
[null,null,{"$f":"IFERROR(VLOOKUP(B57,Liste!M:N,2,FALSE),\"\")","v":""}]
[null,null,{"$f":"IFERROR(VLOOKUP(B58,Liste!M:N,2,FALSE),\"\")","v":""}]
[null,null,{"$f":"IFERROR(VLOOKUP(B59,Liste!M:N,2,FALSE),\"\")","v":""}]
[null,null,{"$f":"IFERROR(VLOOKUP(B60,Liste!M:N,2,FALSE),\"\")","v":""}]
[null,null,{"$f":"IFERROR(VLOOKUP(B61,Liste!M:N,2,FALSE),\"\")","v":""}]
[null,null,{"$f":"IFERROR(VLOOKUP(B62,Liste!M:N,2,FALSE),\"\")","v":""}]
[null,null,{"$f":"IFERROR(VLOOKUP(B63,Liste!M:N,2,FALSE),\"\")","v":""}]
[null,null,{"$f":"IFERROR(VLOOKUP(B64,Liste!M:N,2,FALSE),\"\")","v":""}]
[null,null,{"$f":"IFERROR(VLOOKUP(B65,Liste!M:N,2,FALSE),\"\")","v":""}]
[]
[]
["Je déclare que les volumes identifiés dans ce rapport sont encore en forêt ou, le cas échéant, que la vidange de ces secteurs est complété dans l’unité d’aménagement visée par cette déclaration pour l’année d’exploitation visée."]
[]
["Représentant du BGA :"]
[]
["Signature :",null,null,null,"Date :"]

{"sheet":"BGAD4","index":6,"n_rows":72,"n_cols":7,"rows_kept":72,"cut":false,"hidden":false,"merged":[[67,0,67,6],[71,5,71,6],[0,0,0,5],[2,1,2,2],[3,1,3,2],[4,1,4,2],[5,0,5,4],[6,0,6,4]]}
["Déclaration de vidange des secteurs récoltés par BGAd ou PRAU"]
[]
["Année de récolte :"]
["Unité d'aménagement :"]
["Nom Du BGAd :"]
[]
["(insérer des lignes au besoin)"]
["Numéro de secteur d'intervention \nou \nNom du chantier","No client mesubois","Nom du BGA/PRAU détenteur du droit","Code d'essence","Qualité ","Volume estimé (m3)","coordonnéesGPS(WGS84)    no séquentiel shp"]
[null,null,{"$f":"IFERROR(VLOOKUP(B9,Liste!M:N,2,FALSE),\"\")","v":""}]
[null,null,{"$f":"IFERROR(VLOOKUP(B10,Liste!M:N,2,FALSE),\"\")","v":""}]
[null,null,{"$f":"IFERROR(VLOOKUP(B11,Liste!M:N,2,FALSE),\"\")","v":""}]
[null,null,{"$f":"IFERROR(VLOOKUP(B12,Liste!M:N,2,FALSE),\"\")","v":""}]
[null,null,{"$f":"IFERROR(VLOOKUP(B13,Liste!M:N,2,FALSE),\"\")","v":""}]
[null,null,{"$f":"IFERROR(VLOOKUP(B14,Liste!M:N,2,FALSE),\"\")","v":""}]
[null,null,{"$f":"IFERROR(VLOOKUP(B15,Liste!M:N,2,FALSE),\"\")","v":""}]
[null,null,{"$f":"IFERROR(VLOOKUP(B16,Liste!M:N,2,FALSE),\"\")","v":""}]
[null,null,{"$f":"IFERROR(VLOOKUP(B17,Liste!M:N,2,FALSE),\"\")","v":""}]
[null,null,{"$f":"IFERROR(VLOOKUP(B18,Liste!M:N,2,FALSE),\"\")","v":""}]
[null,null,{"$f":"IFERROR(VLOOKUP(B19,Liste!M:N,2,FALSE),\"\")","v":""}]
[null,null,{"$f":"IFERROR(VLOOKUP(B20,Liste!M:N,2,FALSE),\"\")","v":""}]
[null,null,{"$f":"IFERROR(VLOOKUP(B21,Liste!M:N,2,FALSE),\"\")","v":""}]
[null,null,{"$f":"IFERROR(VLOOKUP(B22,Liste!M:N,2,FALSE),\"\")","v":""}]
[null,null,{"$f":"IFERROR(VLOOKUP(B23,Liste!M:N,2,FALSE),\"\")","v":""}]
[null,null,{"$f":"IFERROR(VLOOKUP(B24,Liste!M:N,2,FALSE),\"\")","v":""}]
[null,null,{"$f":"IFERROR(VLOOKUP(B25,Liste!M:N,2,FALSE),\"\")","v":""}]
[null,null,{"$f":"IFERROR(VLOOKUP(B26,Liste!M:N,2,FALSE),\"\")","v":""}]
[null,null,{"$f":"IFERROR(VLOOKUP(B27,Liste!M:N,2,FALSE),\"\")","v":""}]
[null,null,{"$f":"IFERROR(VLOOKUP(B28,Liste!M:N,2,FALSE),\"\")","v":""}]
[null,null,{"$f":"IFERROR(VLOOKUP(B29,Liste!M:N,2,FALSE),\"\")","v":""}]
[null,null,{"$f":"IFERROR(VLOOKUP(B30,Liste!M:N,2,FALSE),\"\")","v":""}]
[null,null,{"$f":"IFERROR(VLOOKUP(B31,Liste!M:N,2,FALSE),\"\")","v":""}]
[null,null,{"$f":"IFERROR(VLOOKUP(B32,Liste!M:N,2,FALSE),\"\")","v":""}]
[null,null,{"$f":"IFERROR(VLOOKUP(B33,Liste!M:N,2,FALSE),\"\")","v":""}]
[null,null,{"$f":"IFERROR(VLOOKUP(B34,Liste!M:N,2,FALSE),\"\")","v":""}]
[null,null,{"$f":"IFERROR(VLOOKUP(B35,Liste!M:N,2,FALSE),\"\")","v":""}]
[null,null,{"$f":"IFERROR(VLOOKUP(B36,Liste!M:N,2,FALSE),\"\")","v":""}]
[null,null,{"$f":"IFERROR(VLOOKUP(B37,Liste!M:N,2,FALSE),\"\")","v":""}]
[null,null,{"$f":"IFERROR(VLOOKUP(B38,Liste!M:N,2,FALSE),\"\")","v":""}]
[null,null,{"$f":"IFERROR(VLOOKUP(B39,Liste!M:N,2,FALSE),\"\")","v":""}]
[null,null,{"$f":"IFERROR(VLOOKUP(B40,Liste!M:N,2,FALSE),\"\")","v":""}]
[null,null,{"$f":"IFERROR(VLOOKUP(B41,Liste!M:N,2,FALSE),\"\")","v":""}]
[null,null,{"$f":"IFERROR(VLOOKUP(B42,Liste!M:N,2,FALSE),\"\")","v":""}]
[null,null,{"$f":"IFERROR(VLOOKUP(B43,Liste!M:N,2,FALSE),\"\")","v":""}]
[null,null,{"$f":"IFERROR(VLOOKUP(B44,Liste!M:N,2,FALSE),\"\")","v":""}]
[null,null,{"$f":"IFERROR(VLOOKUP(B45,Liste!M:N,2,FALSE),\"\")","v":""}]
[null,null,{"$f":"IFERROR(VLOOKUP(B46,Liste!M:N,2,FALSE),\"\")","v":""}]
[null,null,{"$f":"IFERROR(VLOOKUP(B47,Liste!M:N,2,FALSE),\"\")","v":""}]
[null,null,{"$f":"IFERROR(VLOOKUP(B48,Liste!M:N,2,FALSE),\"\")","v":""}]
[null,null,{"$f":"IFERROR(VLOOKUP(B49,Liste!M:N,2,FALSE),\"\")","v":""}]
[null,null,{"$f":"IFERROR(VLOOKUP(B50,Liste!M:N,2,FALSE),\"\")","v":""}]
[null,null,{"$f":"IFERROR(VLOOKUP(B51,Liste!M:N,2,FALSE),\"\")","v":""}]
[null,null,{"$f":"IFERROR(VLOOKUP(B52,Liste!M:N,2,FALSE),\"\")","v":""}]
[null,null,{"$f":"IFERROR(VLOOKUP(B53,Liste!M:N,2,FALSE),\"\")","v":""}]
[null,null,{"$f":"IFERROR(VLOOKUP(B54,Liste!M:N,2,FALSE),\"\")","v":""}]
[null,null,{"$f":"IFERROR(VLOOKUP(B55,Liste!M:N,2,FALSE),\"\")","v":""}]
[null,null,{"$f":"IFERROR(VLOOKUP(B56,Liste!M:N,2,FALSE),\"\")","v":""}]
[null,null,{"$f":"IFERROR(VLOOKUP(B57,Liste!M:N,2,FALSE),\"\")","v":""}]
[null,null,{"$f":"IFERROR(VLOOKUP(B58,Liste!M:N,2,FALSE),\"\")","v":""}]
[null,null,{"$f":"IFERROR(VLOOKUP(B59,Liste!M:N,2,FALSE),\"\")","v":""}]
[null,null,{"$f":"IFERROR(VLOOKUP(B60,Liste!M:N,2,FALSE),\"\")","v":""}]
[null,null,{"$f":"IFERROR(VLOOKUP(B61,Liste!M:N,2,FALSE),\"\")","v":""}]
[null,null,{"$f":"IFERROR(VLOOKUP(B62,Liste!M:N,2,FALSE),\"\")","v":""}]
[null,null,{"$f":"IFERROR(VLOOKUP(B63,Liste!M:N,2,FALSE),\"\")","v":""}]
[null,null,{"$f":"IFERROR(VLOOKUP(B64,Liste!M:N,2,FALSE),\"\")","v":""}]
[null,null,{"$f":"IFERROR(VLOOKUP(B65,Liste!M:N,2,FALSE),\"\")","v":""}]
[]
[]
["Je déclare que les volumes identifiés dans ce rapport sont encore en forêt ou, le cas échéant, que la vidange de ces secteurs est complété dans l’unité d’aménagement visée par cette déclaration pour l’année d’exploitation visée."]
[]
["Représentant du BGA :"]
[]
["Signature :",null,null,null,"Date :"]

{"sheet":"BGAD5","index":7,"n_rows":72,"n_cols":7,"rows_kept":72,"cut":false,"hidden":false,"merged":[[67,0,67,6],[71,5,71,6],[0,0,0,5],[2,1,2,2],[3,1,3,2],[4,1,4,2],[5,0,5,4],[6,0,6,4]]}
["Déclaration de vidange des secteurs récoltés par BGAd ou PRAU"]
[]
["Année de récolte :"]
["Unité d'aménagement :"]
["Nom Du BGAd :"]
[]
["(insérer des lignes au besoin)"]
["Numéro de secteur d'intervention \nou \nNom du chantier","No client mesubois","Nom du BGA/PRAU détenteur du droit","Code d'essence","Qualité ","Volume estimé (m3)","coordonnéesGPS(WGS84)    no séquentiel shp"]
[null,null,{"$f":"IFERROR(VLOOKUP(B9,Liste!M:N,2,FALSE),\"\")","v":""}]
[null,null,{"$f":"IFERROR(VLOOKUP(B10,Liste!M:N,2,FALSE),\"\")","v":""}]
[null,null,{"$f":"IFERROR(VLOOKUP(B11,Liste!M:N,2,FALSE),\"\")","v":""}]
[null,null,{"$f":"IFERROR(VLOOKUP(B12,Liste!M:N,2,FALSE),\"\")","v":""}]
[null,null,{"$f":"IFERROR(VLOOKUP(B13,Liste!M:N,2,FALSE),\"\")","v":""}]
[null,null,{"$f":"IFERROR(VLOOKUP(B14,Liste!M:N,2,FALSE),\"\")","v":""}]
[null,null,{"$f":"IFERROR(VLOOKUP(B15,Liste!M:N,2,FALSE),\"\")","v":""}]
[null,null,{"$f":"IFERROR(VLOOKUP(B16,Liste!M:N,2,FALSE),\"\")","v":""}]
[null,null,{"$f":"IFERROR(VLOOKUP(B17,Liste!M:N,2,FALSE),\"\")","v":""}]
[null,null,{"$f":"IFERROR(VLOOKUP(B18,Liste!M:N,2,FALSE),\"\")","v":""}]
[null,null,{"$f":"IFERROR(VLOOKUP(B19,Liste!M:N,2,FALSE),\"\")","v":""}]
[null,null,{"$f":"IFERROR(VLOOKUP(B20,Liste!M:N,2,FALSE),\"\")","v":""}]
[null,null,{"$f":"IFERROR(VLOOKUP(B21,Liste!M:N,2,FALSE),\"\")","v":""}]
[null,null,{"$f":"IFERROR(VLOOKUP(B22,Liste!M:N,2,FALSE),\"\")","v":""}]
[null,null,{"$f":"IFERROR(VLOOKUP(B23,Liste!M:N,2,FALSE),\"\")","v":""}]
[null,null,{"$f":"IFERROR(VLOOKUP(B24,Liste!M:N,2,FALSE),\"\")","v":""}]
[null,null,{"$f":"IFERROR(VLOOKUP(B25,Liste!M:N,2,FALSE),\"\")","v":""}]
[null,null,{"$f":"IFERROR(VLOOKUP(B26,Liste!M:N,2,FALSE),\"\")","v":""}]
[null,null,{"$f":"IFERROR(VLOOKUP(B27,Liste!M:N,2,FALSE),\"\")","v":""}]
[null,null,{"$f":"IFERROR(VLOOKUP(B28,Liste!M:N,2,FALSE),\"\")","v":""}]
[null,null,{"$f":"IFERROR(VLOOKUP(B29,Liste!M:N,2,FALSE),\"\")","v":""}]
[null,null,{"$f":"IFERROR(VLOOKUP(B30,Liste!M:N,2,FALSE),\"\")","v":""}]
[null,null,{"$f":"IFERROR(VLOOKUP(B31,Liste!M:N,2,FALSE),\"\")","v":""}]
[null,null,{"$f":"IFERROR(VLOOKUP(B32,Liste!M:N,2,FALSE),\"\")","v":""}]
[null,null,{"$f":"IFERROR(VLOOKUP(B33,Liste!M:N,2,FALSE),\"\")","v":""}]
[null,null,{"$f":"IFERROR(VLOOKUP(B34,Liste!M:N,2,FALSE),\"\")","v":""}]
[null,null,{"$f":"IFERROR(VLOOKUP(B35,Liste!M:N,2,FALSE),\"\")","v":""}]
[null,null,{"$f":"IFERROR(VLOOKUP(B36,Liste!M:N,2,FALSE),\"\")","v":""}]
[null,null,{"$f":"IFERROR(VLOOKUP(B37,Liste!M:N,2,FALSE),\"\")","v":""}]
[null,null,{"$f":"IFERROR(VLOOKUP(B38,Liste!M:N,2,FALSE),\"\")","v":""}]
[null,null,{"$f":"IFERROR(VLOOKUP(B39,Liste!M:N,2,FALSE),\"\")","v":""}]
[null,null,{"$f":"IFERROR(VLOOKUP(B40,Liste!M:N,2,FALSE),\"\")","v":""}]
[null,null,{"$f":"IFERROR(VLOOKUP(B41,Liste!M:N,2,FALSE),\"\")","v":""}]
[null,null,{"$f":"IFERROR(VLOOKUP(B42,Liste!M:N,2,FALSE),\"\")","v":""}]
[null,null,{"$f":"IFERROR(VLOOKUP(B43,Liste!M:N,2,FALSE),\"\")","v":""}]
[null,null,{"$f":"IFERROR(VLOOKUP(B44,Liste!M:N,2,FALSE),\"\")","v":""}]
[null,null,{"$f":"IFERROR(VLOOKUP(B45,Liste!M:N,2,FALSE),\"\")","v":""}]
[null,null,{"$f":"IFERROR(VLOOKUP(B46,Liste!M:N,2,FALSE),\"\")","v":""}]
[null,null,{"$f":"IFERROR(VLOOKUP(B47,Liste!M:N,2,FALSE),\"\")","v":""}]
[null,null,{"$f":"IFERROR(VLOOKUP(B48,Liste!M:N,2,FALSE),\"\")","v":""}]
[null,null,{"$f":"IFERROR(VLOOKUP(B49,Liste!M:N,2,FALSE),\"\")","v":""}]
[null,null,{"$f":"IFERROR(VLOOKUP(B50,Liste!M:N,2,FALSE),\"\")","v":""}]
[null,null,{"$f":"IFERROR(VLOOKUP(B51,Liste!M:N,2,FALSE),\"\")","v":""}]
[null,null,{"$f":"IFERROR(VLOOKUP(B52,Liste!M:N,2,FALSE),\"\")","v":""}]
[null,null,{"$f":"IFERROR(VLOOKUP(B53,Liste!M:N,2,FALSE),\"\")","v":""}]
[null,null,{"$f":"IFERROR(VLOOKUP(B54,Liste!M:N,2,FALSE),\"\")","v":""}]
[null,null,{"$f":"IFERROR(VLOOKUP(B55,Liste!M:N,2,FALSE),\"\")","v":""}]
[null,null,{"$f":"IFERROR(VLOOKUP(B56,Liste!M:N,2,FALSE),\"\")","v":""}]
[null,null,{"$f":"IFERROR(VLOOKUP(B57,Liste!M:N,2,FALSE),\"\")","v":""}]
[null,null,{"$f":"IFERROR(VLOOKUP(B58,Liste!M:N,2,FALSE),\"\")","v":""}]
[null,null,{"$f":"IFERROR(VLOOKUP(B59,Liste!M:N,2,FALSE),\"\")","v":""}]
[null,null,{"$f":"IFERROR(VLOOKUP(B60,Liste!M:N,2,FALSE),\"\")","v":""}]
[null,null,{"$f":"IFERROR(VLOOKUP(B61,Liste!M:N,2,FALSE),\"\")","v":""}]
[null,null,{"$f":"IFERROR(VLOOKUP(B62,Liste!M:N,2,FALSE),\"\")","v":""}]
[null,null,{"$f":"IFERROR(VLOOKUP(B63,Liste!M:N,2,FALSE),\"\")","v":""}]
[null,null,{"$f":"IFERROR(VLOOKUP(B64,Liste!M:N,2,FALSE),\"\")","v":""}]
[null,null,{"$f":"IFERROR(VLOOKUP(B65,Liste!M:N,2,FALSE),\"\")","v":""}]
[]
[]
["Je déclare que les volumes identifiés dans ce rapport sont encore en forêt ou, le cas échéant, que la vidange de ces secteurs est complété dans l’unité d’aménagement visée par cette déclaration pour l’année d’exploitation visée."]
[]
["Représentant du BGA :"]
[]
["Signature :",null,null,null,"Date :"]

{"sheet":"BGAD6","index":8,"n_rows":72,"n_cols":7,"rows_kept":72,"cut":false,"hidden":false,"merged":[[67,0,67,6],[71,5,71,6],[0,0,0,5],[2,1,2,2],[3,1,3,2],[4,1,4,2],[5,0,5,4],[6,0,6,4]]}
["Déclaration de vidange des secteurs récoltés par BGAd ou PRAU"]
[]
["Année de récolte :"]
["Unité d'aménagement :"]
["Nom Du BGAd :"]
[]
["(insérer des lignes au besoin)"]
["Numéro de secteur d'intervention \nou \nNom du chantier","No client mesubois","Nom du BGA/PRAU détenteur du droit","Code d'essence","Qualité ","Volume estimé (m3)","coordonnéesGPS(WGS84)    no séquentiel shp"]
[null,null,{"$f":"IFERROR(VLOOKUP(B9,Liste!M:N,2,FALSE),\"\")","v":""}]
[null,null,{"$f":"IFERROR(VLOOKUP(B10,Liste!M:N,2,FALSE),\"\")","v":""}]
[null,null,{"$f":"IFERROR(VLOOKUP(B11,Liste!M:N,2,FALSE),\"\")","v":""}]
[null,null,{"$f":"IFERROR(VLOOKUP(B12,Liste!M:N,2,FALSE),\"\")","v":""}]
[null,null,{"$f":"IFERROR(VLOOKUP(B13,Liste!M:N,2,FALSE),\"\")","v":""}]
[null,null,{"$f":"IFERROR(VLOOKUP(B14,Liste!M:N,2,FALSE),\"\")","v":""}]
[null,null,{"$f":"IFERROR(VLOOKUP(B15,Liste!M:N,2,FALSE),\"\")","v":""}]
[null,null,{"$f":"IFERROR(VLOOKUP(B16,Liste!M:N,2,FALSE),\"\")","v":""}]
[null,null,{"$f":"IFERROR(VLOOKUP(B17,Liste!M:N,2,FALSE),\"\")","v":""}]
[null,null,{"$f":"IFERROR(VLOOKUP(B18,Liste!M:N,2,FALSE),\"\")","v":""}]
[null,null,{"$f":"IFERROR(VLOOKUP(B19,Liste!M:N,2,FALSE),\"\")","v":""}]
[null,null,{"$f":"IFERROR(VLOOKUP(B20,Liste!M:N,2,FALSE),\"\")","v":""}]
[null,null,{"$f":"IFERROR(VLOOKUP(B21,Liste!M:N,2,FALSE),\"\")","v":""}]
[null,null,{"$f":"IFERROR(VLOOKUP(B22,Liste!M:N,2,FALSE),\"\")","v":""}]
[null,null,{"$f":"IFERROR(VLOOKUP(B23,Liste!M:N,2,FALSE),\"\")","v":""}]
[null,null,{"$f":"IFERROR(VLOOKUP(B24,Liste!M:N,2,FALSE),\"\")","v":""}]
[null,null,{"$f":"IFERROR(VLOOKUP(B25,Liste!M:N,2,FALSE),\"\")","v":""}]
[null,null,{"$f":"IFERROR(VLOOKUP(B26,Liste!M:N,2,FALSE),\"\")","v":""}]
[null,null,{"$f":"IFERROR(VLOOKUP(B27,Liste!M:N,2,FALSE),\"\")","v":""}]
[null,null,{"$f":"IFERROR(VLOOKUP(B28,Liste!M:N,2,FALSE),\"\")","v":""}]
[null,null,{"$f":"IFERROR(VLOOKUP(B29,Liste!M:N,2,FALSE),\"\")","v":""}]
[null,null,{"$f":"IFERROR(VLOOKUP(B30,Liste!M:N,2,FALSE),\"\")","v":""}]
[null,null,{"$f":"IFERROR(VLOOKUP(B31,Liste!M:N,2,FALSE),\"\")","v":""}]
[null,null,{"$f":"IFERROR(VLOOKUP(B32,Liste!M:N,2,FALSE),\"\")","v":""}]
[null,null,{"$f":"IFERROR(VLOOKUP(B33,Liste!M:N,2,FALSE),\"\")","v":""}]
[null,null,{"$f":"IFERROR(VLOOKUP(B34,Liste!M:N,2,FALSE),\"\")","v":""}]
[null,null,{"$f":"IFERROR(VLOOKUP(B35,Liste!M:N,2,FALSE),\"\")","v":""}]
[null,null,{"$f":"IFERROR(VLOOKUP(B36,Liste!M:N,2,FALSE),\"\")","v":""}]
[null,null,{"$f":"IFERROR(VLOOKUP(B37,Liste!M:N,2,FALSE),\"\")","v":""}]
[null,null,{"$f":"IFERROR(VLOOKUP(B38,Liste!M:N,2,FALSE),\"\")","v":""}]
[null,null,{"$f":"IFERROR(VLOOKUP(B39,Liste!M:N,2,FALSE),\"\")","v":""}]
[null,null,{"$f":"IFERROR(VLOOKUP(B40,Liste!M:N,2,FALSE),\"\")","v":""}]
[null,null,{"$f":"IFERROR(VLOOKUP(B41,Liste!M:N,2,FALSE),\"\")","v":""}]
[null,null,{"$f":"IFERROR(VLOOKUP(B42,Liste!M:N,2,FALSE),\"\")","v":""}]
[null,null,{"$f":"IFERROR(VLOOKUP(B43,Liste!M:N,2,FALSE),\"\")","v":""}]
[null,null,{"$f":"IFERROR(VLOOKUP(B44,Liste!M:N,2,FALSE),\"\")","v":""}]
[null,null,{"$f":"IFERROR(VLOOKUP(B45,Liste!M:N,2,FALSE),\"\")","v":""}]
[null,null,{"$f":"IFERROR(VLOOKUP(B46,Liste!M:N,2,FALSE),\"\")","v":""}]
[null,null,{"$f":"IFERROR(VLOOKUP(B47,Liste!M:N,2,FALSE),\"\")","v":""}]
[null,null,{"$f":"IFERROR(VLOOKUP(B48,Liste!M:N,2,FALSE),\"\")","v":""}]
[null,null,{"$f":"IFERROR(VLOOKUP(B49,Liste!M:N,2,FALSE),\"\")","v":""}]
[null,null,{"$f":"IFERROR(VLOOKUP(B50,Liste!M:N,2,FALSE),\"\")","v":""}]
[null,null,{"$f":"IFERROR(VLOOKUP(B51,Liste!M:N,2,FALSE),\"\")","v":""}]
[null,null,{"$f":"IFERROR(VLOOKUP(B52,Liste!M:N,2,FALSE),\"\")","v":""}]
[null,null,{"$f":"IFERROR(VLOOKUP(B53,Liste!M:N,2,FALSE),\"\")","v":""}]
[null,null,{"$f":"IFERROR(VLOOKUP(B54,Liste!M:N,2,FALSE),\"\")","v":""}]
[null,null,{"$f":"IFERROR(VLOOKUP(B55,Liste!M:N,2,FALSE),\"\")","v":""}]
[null,null,{"$f":"IFERROR(VLOOKUP(B56,Liste!M:N,2,FALSE),\"\")","v":""}]
[null,null,{"$f":"IFERROR(VLOOKUP(B57,Liste!M:N,2,FALSE),\"\")","v":""}]
[null,null,{"$f":"IFERROR(VLOOKUP(B58,Liste!M:N,2,FALSE),\"\")","v":""}]
[null,null,{"$f":"IFERROR(VLOOKUP(B59,Liste!M:N,2,FALSE),\"\")","v":""}]
[null,null,{"$f":"IFERROR(VLOOKUP(B60,Liste!M:N,2,FALSE),\"\")","v":""}]
[null,null,{"$f":"IFERROR(VLOOKUP(B61,Liste!M:N,2,FALSE),\"\")","v":""}]
[null,null,{"$f":"IFERROR(VLOOKUP(B62,Liste!M:N,2,FALSE),\"\")","v":""}]
[null,null,{"$f":"IFERROR(VLOOKUP(B63,Liste!M:N,2,FALSE),\"\")","v":""}]
[null,null,{"$f":"IFERROR(VLOOKUP(B64,Liste!M:N,2,FALSE),\"\")","v":""}]
[null,null,{"$f":"IFERROR(VLOOKUP(B65,Liste!M:N,2,FALSE),\"\")","v":""}]
[]
[]
["Je déclare que les volumes identifiés dans ce rapport sont encore en forêt ou, le cas échéant, que la vidange de ces secteurs est complété dans l’unité d’aménagement visée par cette déclaration pour l’année d’exploitation visée."]
[]
["Représentant du BGA :"]
[]
["Signature :",null,null,null,"Date :"]

{"sheet":"BGAD7","index":9,"n_rows":72,"n_cols":7,"rows_kept":72,"cut":false,"hidden":false,"merged":[[67,0,67,6],[71,5,71,6],[0,0,0,5],[2,1,2,2],[3,1,3,2],[4,1,4,2],[5,0,5,4],[6,0,6,4]]}
["Déclaration de vidange des secteurs récoltés par BGAd ou PRAU"]
[]
["Année de récolte :"]
["Unité d'aménagement :"]
["Nom Du BGAd :"]
[]
["(insérer des lignes au besoin)"]
["Numéro de secteur d'intervention \nou \nNom du chantier","No client mesubois","Nom du BGA/PRAU détenteur du droit","Code d'essence","Qualité ","Volume estimé (m3)","coordonnéesGPS(WGS84)    no séquentiel shp"]
[null,null,{"$f":"IFERROR(VLOOKUP(B9,Liste!M:N,2,FALSE),\"\")","v":""}]
[null,null,{"$f":"IFERROR(VLOOKUP(B10,Liste!M:N,2,FALSE),\"\")","v":""}]
[null,null,{"$f":"IFERROR(VLOOKUP(B11,Liste!M:N,2,FALSE),\"\")","v":""}]
[null,null,{"$f":"IFERROR(VLOOKUP(B12,Liste!M:N,2,FALSE),\"\")","v":""}]
[null,null,{"$f":"IFERROR(VLOOKUP(B13,Liste!M:N,2,FALSE),\"\")","v":""}]
[null,null,{"$f":"IFERROR(VLOOKUP(B14,Liste!M:N,2,FALSE),\"\")","v":""}]
[null,null,{"$f":"IFERROR(VLOOKUP(B15,Liste!M:N,2,FALSE),\"\")","v":""}]
[null,null,{"$f":"IFERROR(VLOOKUP(B16,Liste!M:N,2,FALSE),\"\")","v":""}]
[null,null,{"$f":"IFERROR(VLOOKUP(B17,Liste!M:N,2,FALSE),\"\")","v":""}]
[null,null,{"$f":"IFERROR(VLOOKUP(B18,Liste!M:N,2,FALSE),\"\")","v":""}]
[null,null,{"$f":"IFERROR(VLOOKUP(B19,Liste!M:N,2,FALSE),\"\")","v":""}]
[null,null,{"$f":"IFERROR(VLOOKUP(B20,Liste!M:N,2,FALSE),\"\")","v":""}]
[null,null,{"$f":"IFERROR(VLOOKUP(B21,Liste!M:N,2,FALSE),\"\")","v":""}]
[null,null,{"$f":"IFERROR(VLOOKUP(B22,Liste!M:N,2,FALSE),\"\")","v":""}]
[null,null,{"$f":"IFERROR(VLOOKUP(B23,Liste!M:N,2,FALSE),\"\")","v":""}]
[null,null,{"$f":"IFERROR(VLOOKUP(B24,Liste!M:N,2,FALSE),\"\")","v":""}]
[null,null,{"$f":"IFERROR(VLOOKUP(B25,Liste!M:N,2,FALSE),\"\")","v":""}]
[null,null,{"$f":"IFERROR(VLOOKUP(B26,Liste!M:N,2,FALSE),\"\")","v":""}]
[null,null,{"$f":"IFERROR(VLOOKUP(B27,Liste!M:N,2,FALSE),\"\")","v":""}]
[null,null,{"$f":"IFERROR(VLOOKUP(B28,Liste!M:N,2,FALSE),\"\")","v":""}]
[null,null,{"$f":"IFERROR(VLOOKUP(B29,Liste!M:N,2,FALSE),\"\")","v":""}]
[null,null,{"$f":"IFERROR(VLOOKUP(B30,Liste!M:N,2,FALSE),\"\")","v":""}]
[null,null,{"$f":"IFERROR(VLOOKUP(B31,Liste!M:N,2,FALSE),\"\")","v":""}]
[null,null,{"$f":"IFERROR(VLOOKUP(B32,Liste!M:N,2,FALSE),\"\")","v":""}]
[null,null,{"$f":"IFERROR(VLOOKUP(B33,Liste!M:N,2,FALSE),\"\")","v":""}]
[null,null,{"$f":"IFERROR(VLOOKUP(B34,Liste!M:N,2,FALSE),\"\")","v":""}]
[null,null,{"$f":"IFERROR(VLOOKUP(B35,Liste!M:N,2,FALSE),\"\")","v":""}]
[null,null,{"$f":"IFERROR(VLOOKUP(B36,Liste!M:N,2,FALSE),\"\")","v":""}]
[null,null,{"$f":"IFERROR(VLOOKUP(B37,Liste!M:N,2,FALSE),\"\")","v":""}]
[null,null,{"$f":"IFERROR(VLOOKUP(B38,Liste!M:N,2,FALSE),\"\")","v":""}]
[null,null,{"$f":"IFERROR(VLOOKUP(B39,Liste!M:N,2,FALSE),\"\")","v":""}]
[null,null,{"$f":"IFERROR(VLOOKUP(B40,Liste!M:N,2,FALSE),\"\")","v":""}]
[null,null,{"$f":"IFERROR(VLOOKUP(B41,Liste!M:N,2,FALSE),\"\")","v":""}]
[null,null,{"$f":"IFERROR(VLOOKUP(B42,Liste!M:N,2,FALSE),\"\")","v":""}]
[null,null,{"$f":"IFERROR(VLOOKUP(B43,Liste!M:N,2,FALSE),\"\")","v":""}]
[null,null,{"$f":"IFERROR(VLOOKUP(B44,Liste!M:N,2,FALSE),\"\")","v":""}]
[null,null,{"$f":"IFERROR(VLOOKUP(B45,Liste!M:N,2,FALSE),\"\")","v":""}]
[null,null,{"$f":"IFERROR(VLOOKUP(B46,Liste!M:N,2,FALSE),\"\")","v":""}]
[null,null,{"$f":"IFERROR(VLOOKUP(B47,Liste!M:N,2,FALSE),\"\")","v":""}]
[null,null,{"$f":"IFERROR(VLOOKUP(B48,Liste!M:N,2,FALSE),\"\")","v":""}]
[null,null,{"$f":"IFERROR(VLOOKUP(B49,Liste!M:N,2,FALSE),\"\")","v":""}]
[null,null,{"$f":"IFERROR(VLOOKUP(B50,Liste!M:N,2,FALSE),\"\")","v":""}]
[null,null,{"$f":"IFERROR(VLOOKUP(B51,Liste!M:N,2,FALSE),\"\")","v":""}]
[null,null,{"$f":"IFERROR(VLOOKUP(B52,Liste!M:N,2,FALSE),\"\")","v":""}]
[null,null,{"$f":"IFERROR(VLOOKUP(B53,Liste!M:N,2,FALSE),\"\")","v":""}]
[null,null,{"$f":"IFERROR(VLOOKUP(B54,Liste!M:N,2,FALSE),\"\")","v":""}]
[null,null,{"$f":"IFERROR(VLOOKUP(B55,Liste!M:N,2,FALSE),\"\")","v":""}]
[null,null,{"$f":"IFERROR(VLOOKUP(B56,Liste!M:N,2,FALSE),\"\")","v":""}]
[null,null,{"$f":"IFERROR(VLOOKUP(B57,Liste!M:N,2,FALSE),\"\")","v":""}]
[null,null,{"$f":"IFERROR(VLOOKUP(B58,Liste!M:N,2,FALSE),\"\")","v":""}]
[null,null,{"$f":"IFERROR(VLOOKUP(B59,Liste!M:N,2,FALSE),\"\")","v":""}]
[null,null,{"$f":"IFERROR(VLOOKUP(B60,Liste!M:N,2,FALSE),\"\")","v":""}]
[null,null,{"$f":"IFERROR(VLOOKUP(B61,Liste!M:N,2,FALSE),\"\")","v":""}]
[null,null,{"$f":"IFERROR(VLOOKUP(B62,Liste!M:N,2,FALSE),\"\")","v":""}]
[null,null,{"$f":"IFERROR(VLOOKUP(B63,Liste!M:N,2,FALSE),\"\")","v":""}]
[null,null,{"$f":"IFERROR(VLOOKUP(B64,Liste!M:N,2,FALSE),\"\")","v":""}]
[null,null,{"$f":"IFERROR(VLOOKUP(B65,Liste!M:N,2,FALSE),\"\")","v":""}]
[]
[]
["Je déclare que les volumes identifiés dans ce rapport sont encore en forêt ou, le cas échéant, que la vidange de ces secteurs est complété dans l’unité d’aménagement visée par cette déclaration pour l’année d’exploitation visée."]
[]
["Représentant du BGA :"]
[]
["Signature :",null,null,null,"Date :"]

{"sheet":"BGAD8","index":10,"n_rows":72,"n_cols":7,"rows_kept":72,"cut":false,"hidden":false,"merged":[[67,0,67,6],[71,5,71,6],[0,0,0,5],[2,1,2,2],[3,1,3,2],[4,1,4,2],[5,0,5,4],[6,0,6,4]]}
["Déclaration de vidange des secteurs récoltés par BGAd ou PRAU"]
[]
["Année de récolte :"]
["Unité d'aménagement :"]
["Nom Du BGAd :"]
[]
["(insérer des lignes au besoin)"]
["Numéro de secteur d'intervention \nou \nNom du chantier","No client mesubois","Nom du BGA/PRAU détenteur du droit","Code d'essence","Qualité ","Volume estimé (m3)","coordonnéesGPS(WGS84)    no séquentiel shp"]
[null,null,{"$f":"IFERROR(VLOOKUP(B9,Liste!M:N,2,FALSE),\"\")","v":""}]
[null,null,{"$f":"IFERROR(VLOOKUP(B10,Liste!M:N,2,FALSE),\"\")","v":""}]
[null,null,{"$f":"IFERROR(VLOOKUP(B11,Liste!M:N,2,FALSE),\"\")","v":""}]
[null,null,{"$f":"IFERROR(VLOOKUP(B12,Liste!M:N,2,FALSE),\"\")","v":""}]
[null,null,{"$f":"IFERROR(VLOOKUP(B13,Liste!M:N,2,FALSE),\"\")","v":""}]
[null,null,{"$f":"IFERROR(VLOOKUP(B14,Liste!M:N,2,FALSE),\"\")","v":""}]
[null,null,{"$f":"IFERROR(VLOOKUP(B15,Liste!M:N,2,FALSE),\"\")","v":""}]
[null,null,{"$f":"IFERROR(VLOOKUP(B16,Liste!M:N,2,FALSE),\"\")","v":""}]
[null,null,{"$f":"IFERROR(VLOOKUP(B17,Liste!M:N,2,FALSE),\"\")","v":""}]
[null,null,{"$f":"IFERROR(VLOOKUP(B18,Liste!M:N,2,FALSE),\"\")","v":""}]
[null,null,{"$f":"IFERROR(VLOOKUP(B19,Liste!M:N,2,FALSE),\"\")","v":""}]
[null,null,{"$f":"IFERROR(VLOOKUP(B20,Liste!M:N,2,FALSE),\"\")","v":""}]
[null,null,{"$f":"IFERROR(VLOOKUP(B21,Liste!M:N,2,FALSE),\"\")","v":""}]
[null,null,{"$f":"IFERROR(VLOOKUP(B22,Liste!M:N,2,FALSE),\"\")","v":""}]
[null,null,{"$f":"IFERROR(VLOOKUP(B23,Liste!M:N,2,FALSE),\"\")","v":""}]
[null,null,{"$f":"IFERROR(VLOOKUP(B24,Liste!M:N,2,FALSE),\"\")","v":""}]
[null,null,{"$f":"IFERROR(VLOOKUP(B25,Liste!M:N,2,FALSE),\"\")","v":""}]
[null,null,{"$f":"IFERROR(VLOOKUP(B26,Liste!M:N,2,FALSE),\"\")","v":""}]
[null,null,{"$f":"IFERROR(VLOOKUP(B27,Liste!M:N,2,FALSE),\"\")","v":""}]
[null,null,{"$f":"IFERROR(VLOOKUP(B28,Liste!M:N,2,FALSE),\"\")","v":""}]
[null,null,{"$f":"IFERROR(VLOOKUP(B29,Liste!M:N,2,FALSE),\"\")","v":""}]
[null,null,{"$f":"IFERROR(VLOOKUP(B30,Liste!M:N,2,FALSE),\"\")","v":""}]
[null,null,{"$f":"IFERROR(VLOOKUP(B31,Liste!M:N,2,FALSE),\"\")","v":""}]
[null,null,{"$f":"IFERROR(VLOOKUP(B32,Liste!M:N,2,FALSE),\"\")","v":""}]
[null,null,{"$f":"IFERROR(VLOOKUP(B33,Liste!M:N,2,FALSE),\"\")","v":""}]
[null,null,{"$f":"IFERROR(VLOOKUP(B34,Liste!M:N,2,FALSE),\"\")","v":""}]
[null,null,{"$f":"IFERROR(VLOOKUP(B35,Liste!M:N,2,FALSE),\"\")","v":""}]
[null,null,{"$f":"IFERROR(VLOOKUP(B36,Liste!M:N,2,FALSE),\"\")","v":""}]
[null,null,{"$f":"IFERROR(VLOOKUP(B37,Liste!M:N,2,FALSE),\"\")","v":""}]
[null,null,{"$f":"IFERROR(VLOOKUP(B38,Liste!M:N,2,FALSE),\"\")","v":""}]
[null,null,{"$f":"IFERROR(VLOOKUP(B39,Liste!M:N,2,FALSE),\"\")","v":""}]
[null,null,{"$f":"IFERROR(VLOOKUP(B40,Liste!M:N,2,FALSE),\"\")","v":""}]
[null,null,{"$f":"IFERROR(VLOOKUP(B41,Liste!M:N,2,FALSE),\"\")","v":""}]
[null,null,{"$f":"IFERROR(VLOOKUP(B42,Liste!M:N,2,FALSE),\"\")","v":""}]
[null,null,{"$f":"IFERROR(VLOOKUP(B43,Liste!M:N,2,FALSE),\"\")","v":""}]
[null,null,{"$f":"IFERROR(VLOOKUP(B44,Liste!M:N,2,FALSE),\"\")","v":""}]
[null,null,{"$f":"IFERROR(VLOOKUP(B45,Liste!M:N,2,FALSE),\"\")","v":""}]
[null,null,{"$f":"IFERROR(VLOOKUP(B46,Liste!M:N,2,FALSE),\"\")","v":""}]
[null,null,{"$f":"IFERROR(VLOOKUP(B47,Liste!M:N,2,FALSE),\"\")","v":""}]
[null,null,{"$f":"IFERROR(VLOOKUP(B48,Liste!M:N,2,FALSE),\"\")","v":""}]
[null,null,{"$f":"IFERROR(VLOOKUP(B49,Liste!M:N,2,FALSE),\"\")","v":""}]
[null,null,{"$f":"IFERROR(VLOOKUP(B50,Liste!M:N,2,FALSE),\"\")","v":""}]
[null,null,{"$f":"IFERROR(VLOOKUP(B51,Liste!M:N,2,FALSE),\"\")","v":""}]
[null,null,{"$f":"IFERROR(VLOOKUP(B52,Liste!M:N,2,FALSE),\"\")","v":""}]
[null,null,{"$f":"IFERROR(VLOOKUP(B53,Liste!M:N,2,FALSE),\"\")","v":""}]
[null,null,{"$f":"IFERROR(VLOOKUP(B54,Liste!M:N,2,FALSE),\"\")","v":""}]
[null,null,{"$f":"IFERROR(VLOOKUP(B55,Liste!M:N,2,FALSE),\"\")","v":""}]
[null,null,{"$f":"IFERROR(VLOOKUP(B56,Liste!M:N,2,FALSE),\"\")","v":""}]
[null,null,{"$f":"IFERROR(VLOOKUP(B57,Liste!M:N,2,FALSE),\"\")","v":""}]
[null,null,{"$f":"IFERROR(VLOOKUP(B58,Liste!M:N,2,FALSE),\"\")","v":""}]
[null,null,{"$f":"IFERROR(VLOOKUP(B59,Liste!M:N,2,FALSE),\"\")","v":""}]
[null,null,{"$f":"IFERROR(VLOOKUP(B60,Liste!M:N,2,FALSE),\"\")","v":""}]
[null,null,{"$f":"IFERROR(VLOOKUP(B61,Liste!M:N,2,FALSE),\"\")","v":""}]
[null,null,{"$f":"IFERROR(VLOOKUP(B62,Liste!M:N,2,FALSE),\"\")","v":""}]
[null,null,{"$f":"IFERROR(VLOOKUP(B63,Liste!M:N,2,FALSE),\"\")","v":""}]
[null,null,{"$f":"IFERROR(VLOOKUP(B64,Liste!M:N,2,FALSE),\"\")","v":""}]
[null,null,{"$f":"IFERROR(VLOOKUP(B65,Liste!M:N,2,FALSE),\"\")","v":""}]
[]
[]
["Je déclare que les volumes identifiés dans ce rapport sont encore en forêt ou, le cas échéant, que la vidange de ces secteurs est complété dans l’unité d’aménagement visée par cette déclaration pour l’année d’exploitation visée."]
[]
["Représentant du BGA :"]
[]
["Signature :",null,null,null,"Date :"]

{"sheet":"BGAD9","index":11,"n_rows":72,"n_cols":7,"rows_kept":72,"cut":false,"hidden":false,"merged":[[67,0,67,6],[71,5,71,6],[0,0,0,5],[2,1,2,2],[3,1,3,2],[4,1,4,2],[5,0,5,4],[6,0,6,4]]}
["Déclaration de vidange des secteurs récoltés par BGAd ou PRAU"]
[]
["Année de récolte :"]
["Unité d'aménagement :"]
["Nom Du BGAd :"]
[]
["(insérer des lignes au besoin)"]
["Numéro de secteur d'intervention \nou \nNom du chantier","No client mesubois","Nom du BGA/PRAU détenteur du droit","Code d'essence","Qualité ","Volume estimé (m3)","coordonnéesGPS(WGS84)    no séquentiel shp"]
[null,null,{"$f":"IFERROR(VLOOKUP(B9,Liste!M:N,2,FALSE),\"\")","v":""}]
[null,null,{"$f":"IFERROR(VLOOKUP(B10,Liste!M:N,2,FALSE),\"\")","v":""}]
[null,null,{"$f":"IFERROR(VLOOKUP(B11,Liste!M:N,2,FALSE),\"\")","v":""}]
[null,null,{"$f":"IFERROR(VLOOKUP(B12,Liste!M:N,2,FALSE),\"\")","v":""}]
[null,null,{"$f":"IFERROR(VLOOKUP(B13,Liste!M:N,2,FALSE),\"\")","v":""}]
[null,null,{"$f":"IFERROR(VLOOKUP(B14,Liste!M:N,2,FALSE),\"\")","v":""}]
[null,null,{"$f":"IFERROR(VLOOKUP(B15,Liste!M:N,2,FALSE),\"\")","v":""}]
[null,null,{"$f":"IFERROR(VLOOKUP(B16,Liste!M:N,2,FALSE),\"\")","v":""}]
[null,null,{"$f":"IFERROR(VLOOKUP(B17,Liste!M:N,2,FALSE),\"\")","v":""}]
[null,null,{"$f":"IFERROR(VLOOKUP(B18,Liste!M:N,2,FALSE),\"\")","v":""}]
[null,null,{"$f":"IFERROR(VLOOKUP(B19,Liste!M:N,2,FALSE),\"\")","v":""}]
[null,null,{"$f":"IFERROR(VLOOKUP(B20,Liste!M:N,2,FALSE),\"\")","v":""}]
[null,null,{"$f":"IFERROR(VLOOKUP(B21,Liste!M:N,2,FALSE),\"\")","v":""}]
[null,null,{"$f":"IFERROR(VLOOKUP(B22,Liste!M:N,2,FALSE),\"\")","v":""}]
[null,null,{"$f":"IFERROR(VLOOKUP(B23,Liste!M:N,2,FALSE),\"\")","v":""}]
[null,null,{"$f":"IFERROR(VLOOKUP(B24,Liste!M:N,2,FALSE),\"\")","v":""}]
[null,null,{"$f":"IFERROR(VLOOKUP(B25,Liste!M:N,2,FALSE),\"\")","v":""}]
[null,null,{"$f":"IFERROR(VLOOKUP(B26,Liste!M:N,2,FALSE),\"\")","v":""}]
[null,null,{"$f":"IFERROR(VLOOKUP(B27,Liste!M:N,2,FALSE),\"\")","v":""}]
[null,null,{"$f":"IFERROR(VLOOKUP(B28,Liste!M:N,2,FALSE),\"\")","v":""}]
[null,null,{"$f":"IFERROR(VLOOKUP(B29,Liste!M:N,2,FALSE),\"\")","v":""}]
[null,null,{"$f":"IFERROR(VLOOKUP(B30,Liste!M:N,2,FALSE),\"\")","v":""}]
[null,null,{"$f":"IFERROR(VLOOKUP(B31,Liste!M:N,2,FALSE),\"\")","v":""}]
[null,null,{"$f":"IFERROR(VLOOKUP(B32,Liste!M:N,2,FALSE),\"\")","v":""}]
[null,null,{"$f":"IFERROR(VLOOKUP(B33,Liste!M:N,2,FALSE),\"\")","v":""}]
[null,null,{"$f":"IFERROR(VLOOKUP(B34,Liste!M:N,2,FALSE),\"\")","v":""}]
[null,null,{"$f":"IFERROR(VLOOKUP(B35,Liste!M:N,2,FALSE),\"\")","v":""}]
[null,null,{"$f":"IFERROR(VLOOKUP(B36,Liste!M:N,2,FALSE),\"\")","v":""}]
[null,null,{"$f":"IFERROR(VLOOKUP(B37,Liste!M:N,2,FALSE),\"\")","v":""}]
[null,null,{"$f":"IFERROR(VLOOKUP(B38,Liste!M:N,2,FALSE),\"\")","v":""}]
[null,null,{"$f":"IFERROR(VLOOKUP(B39,Liste!M:N,2,FALSE),\"\")","v":""}]
[null,null,{"$f":"IFERROR(VLOOKUP(B40,Liste!M:N,2,FALSE),\"\")","v":""}]
[null,null,{"$f":"IFERROR(VLOOKUP(B41,Liste!M:N,2,FALSE),\"\")","v":""}]
[null,null,{"$f":"IFERROR(VLOOKUP(B42,Liste!M:N,2,FALSE),\"\")","v":""}]
[null,null,{"$f":"IFERROR(VLOOKUP(B43,Liste!M:N,2,FALSE),\"\")","v":""}]
[null,null,{"$f":"IFERROR(VLOOKUP(B44,Liste!M:N,2,FALSE),\"\")","v":""}]
[null,null,{"$f":"IFERROR(VLOOKUP(B45,Liste!M:N,2,FALSE),\"\")","v":""}]
[null,null,{"$f":"IFERROR(VLOOKUP(B46,Liste!M:N,2,FALSE),\"\")","v":""}]
[null,null,{"$f":"IFERROR(VLOOKUP(B47,Liste!M:N,2,FALSE),\"\")","v":""}]
[null,null,{"$f":"IFERROR(VLOOKUP(B48,Liste!M:N,2,FALSE),\"\")","v":""}]
[null,null,{"$f":"IFERROR(VLOOKUP(B49,Liste!M:N,2,FALSE),\"\")","v":""}]
[null,null,{"$f":"IFERROR(VLOOKUP(B50,Liste!M:N,2,FALSE),\"\")","v":""}]
[null,null,{"$f":"IFERROR(VLOOKUP(B51,Liste!M:N,2,FALSE),\"\")","v":""}]
[null,null,{"$f":"IFERROR(VLOOKUP(B52,Liste!M:N,2,FALSE),\"\")","v":""}]
[null,null,{"$f":"IFERROR(VLOOKUP(B53,Liste!M:N,2,FALSE),\"\")","v":""}]
[null,null,{"$f":"IFERROR(VLOOKUP(B54,Liste!M:N,2,FALSE),\"\")","v":""}]
[null,null,{"$f":"IFERROR(VLOOKUP(B55,Liste!M:N,2,FALSE),\"\")","v":""}]
[null,null,{"$f":"IFERROR(VLOOKUP(B56,Liste!M:N,2,FALSE),\"\")","v":""}]
[null,null,{"$f":"IFERROR(VLOOKUP(B57,Liste!M:N,2,FALSE),\"\")","v":""}]
[null,null,{"$f":"IFERROR(VLOOKUP(B58,Liste!M:N,2,FALSE),\"\")","v":""}]
[null,null,{"$f":"IFERROR(VLOOKUP(B59,Liste!M:N,2,FALSE),\"\")","v":""}]
[null,null,{"$f":"IFERROR(VLOOKUP(B60,Liste!M:N,2,FALSE),\"\")","v":""}]
[null,null,{"$f":"IFERROR(VLOOKUP(B61,Liste!M:N,2,FALSE),\"\")","v":""}]
[null,null,{"$f":"IFERROR(VLOOKUP(B62,Liste!M:N,2,FALSE),\"\")","v":""}]
[null,null,{"$f":"IFERROR(VLOOKUP(B63,Liste!M:N,2,FALSE),\"\")","v":""}]
[null,null,{"$f":"IFERROR(VLOOKUP(B64,Liste!M:N,2,FALSE),\"\")","v":""}]
[null,null,{"$f":"IFERROR(VLOOKUP(B65,Liste!M:N,2,FALSE),\"\")","v":""}]
[]
[]
["Je déclare que les volumes identifiés dans ce rapport sont encore en forêt ou, le cas échéant, que la vidange de ces secteurs est complété dans l’unité d’aménagement visée par cette déclaration pour l’année d’exploitation visée."]
[]
["Représentant du BGA :"]
[]
["Signature :",null,null,null,"Date :"]

{"sheet":"BGAD10","index":12,"n_rows":72,"n_cols":7,"rows_kept":72,"cut":false,"hidden":false,"merged":[[67,0,67,6],[71,5,71,6],[0,0,0,5],[2,1,2,2],[3,1,3,2],[4,1,4,2],[5,0,5,4],[6,0,6,4]]}
["Déclaration de vidange des secteurs récoltés par BGAd ou PRAU"]
[]
["Année de récolte :"]
["Unité d'aménagement :"]
["Nom Du BGAd :"]
[]
["(insérer des lignes au besoin)"]
["Numéro de secteur d'intervention \nou \nNom du chantier","No client mesubois","Nom du BGA/PRAU détenteur du droit","Code d'essence","Qualité ","Volume estimé (m3)","coordonnéesGPS(WGS84)    no séquentiel shp"]
[null,null,{"$f":"IFERROR(VLOOKUP(B9,Liste!M:N,2,FALSE),\"\")","v":""}]
[null,null,{"$f":"IFERROR(VLOOKUP(B10,Liste!M:N,2,FALSE),\"\")","v":""}]
[null,null,{"$f":"IFERROR(VLOOKUP(B11,Liste!M:N,2,FALSE),\"\")","v":""}]
[null,null,{"$f":"IFERROR(VLOOKUP(B12,Liste!M:N,2,FALSE),\"\")","v":""}]
[null,null,{"$f":"IFERROR(VLOOKUP(B13,Liste!M:N,2,FALSE),\"\")","v":""}]
[null,null,{"$f":"IFERROR(VLOOKUP(B14,Liste!M:N,2,FALSE),\"\")","v":""}]
[null,null,{"$f":"IFERROR(VLOOKUP(B15,Liste!M:N,2,FALSE),\"\")","v":""}]
[null,null,{"$f":"IFERROR(VLOOKUP(B16,Liste!M:N,2,FALSE),\"\")","v":""}]
[null,null,{"$f":"IFERROR(VLOOKUP(B17,Liste!M:N,2,FALSE),\"\")","v":""}]
[null,null,{"$f":"IFERROR(VLOOKUP(B18,Liste!M:N,2,FALSE),\"\")","v":""}]
[null,null,{"$f":"IFERROR(VLOOKUP(B19,Liste!M:N,2,FALSE),\"\")","v":""}]
[null,null,{"$f":"IFERROR(VLOOKUP(B20,Liste!M:N,2,FALSE),\"\")","v":""}]
[null,null,{"$f":"IFERROR(VLOOKUP(B21,Liste!M:N,2,FALSE),\"\")","v":""}]
[null,null,{"$f":"IFERROR(VLOOKUP(B22,Liste!M:N,2,FALSE),\"\")","v":""}]
[null,null,{"$f":"IFERROR(VLOOKUP(B23,Liste!M:N,2,FALSE),\"\")","v":""}]
[null,null,{"$f":"IFERROR(VLOOKUP(B24,Liste!M:N,2,FALSE),\"\")","v":""}]
[null,null,{"$f":"IFERROR(VLOOKUP(B25,Liste!M:N,2,FALSE),\"\")","v":""}]
[null,null,{"$f":"IFERROR(VLOOKUP(B26,Liste!M:N,2,FALSE),\"\")","v":""}]
[null,null,{"$f":"IFERROR(VLOOKUP(B27,Liste!M:N,2,FALSE),\"\")","v":""}]
[null,null,{"$f":"IFERROR(VLOOKUP(B28,Liste!M:N,2,FALSE),\"\")","v":""}]
[null,null,{"$f":"IFERROR(VLOOKUP(B29,Liste!M:N,2,FALSE),\"\")","v":""}]
[null,null,{"$f":"IFERROR(VLOOKUP(B30,Liste!M:N,2,FALSE),\"\")","v":""}]
[null,null,{"$f":"IFERROR(VLOOKUP(B31,Liste!M:N,2,FALSE),\"\")","v":""}]
[null,null,{"$f":"IFERROR(VLOOKUP(B32,Liste!M:N,2,FALSE),\"\")","v":""}]
[null,null,{"$f":"IFERROR(VLOOKUP(B33,Liste!M:N,2,FALSE),\"\")","v":""}]
[null,null,{"$f":"IFERROR(VLOOKUP(B34,Liste!M:N,2,FALSE),\"\")","v":""}]
[null,null,{"$f":"IFERROR(VLOOKUP(B35,Liste!M:N,2,FALSE),\"\")","v":""}]
[null,null,{"$f":"IFERROR(VLOOKUP(B36,Liste!M:N,2,FALSE),\"\")","v":""}]
[null,null,{"$f":"IFERROR(VLOOKUP(B37,Liste!M:N,2,FALSE),\"\")","v":""}]
[null,null,{"$f":"IFERROR(VLOOKUP(B38,Liste!M:N,2,FALSE),\"\")","v":""}]
[null,null,{"$f":"IFERROR(VLOOKUP(B39,Liste!M:N,2,FALSE),\"\")","v":""}]
[null,null,{"$f":"IFERROR(VLOOKUP(B40,Liste!M:N,2,FALSE),\"\")","v":""}]
[null,null,{"$f":"IFERROR(VLOOKUP(B41,Liste!M:N,2,FALSE),\"\")","v":""}]
[null,null,{"$f":"IFERROR(VLOOKUP(B42,Liste!M:N,2,FALSE),\"\")","v":""}]
[null,null,{"$f":"IFERROR(VLOOKUP(B43,Liste!M:N,2,FALSE),\"\")","v":""}]
[null,null,{"$f":"IFERROR(VLOOKUP(B44,Liste!M:N,2,FALSE),\"\")","v":""}]
[null,null,{"$f":"IFERROR(VLOOKUP(B45,Liste!M:N,2,FALSE),\"\")","v":""}]
[null,null,{"$f":"IFERROR(VLOOKUP(B46,Liste!M:N,2,FALSE),\"\")","v":""}]
[null,null,{"$f":"IFERROR(VLOOKUP(B47,Liste!M:N,2,FALSE),\"\")","v":""}]
[null,null,{"$f":"IFERROR(VLOOKUP(B48,Liste!M:N,2,FALSE),\"\")","v":""}]
[null,null,{"$f":"IFERROR(VLOOKUP(B49,Liste!M:N,2,FALSE),\"\")","v":""}]
[null,null,{"$f":"IFERROR(VLOOKUP(B50,Liste!M:N,2,FALSE),\"\")","v":""}]
[null,null,{"$f":"IFERROR(VLOOKUP(B51,Liste!M:N,2,FALSE),\"\")","v":""}]
[null,null,{"$f":"IFERROR(VLOOKUP(B52,Liste!M:N,2,FALSE),\"\")","v":""}]
[null,null,{"$f":"IFERROR(VLOOKUP(B53,Liste!M:N,2,FALSE),\"\")","v":""}]
[null,null,{"$f":"IFERROR(VLOOKUP(B54,Liste!M:N,2,FALSE),\"\")","v":""}]
[null,null,{"$f":"IFERROR(VLOOKUP(B55,Liste!M:N,2,FALSE),\"\")","v":""}]
[null,null,{"$f":"IFERROR(VLOOKUP(B56,Liste!M:N,2,FALSE),\"\")","v":""}]
[null,null,{"$f":"IFERROR(VLOOKUP(B57,Liste!M:N,2,FALSE),\"\")","v":""}]
[null,null,{"$f":"IFERROR(VLOOKUP(B58,Liste!M:N,2,FALSE),\"\")","v":""}]
[null,null,{"$f":"IFERROR(VLOOKUP(B59,Liste!M:N,2,FALSE),\"\")","v":""}]
[null,null,{"$f":"IFERROR(VLOOKUP(B60,Liste!M:N,2,FALSE),\"\")","v":""}]
[null,null,{"$f":"IFERROR(VLOOKUP(B61,Liste!M:N,2,FALSE),\"\")","v":""}]
[null,null,{"$f":"IFERROR(VLOOKUP(B62,Liste!M:N,2,FALSE),\"\")","v":""}]
[null,null,{"$f":"IFERROR(VLOOKUP(B63,Liste!M:N,2,FALSE),\"\")","v":""}]
[null,null,{"$f":"IFERROR(VLOOKUP(B64,Liste!M:N,2,FALSE),\"\")","v":""}]
[null,null,{"$f":"IFERROR(VLOOKUP(B65,Liste!M:N,2,FALSE),\"\")","v":""}]
[]
[]
["Je déclare que les volumes identifiés dans ce rapport sont encore en forêt ou, le cas échéant, que la vidange de ces secteurs est complété dans l’unité d’aménagement visée par cette déclaration pour l’année d’exploitation visée."]
[]
["Représentant du BGA :"]
[]
["Signature :",null,null,null,"Date :"]

{"sheet":"Liste","index":13,"n_rows":347,"n_cols":14,"rows_kept":347,"cut":false,"hidden":true,"merged":[]}
["Année","Code d'essence","Nom essence","Essence","Unite d'amenagement","Qualité","NO CLIENT","TYPE CLIENT","DESCRIPTION USINE","DESCRIPTION CLIENT",null,null,"NO CLIENT","DESCRIPTION USINE"]
["2019-2020","010","Épinette (autre que Norvège)",{"$f":"IF(B2<>\"\",CONCATENATE(B2,\"_\",C2),\"\")","v":"010_Épinette (autre que Norvège)"},"01171","S/O",5,"CAAF","Groupe Lebel inc. (Saint-Hilarion)","Groupe Lebel inc.",null,null,5,"Groupe Lebel inc. (Saint-Hilarion)"]
["2020-2021","014","Épinette de Norvège",{"$f":"IF(B3<>\"\",CONCATENATE(B3,\"_\",C3),\"\")","v":"014_Épinette de Norvège"},"01272",null,6,"CAAF","Scierie Petit-Saguenay inc.","Scierie Petit-Saguenay inc.",null,null,6,"Scierie Petit-Saguenay inc."]
["2021-2022","030","Mélèze laricin","030_Mélèze laricin","02371",null,7,"CAAF","Boisaco inc.","Boisaco inc.",null,null,7,"Boisaco inc."]
["2022-2023","043","Pin gris et sylvestre","043_Pin gris et sylvestre","02471",null,10,"CAAF","Bois Daaquam inc.","Bois Daaquam inc.",null,null,10,"Bois Daaquam inc."]
["2023-2024","060","Sapin baumier","060_Sapin baumier","02571",null,11,"CAAF","Bois de sciage Lafontaine inc. (Sainte-Perpétue)","Bois de sciage Lafontaine inc.",null,null,11,"Bois de sciage Lafontaine inc. (Sainte-Perpétue)"]
["2024-2025","190","Peuplier (autre que Baumier)","190_Peuplier (autre que Baumier)","02651",null,14,"CAAF","Matériaux Blanchet inc. (Saint-Pamphile)","Materiaux Blanchet inc.",null,null,14,"Matériaux Blanchet inc. (Saint-Pamphile)"]
["2025-2026","191","Peuplier baumier","191_Peuplier baumier","02661",null,18,"CAAF","Bois Daaquam inc.(St-pamphile)","Bois Daaquam inc.(St-Pamphile)",null,null,18,"Bois Daaquam inc.(St-pamphile)"]
["2026-2027","105","Bouleau blanc ","105_Bouleau blanc ","02662",null,22,"CAAF","Stella-Jones inc. ( Hérouxville )","Stella-Jones inc.",null,null,22,"Stella-Jones inc. ( Hérouxville )"]
["2027-2028","104","Bouleau jaune","104_Bouleau jaune","02663",null,23,"CAAF","Stella-Jones inc. (Rivière-Rouge)","Stella-Jones inc. (Rivière-Rouge)",null,null,23,"Stella-Jones inc. (Rivière-Rouge)"]
["2028-2029","132","Érable à sucre","132_Érable à sucre","02664",null,25,"CAAF","Stella-Jones inc.(Masson-Angers-Poteaux)","Stella-Jones inc.(Masson-Angers-Poteaux)",null,null,25,"Stella-Jones inc.(Masson-Angers-Poteaux)"]
["2029-2030","133","Érable rouge","133_Érable rouge","02665","SQ",26,"CAAF","Poteaux Sélect inc.","Poteaux Select inc.",null,null,26,"Poteaux Sélect inc."]
[null,"135","Érables - Autres ","135_Érables - Autres ","02666","QI",32,"CAAF","Les Chantiers de Chibougamau ltée - Val d'Or","Les Chantiers de Chibougamau ltée",null,null,32,"Les Chantiers de Chibougamau ltée - Val d'Or"]
[null,"120","Chêne ","120_Chêne ","02751",null,33,"CAAF","Produits Forestiers Miniers \"Abitibi\" inc.","Produits Forestiers Miniers \"Abitibi\" inc.",null,null,33,"Produits Forestiers Miniers \"Abitibi\" inc."]
[null,"141","Frêne d’Amérique (blanc)","141_Frêne d’Amérique (blanc)","03153",null,34,"CAAF","PF Résolu Canada inc. ( Senneterre)","PF Résolu Canada inc.",null,null,34,"PF Résolu Canada inc. ( Senneterre)"]
[null,"142","Frêne noir","142_Frêne noir","03171",null,36,"CAAF","Chantiers Chibougamau (La Sarre)","Les Chantiers de Chibougamau ltée",null,null,36,"Chantiers Chibougamau (La Sarre)"]
[null,"150","Hêtre","150_Hêtre","03351",null,41,"CAAF","Les Chantiers Chibougamau ltée - Matagami","Les Chantiers de Chibougamau ltée",null,null,41,"Les Chantiers Chibougamau ltée - Matagami"]
[null,"160","Noyer","160_Noyer","03451",null,42,"CAAF","Scierie Landrienne (div. Ch. Chibougamau)","Scierie Landrienne (Division De Les Chantiers Chibougamau)",null,null,42,"Scierie Landrienne (div. Ch. Chibougamau)"]
[null,"165","Caryer","165_Caryer","03571",null,46,"CAAF","Matériaux Blanchet inc. (Amos)","Materiaux Blanchet inc.",null,null,46,"Matériaux Blanchet inc. (Amos)"]
[null,"170","Orme","170_Orme","04151",null,48,"CAAF","PF Résolu Canada inc. (Comtois)","PF Résolu Canada inc.",null,null,48,"PF Résolu Canada inc. (Comtois)"]
[null,"180","Ostryer de Virginie","180_Ostryer de Virginie","04251",null,53,"CAAF","Norbord.( La Sarre ) *West Fraser","Norbord inc.",null,null,53,"Norbord.( La Sarre ) *West Fraser"]
[null,"110","Cerisier tardif","110_Cerisier tardif","04351",null,55,"CAAF","Bégin & Bégin inc. (Saint-Juste-du-Lac)","Bégin & Bégin incorporé ( sciage )",null,null,55,"Bégin & Bégin inc. (Saint-Juste-du-Lac)"]
[null,"210","Tilleul d’Amérique","210_Tilleul d’Amérique","04352",null,59,"CAAF","Groupe Lebel inc. (Saint-Joseph-de Kamouraska)","Groupe Lebel inc.",null,null,59,"Groupe Lebel inc. (Saint-Joseph-de Kamouraska)"]
[null,"041","Pin blanc","041_Pin blanc","05151",null,60,"CAAF","Les Bardeaux Lajoie inc. ( Division Ste-Françoise )","Les Bardeaux Lajoie inc.",null,null,60,"Les Bardeaux Lajoie inc. ( Division Ste-Françoise )"]
[null,"042","Pin rouge","042_Pin rouge","06151",null,61,"CAAF","Groupe Lebel inc. (Biencourt)","Groupe Lebel inc.",null,null,61,"Groupe Lebel inc. (Biencourt)"]
[null,"050","Pruche de l’Est","050_Pruche de l’Est","06271",null,63,"CAAF","Les Bardeaux Lajoie inc.","Les Bardeaux Lajoie inc.",null,null,63,"Les Bardeaux Lajoie inc."]
[null,"080","Thuya occidental","080_Thuya occidental","06452",null,64,"CAAF","Deniso Lebel inc. (Notre-Dame-du-Lac)","Deniso Lebel inc.",null,null,64,"Deniso Lebel inc. (Notre-Dame-du-Lac)"]
[null,"370","SEPM","370_SEPM","06471",null,66,"CAAF","Pabaced G.D.S. inc. (St-Eusèbe)","Pabaced G.D.S. inc.",null,null,66,"Pabaced G.D.S. inc. (St-Eusèbe)"]
[null,495,"Feuillus","495_Feuillus","07151",null,68,"CAAF","Cascade Emballage carton-caisse-Cabano, Cascades Canada ULC","Cascade Canada ULC.(Cabano)",null,null,68,"Cascade Emballage carton-caisse-Cabano, Cascades Canada ULC"]
[null,null,null,"","07152",null,69,"CAAF","Charbon de bois franc Basques inc.","Charbon de bois franc Basques inc.",null,null,69,"Charbon de bois franc Basques inc."]
[null,null,null,"","07251",null,70,"CAAF","Groupe Lebel inc. (Dégelis)","Groupe Lebel inc.",null,null,70,"Groupe Lebel inc. (Dégelis)"]
[null,null,null,"","07351",null,72,"CAAF","Groupe NBG INC.","Groupe NBG inc.",null,null,72,"Groupe NBG INC."]
[null,null,null,"","07352",null,73,"CAAF","Groupe Lebel inc. ( Vallée-des-Lacs)","Groupe Lebel inc.",null,null,73,"Groupe Lebel inc. ( Vallée-des-Lacs)"]
[null,null,null,"","07451",null,74,"CAAF","Bois de sciage Lafontaine Inc. (Mont-Carmel)","Bois de sciage Lafontaine Inc. (division Pelem)",null,null,74,"Bois de sciage Lafontaine Inc. (Mont-Carmel)"]
[null,null,null,"","08151",null,75,"CAAF","Bowater Mitis inc (Lac-des-Aigles)","Bowater Mitis inc.",null,null,75,"Bowater Mitis inc (Lac-des-Aigles)"]
[null,null,null,"","08152",null,76,"CAAF","Groupe Lebel inc. (Squatec)","Groupe Lebel inc.",null,null,76,"Groupe Lebel inc. (Squatec)"]
[null,null,null,"","08251",null,77,"CAAF","Scierie J.M. Girard","J.M. Girard Inc.(scierie J.M.G.)",null,null,77,"Scierie J.M. Girard"]
[null,null,null,"","08351",null,78,"CAAF","Bois d'oeuvre Cedrico Inc. (Sainte-Florence)","Bois d'oeuvre Cedrico Inc.",null,null,78,"Bois d'oeuvre Cedrico Inc. (Sainte-Florence)"]
[null,null,null,"","08451",null,80,"CAAF","Bois d'oeuvre Cedrico Inc. (Price)","Bois d'oeuvre Cedrico Inc.",null,null,80,"Bois d'oeuvre Cedrico Inc. (Price)"]
[null,null,null,"","08462",null,81,"CAAF","Félix Huard inc. (Sainte-Luce)","Félix Huard inc",null,null,81,"Félix Huard inc. (Sainte-Luce)"]
[null,null,null,"","08551",null,85,"CAAF","Multi Cèdre ltée","Multi Cèdre ltée",null,null,85,"Multi Cèdre ltée"]
[null,null,null,"","08562",null,87,"CAAF","Lulumco inc.","Lulumco inc.",null,null,87,"Lulumco inc."]
[null,null,null,"","08651",null,88,"CAAF","Bois d'oeuvre Cedrico inc. (Causapscal)","Bois d'oeuvre Cedrico Inc.",null,null,88,"Bois d'oeuvre Cedrico inc. (Causapscal)"]
[null,null,null,"","08652",null,89,"CAAF","Scierie de Sainte-Irène ltée","Scierie de Sainte-Irène Ltée",null,null,89,"Scierie de Sainte-Irène ltée"]
[null,null,null,"","08663",null,90,"CAAF","Bois CFM inc.","Bois CFM inc",null,null,90,"Bois CFM inc."]
[null,null,null,"","08664",null,91,"CAAF","Groupe Lebel inc. (Price)","Groupe Lebel inc.",null,null,91,"Groupe Lebel inc. (Price)"]
[null,null,null,"","08665",null,92,"CAAF","Scierie de Sainte-Irène ltée","Scierie de Sainte-Irène Ltée",null,null,92,"Scierie de Sainte-Irène ltée"]
[null,null,null,"","08666",null,94,"CAAF","Usine Thériault & Thériault inc.","Usine Thériault & Thériault inc.",null,null,94,"Usine Thériault & Thériault inc."]
[null,null,null,"","08751",null,97,"CAAF","Scierie St-Elzear inc.","Scierie St-Elzear inc.",null,null,97,"Scierie St-Elzear inc."]
[null,null,null,"","08762",null,99,"CAAF","Groupe Lebel inc. (Nouvelle)","Groupe Lebel inc. (Nouvelle)",null,null,99,"Groupe Lebel inc. (Nouvelle)"]
[null,null,null,"","08763",null,100,"CAAF","Gaston Cellard inc.","Gaston Cellard inc.",null,null,100,"Gaston Cellard inc."]
[null,null,null,"","08764",null,101,"CAAF","Industries G.D.S. inc. (Pointe-à-la-Croix)","Industries G.D.S inc.",null,null,101,"Industries G.D.S. inc. (Pointe-à-la-Croix)"]
[null,null,null,"","09351",null,102,"CAAF","Pabaced G.D.S. inc., Division New-Richmond","Pabaced G.D.S. inc.",null,null,102,"Pabaced G.D.S. inc., Division New-Richmond"]
[null,null,null,"","09352",null,104,"CAAF","Les Productions JAS inc.","Productions JAS inc.",null,null,104,"Les Productions JAS inc."]
[null,null,null,"","09471",null,106,"CAAF","Rosario Poirier inc.","Rosario Poirier inc.",null,null,106,"Rosario Poirier inc."]
[null,null,null,"","09551",null,107,"CAAF","Usine st-alphonse","Produits Forestiers Temrex, S.E.C.",null,null,107,"Usine st-alphonse"]
[null,null,null,"","09751",null,108,"CAAF","Uniboard Canada inc. (Sayabec)","Uniboard Canada inc. (Sayabec)",null,null,108,"Uniboard Canada inc. (Sayabec)"]
[null,null,null,"","11161",null,114,"CAAF","Bois Granval G.D.S. inc.","Bois Granval G.D.S. inc.",null,null,114,"Bois Granval G.D.S. inc."]
[null,null,null,"","11262",null,125,"CAAF","Bois Marsoui G.D.S. inc.","Bois Marsoui G.D.S. Inc.",null,null,125,"Bois Marsoui G.D.S. inc."]
[null,null,null,"","11263",null,127,"CAAF","9063-4221 Québec inc. (Multibois-Saint René)","9063-4221 Québec inc.",null,null,127,"9063-4221 Québec inc. (Multibois-Saint René)"]
[null,null,null,"",null,null,129,"CAAF","Damabois division Cap-Chat inc. (Sciage résineux)","Damabois division Cap-Chat inc. (Sciage résineux)",null,null,129,"Damabois division Cap-Chat inc. (Sciage résineux)"]
[null,null,null,"",null,null,130,"CAAF","Les Bois de plancher Gaspésien inc.","Les Bois de plancher Gaspésien inc.",null,null,130,"Les Bois de plancher Gaspésien inc."]
[null,null,null,"",null,null,134,"CAAF","Scierie Lauzé inc.","Scierie Lauzé inc.",null,null,134,"Scierie Lauzé inc."]
[null,null,null,"",null,null,135,"CAAF","Vexco inc.","Vexco inc.",null,null,135,"Vexco inc."]
[null,null,null,"",null,null,136,"CAAF","C. Meilleur & Fils inc.","C. Meilleur & Fils inc.",null,null,136,"C. Meilleur & Fils inc."]
[null,null,null,"",null,null,137,"CAAF","Forex inc. Division Rivière Rouge","Forex Inc.",null,null,137,"Forex inc. Division Rivière Rouge"]
[null,null,null,{"$f":"IF(B67<>\"\",CONCATENATE(B67,\"_\",C67),\"\")","v":""},null,null,138,"CAAF","Scierie Bondu inc.","Scierie Bondu inc.",null,null,138,"Scierie Bondu inc."]
[null,null,null,"",null,null,139,"CAAF","Forex inc.  (Mont-Laurier)","Forex inc. (Feuillus)",null,null,139,"Forex inc.  (Mont-Laurier)"]
[null,null,null,"",null,null,140,"CAAF","Forex division Mont-Laurier  (sciage Feuillus)","Forex inc. (Feuillus)",null,null,140,"Forex division Mont-Laurier  (sciage Feuillus)"]
[null,null,null,"",null,null,141,"CAAF","Les Bois Laurentiens Scierie Gaudreault inc.","Les Bois Laurentiens Scierie Gaudreault inc.",null,null,141,"Les Bois Laurentiens Scierie Gaudreault inc."]
[null,null,null,"",null,null,142,"CAAF","Groupe Crête Ferme-Neuve inc.","Groupe Crête Ferme-Neuve inc.",null,null,142,"Groupe Crête Ferme-Neuve inc."]
[null,null,null,"",null,null,143,"CAAF","Division Mont-Laurier","Uniboard Canada inc. (Sayabec)",null,null,143,"Division Mont-Laurier"]
[null,null,null,"",null,null,145,"CAAF","La Compagnie Commonwealth Plywood ltée (Mont-Laurier)","La Compagnie Commonwealth Plywood ltée",null,null,145,"La Compagnie Commonwealth Plywood ltée (Mont-Laurier)"]
[null,null,null,"",null,null,146,"CAAF","Scierie Armand Tremblay et Fils inc.","Scierie Armand Tremblay et fils inc.",null,null,146,"Scierie Armand Tremblay et Fils inc."]
[null,null,null,"",null,null,149,"CAAF","La Compagnie Commonwealth Plywood ltée(Rapides-des-Joachims)","La Compagnie Commonwealth Plywood ltée",null,null,149,"La Compagnie Commonwealth Plywood ltée(Rapides-des-Joachims)"]
[null,null,null,"",null,null,150,"CAAF","Jovalco Produit forestier inc.","Jovalco Produit forestier inc.",null,null,150,"Jovalco Produit forestier inc."]
[null,null,null,"",null,null,152,"CAAF","Pin Davidson Inc.","Pin Davidson inc.",null,null,152,"Pin Davidson Inc."]
[null,null,null,"",null,null,153,"CAAF","La Compagnie Commonwealth Plywood ltée (Low)","La Compagnie Commonwealth Plywood Ltée",null,null,153,"La Compagnie Commonwealth Plywood ltée (Low)"]
[null,null,null,"",null,null,155,"CAAF","La Compagnie Commonwealth Plywood ltée ( Denholm)","La Compagnie Commonwealth Plywood ltée",null,null,155,"La Compagnie Commonwealth Plywood ltée ( Denholm)"]
[null,null,null,"",null,null,158,"CAAF","Papier Masson Ltée","Papier Masson Ltée",null,null,158,"Papier Masson Ltée"]
[null,null,null,"",null,null,159,"CAAF","Fortress Specialty Cellulose inc","Fortress Specialty Cellulose inc.",null,null,159,"Fortress Specialty Cellulose inc"]
[null,null,null,"",null,null,160,"CAAF","Lauzon-Planchers de bois exclusifs inc .","Lauzon-planchers de bois exclusifs inc.",null,null,160,"Lauzon-Planchers de bois exclusifs inc ."]
[null,null,null,"",null,null,161,"CAAF","Forespect inc.","Forespect inc.",null,null,161,"Forespect inc."]
[null,null,null,"",null,null,163,"CAAF","Cie.Commonwealt Plywood ltée (Northfield)","La Compagnie Commonwealth Plywood Ltée",null,null,163,"Cie.Commonwealt Plywood ltée (Northfield)"]
[null,null,null,"",null,null,165,"CAAF","Lauzon-Ressources forestières inc.","Lauzon-Ressources forestières inc.",null,null,165,"Lauzon-Ressources forestières inc."]
[null,null,null,"",null,null,166,"CAAF","Domtar inc (Grand-Remous)","Domtar inc.",null,null,166,"Domtar inc (Grand-Remous)"]
[null,null,null,"",null,null,168,"CAAF","La Cie. Commonwealth Plywood Ltée ( Belleter. déroul.)","La Compagnie Commonwealth Plywood ltée",null,null,168,"La Cie. Commonwealth Plywood Ltée ( Belleter. déroul.)"]
[null,null,null,"",null,null,172,"CAAF","Chantiers Chibougamau (Béarn)","Les Chantiers de Chibougamau ltée",null,null,172,"Chantiers Chibougamau (Béarn)"]
[null,null,null,"",null,null,173,"CAAF","LVL Global inc.","LVL Global inc.",null,null,173,"LVL Global inc."]
[null,null,null,"",null,null,175,"CAAF","Rayonier A.M. Canada S.E.N.C. (Témiscaming)","Rayonier A.M. Canada S.E.N.C. (Témiscaming)",null,null,175,"Rayonier A.M. Canada S.E.N.C. (Témiscaming)"]
[null,null,null,"",null,null,178,"CAAF","La Scierie Martel ltée","La Scierie Martel ltée",null,null,178,"La Scierie Martel ltée"]
[null,null,null,"",null,null,182,"CAAF","Les Scieries du Lac St-Jean inc.","Les Scieries du Lac St-Jean inc.",null,null,182,"Les Scieries du Lac St-Jean inc."]
[null,null,null,"",null,null,185,"CAAF","8199116 Canada inc (Groupe Lignarex)","Groupe Lignarex inc.",null,null,185,"8199116 Canada inc (Groupe Lignarex)"]
[null,null,null,"",null,null,186,"CAAF","Scierie Lachance 2015","Scierie Lachance 2015",null,null,186,"Scierie Lachance 2015"]
[null,null,null,"",null,null,189,"CAAF","PF Résolu Canada inc. (Roberval)","PF Résolu Canada inc.",null,null,189,"PF Résolu Canada inc. (Roberval)"]
[null,null,null,"",null,null,190,"CAAF","Les Industries Piékouagame inc.","Les Industries Piékouagame inc.",null,null,190,"Les Industries Piékouagame inc."]
[null,null,null,"",null,null,191,"CAAF","Norbord inc ( Usine Chambord)","Norbord Inc.",null,null,191,"Norbord inc ( Usine Chambord)"]
[null,null,null,"",null,null,195,"CAAF","Les Produits forestiers Ouiatchouan inc.","Les Produits forestiers Ouiatchouan inc.",null,null,195,"Les Produits forestiers Ouiatchouan inc."]
[null,null,null,"",null,null,197,"CAAF","Coopérative forestière Laterrière","Coopérative forestière Laterrière (division St-Fulgence)",null,null,197,"Coopérative forestière Laterrière"]
[null,null,null,"",null,null,199,"CAAF","Scierie Girard Inc.","Scierie Girard Inc.",null,null,199,"Scierie Girard Inc."]
[null,null,null,"",null,null,201,"CAAF","Arbec, Usine L'Ascension","Arbec, Bois d'oeuvre inc.",null,null,201,"Arbec, Usine L'Ascension"]
[null,null,null,"",null,null,204,"CAAF","Bois Francs Bio Serra","Bois Francs Bio Serra",null,null,204,"Bois Francs Bio Serra"]
[null,null,null,"",null,null,206,"CAAF","PF Résolu Canada inc. (Girardville)","PF Résolu Canada inc.",null,null,206,"PF Résolu Canada inc. (Girardville)"]
[null,null,null,"",null,null,207,"CAAF","PF Résolu Canada inc. (La Doré)","PF Résolu Canada inc.",null,null,207,"PF Résolu Canada inc. (La Doré)"]
[null,null,null,"",null,null,208,"CAAF","PF Résolu Canada inc. (St-Thomas)","PF Résolu Canada inc.",null,null,208,"PF Résolu Canada inc. (St-Thomas)"]
[null,null,null,"",null,null,209,"CAAF","PF Résolu Canada inc. ( St-Félicien)","PF Résolu Canada inc.",null,null,209,"PF Résolu Canada inc. ( St-Félicien)"]
[null,null,null,"",null,null,210,"CAAF","Bowater Mitis inc. (Girardville)","Bowater Mitis inc.",null,null,210,"Bowater Mitis inc. (Girardville)"]
[null,null,null,"",null,null,212,"CAAF","Produits forestier Lambois inc.","Produits forestiers Lambois inc.",null,null,212,"Produits forestier Lambois inc."]
[null,null,null,"",null,null,215,"CAAF","Barrette-Chapais ltée","Barrette-Chapais ltée",null,null,215,"Barrette-Chapais ltée"]
[null,null,null,"",null,null,217,"CAAF","Les Chantiers de Chibougamau ltée","Les Chantiers de Chibougamau ltée",null,null,217,"Les Chantiers de Chibougamau ltée"]
[null,null,null,"",null,null,219,"CAAF","Produits forestiers Petit-Paris inc.","Produits forestiers Petit-Paris inc.",null,null,219,"Produits forestiers Petit-Paris inc."]
[null,null,null,"",null,null,220,"CAAF","PF Résolu Canada inc. (Dolbeau-Sciage)","PF Résolu Canada inc.",null,null,220,"PF Résolu Canada inc. (Dolbeau-Sciage)"]
[null,null,null,"",null,null,222,"CAAF","Multiforêt inc.","Multiforêt Inc.",null,null,222,"Multiforêt inc."]
[null,null,null,"",null,null,225,"CAAF","Domtar inc.","Domtar inc.",null,null,225,"Domtar inc."]
[null,null,null,"",null,null,226,"CAAF","La Corporation internationale Masonite","Compagnie de Placage Mégantic inc.",null,null,226,"La Corporation internationale Masonite"]
[null,null,null,"",null,null,227,"CAAF","Les Billots Sélect Mégantic inc.","Les Billots Sélect Mégantic inc.",null,null,227,"Les Billots Sélect Mégantic inc."]
[null,null,null,"",null,null,228,"CAAF","Adélard Goyette & Fils ltée","Adélard Goyette & Fils ltée",null,null,228,"Adélard Goyette & Fils ltée"]
[null,null,null,"",null,null,229,"CAAF","Scierie Dion & Fils inc. (Saint-Raymond)","Scierie Dion & Fils inc. (Saint-Raymond)",null,null,229,"Scierie Dion & Fils inc. (Saint-Raymond)"]
[null,null,null,"",null,null,231,"CAAF","Gestofor inc.","Gestofor inc.",null,null,231,"Gestofor inc."]
[null,null,null,"",null,null,232,"CAAF","Charbon de Bois Feuille d'Érable inc.","Charbon de Bois Feuille d'Érable inc.",null,null,232,"Charbon de Bois Feuille d'Érable inc."]
[null,null,null,"",null,null,233,"CAAF","Éloi Moisan inc. (Saint-Gilbert)","Éloi Moisan inc.",null,null,233,"Éloi Moisan inc. (Saint-Gilbert)"]
[null,null,null,"",null,null,234,"CAAF","AbiBow Canada inc. (Div. St-Raymond","Compagnie Abitibi-Consolidated du Canada",null,null,234,"AbiBow Canada inc. (Div. St-Raymond"]
[null,null,null,"",null,null,236,"CAAF","Éloi Moisan inc. (Saint-Léonard-de-Portneuf)","Éloi Moisan inc.",null,null,236,"Éloi Moisan inc. (Saint-Léonard-de-Portneuf)"]
[null,null,null,"",null,null,237,"CAAF","Savard & Fils inc.","Savard & Fils inc.",null,null,237,"Savard & Fils inc."]
[null,null,null,"",null,null,239,"CAAF","Scierie P.S.E. inc.","Scierie P.S.E. inc.",null,null,239,"Scierie P.S.E. inc."]
[null,null,null,"",null,null,243,"CAAF","Scierie Montauban inc.","Scierie Montauban inc.",null,null,243,"Scierie Montauban inc."]
[null,null,null,"",null,null,244,"CAAF","Arbec, Usine Saint-Roch","Arbec, Bois d'oeuvre inc.",null,null,244,"Arbec, Usine Saint-Roch"]
[null,null,null,"",null,null,245,"CAAF","Kruger, Forêts et Produits forestiers","Kruger GCF inc.",null,null,245,"Kruger, Forêts et Produits forestiers"]
[null,null,null,"",null,null,247,"CAAF","Bois franc Cyclone inc.","Bois franc Cyclone inc.",null,null,247,"Bois franc Cyclone inc."]
[null,null,null,"",null,null,248,"CAAF","Scierie Dion et Fils inc. (Saint-Tite)","Scierie Dion et Fils inc. (Saint-Tite)",null,null,248,"Scierie Dion et Fils inc. (Saint-Tite)"]
[null,null,null,{"$f":"IF(B131<>\"\",CONCATENATE(B131,\"_\",C131),\"\")","v":""},null,null,249,"CAAF","Division Trois-Rivières","Papiers de publication Kruger inc. (Division Trois-Rivières)",null,null,249,"Division Trois-Rivières"]
[null,null,null,"",null,null,251,"CAAF","La Compagnie Commonwealth Plywood ltée (Princeville)","La Compagnie Commonwealth Plywood ltée",null,null,251,"La Compagnie Commonwealth Plywood ltée (Princeville)"]
[null,null,null,"",null,null,253,"CAAF","Clément Simard","Simard Clément",null,null,253,"Clément Simard"]
[null,null,null,"",null,null,254,"CAAF","L. H. Plante & Fils, inc.","L.H. Plante & Fils, inc.",null,null,254,"L. H. Plante & Fils, inc."]
[null,null,null,"",null,null,255,"CAAF","La Compagnie Commonwealth Plywood ltée (Shawinigan)","La Compagnie Commonwealth Plywood ltée",null,null,255,"La Compagnie Commonwealth Plywood ltée (Shawinigan)"]
[null,null,null,"",null,null,256,"CAAF","Produits forestiers Arbec S.E.N.C.  (Shawinigan)","Produit Forestier Arbec inc.",null,null,256,"Produits forestiers Arbec S.E.N.C.  (Shawinigan)"]
[null,null,null,"",null,null,263,"CAAF","Compagnie Westrock du Canada Corp.","Compagnie Westrock du Canada Corp.",null,null,263,"Compagnie Westrock du Canada Corp."]
[null,null,null,"",null,null,265,"CAAF","Industries John Lewis ltée","Industries John Lewis ltée",null,null,265,"Industries John Lewis ltée"]
[null,null,null,"",null,null,266,"CAAF","La Compagnie Commonwealth Plywood ltée (La Croche)","La Compagnie Commonwealth Plywood ltée",null,null,266,"La Compagnie Commonwealth Plywood ltée (La Croche)"]
[null,null,null,"",null,null,267,"CAAF","Arbec, Usine Parent","Arbec, Bois d'oeuvre inc.",null,null,267,"Arbec, Usine Parent"]
[null,null,null,"",null,null,268,"CAAF","Fontaine inc.","Fontaine inc.",null,null,268,"Fontaine inc."]
[null,null,null,"",null,null,273,"CAAF","Bois La Minerve inc.","Bois La Minerve inc.",null,null,273,"Bois La Minerve inc."]
[null,null,null,"",null,null,274,"CAAF","Scierie Carrière ltée","Scierie Carrière ltée",null,null,274,"Scierie Carrière ltée"]
[null,null,null,"",null,null,277,"CAAF","Guy Baril & Fils inc.","Guy Baril & Fils inc.",null,null,277,"Guy Baril & Fils inc."]
[null,null,null,"",null,null,280,"CAAF","Groupe Crête Chertsey inc.","Groupe Crête Chertsey inc.",null,null,280,"Groupe Crête Chertsey inc."]
[null,null,null,"",null,null,281,"CAAF","La Cie. Commonwealth Plywood ltée (St-Thérèse)","La Compagnie Commonwealth Plywood ltée",null,null,281,"La Cie. Commonwealth Plywood ltée (St-Thérèse)"]
[null,null,null,"",null,null,282,"CAAF","Produits Forestiers Lachance inc.","Produits Forestiers Lachance inc.",null,null,282,"Produits Forestiers Lachance inc."]
[null,null,null,"",null,null,284,"CAAF","Société 9330-7569 Québec inc. (Scierie Dumais)","Société 9330-7569 Québec inc. (Scierie Dumais)",null,null,284,"Société 9330-7569 Québec inc. (Scierie Dumais)"]
[null,null,null,"",null,null,287,"CAAF","9308-3517 Québec inc. (Scierie St-Michel)","Scierie St-Michel inc.",null,null,287,"9308-3517 Québec inc. (Scierie St-Michel)"]
[null,null,null,"",null,null,292,"CAAF","PF Résolu Canada inc. (Baie-Comeau)","PF Résolu Canada inc.",null,null,292,"PF Résolu Canada inc. (Baie-Comeau)"]
[null,null,null,"",null,null,302,"CAAF","Coop. forestière de Papineau-Labelle","Coopérative forestière de Papineau-Labelle",null,null,302,"Coop. forestière de Papineau-Labelle"]
[null,null,null,"",null,null,307,"CAAF","Valibois inc.","Valibois inc.",null,null,307,"Valibois inc."]
[null,null,null,"",null,null,309,"CAAF","Maibec inc.","Maibec inc.",null,null,309,"Maibec inc."]
[null,null,null,"",null,null,318,"CAAF","Boiseries Savco Inc.","Boiseries SAVCO Inc.",null,null,318,"Boiseries Savco Inc."]
[null,null,null,"",null,null,319,"CAAF","Éco-Cédre inc.","Éco-Cèdre inc.",null,null,319,"Éco-Cédre inc."]
[null,null,null,"",null,null,320,"CAAF","Bersaco inc.","Bersaco inc.",null,null,320,"Bersaco inc."]
[null,null,null,"",null,null,321,"CAAF","Scierie Ced-Or inc.","Scierie Ced-Or inc.",null,null,321,"Scierie Ced-Or inc."]
[null,null,null,"",null,null,323,"CAAF","Atelier Taureau inc.","Atelier Taureau inc.",null,null,323,"Atelier Taureau inc."]
[null,null,null,"",null,null,324,"CAAF","S.M.T inc.","S.M.T inc",null,null,324,"S.M.T inc."]
[null,null,null,"",null,null,327,"CAAF","Fournitures minières Simard inc.","Fournitures minières Simard inc.",null,null,327,"Fournitures minières Simard inc."]
[null,null,null,"",null,null,329,"CAAF","Produits forestiers La Tuque inc.","Produits Forestiers La Tuque inc.",null,null,329,"Produits forestiers La Tuque inc."]
[null,null,null,"",null,null,330,"CAAF","PF Résolu Canada inc. (Maniwaki)","PF Résolu Canada inc.",null,null,330,"PF Résolu Canada inc. (Maniwaki)"]
[null,null,null,"",null,null,333,"CAAF","Clérobec inc. (Sayabec-Sciage)","Clérobec inc.",null,null,333,"Clérobec inc. (Sayabec-Sciage)"]
[null,null,null,"",null,null,334,"CAAF","Kruger inc (Forestville)","Kruger Inc. (division forêts et prod. for., Scierie HCN)",null,null,334,"Kruger inc (Forestville)"]
[null,null,null,"",null,null,336,"CAAF","Usine Bois Saumon Inc.","Usine Bois Saumon Inc.",null,null,336,"Usine Bois Saumon Inc."]
[null,null,null,"",null,null,337,"CAAF","Félix Huard inc. (Amqui)","Félix Huard Inc.",null,null,337,"Félix Huard inc. (Amqui)"]
[null,null,null,"",null,null,338,"CAAF","Produits forestiers Berscifor inc.","Produits forestiers Berscifor inc.",null,null,338,"Produits forestiers Berscifor inc."]
[null,null,null,"",null,null,343,"CAAF","Louisiana-Pacifique Canada Ltd (Maniwaki)","Louisiana-Pacifique Canada Ltd",null,null,343,"Louisiana-Pacifique Canada Ltd (Maniwaki)"]
[null,null,null,"",null,null,344,"CAAF","Arbec Usine Port-Cartier","Arbec, Bois d'oeuvre inc.",null,null,344,"Arbec Usine Port-Cartier"]
[null,null,null,"",null,null,345,"CAAF","Produits forestiers Nabakatuk 2008, CAAF 0345","Produits forestiers Nabakatuk 2008 S.E.N.C.",null,null,345,"Produits forestiers Nabakatuk 2008, CAAF 0345"]
[null,null,null,"",null,null,347,"CAAF","Produits forestiers Mauricie S.E.C.","Produits forestiers Mauricie S.E.C.",null,null,347,"Produits forestiers Mauricie S.E.C."]
[null,null,null,"",null,null,349,"CAAF","RBF Scierie La Tuque inc.","RBF Scierie La Tuque inc.",null,null,349,"RBF Scierie La Tuque inc."]
[null,null,null,"",null,null,350,"CAAF","Entreprises Sappi Canada inc. (Matane)","Entreprises Sappi Canada inc. (Matane)",null,null,350,"Entreprises Sappi Canada inc. (Matane)"]
[null,null,null,"",null,null,352,"CAAF","Billosag","9047-4735 Québec Inc. (Billosag )",null,null,352,"Billosag"]
[null,null,null,"",null,null,353,"CAAF","Transec inc.","9004-9206 Québec inc. (Transec Inc.)",null,null,353,"Transec inc."]
[null,null,null,"",null,null,354,"CAAF","Les entreprises Alain Maltais inc.","Les Entreprises Alain Maltais inc.",null,null,354,"Les entreprises Alain Maltais inc."]
[null,null,null,"",null,null,355,"CAAF","Le Spécialiste du bardeau de cèdre inc.","Le Spécialiste du Bardeau de Cèdre inc.",null,null,355,"Le Spécialiste du bardeau de cèdre inc."]
[null,null,null,"",null,null,356,"CAAF","Industries A.R. inc.","Industries A.R. inc.",null,null,356,"Industries A.R. inc."]
[null,null,null,"",null,null,357,"CAAF","Concord-Bury inc.","Concord-Bury inc.",null,null,357,"Concord-Bury inc."]
[null,null,null,"",null,null,359,"CAAF","Les Entreprises Tembec inc. (sciage feuillus)","Les Entreprises Tembec inc.",null,null,359,"Les Entreprises Tembec inc. (sciage feuillus)"]
[null,null,null,"",null,null,360,"CAAF","CELLARD INC.","CELLARD INC.",null,null,360,"CELLARD INC."]
[null,null,null,"",null,null,363,"CAAF","Kruger inc(Raguenau)","Kruger Inc. (div. forêts et prod. for., Scierie Manic)",null,null,363,"Kruger inc(Raguenau)"]
[null,null,null,"",null,null,365,"CAAF","Multibois F.L. inc. (Sciage)","Multibois F.L. Inc.",null,null,365,"Multibois F.L. inc. (Sciage)"]
[null,null,null,"",null,null,366,"CAAF","Société en commandite Scierie Opitciwan","Société en commandite Scierie Opitciwan",null,null,366,"Société en commandite Scierie Opitciwan"]
[null,null,null,"",null,null,374,"CAAF","Scirie Produits de bois Dufour inc","Scierie Produits de bois Dufour Inc.",null,null,374,"Scirie Produits de bois Dufour inc"]
[null,null,null,"",null,null,380,"CAAF","Barreau La Tuque inc","Barreau La Tuque inc.",null,null,380,"Barreau La Tuque inc"]
[null,null,null,"",null,null,381,"CAAF","9085-1742 Québec inc. (Florent Tremblay)","9085-1742 Québec inc. (Florent Tremblay)",null,null,381,"9085-1742 Québec inc. (Florent Tremblay)"]
[null,null,null,"",null,null,382,"CAAF","Stella Jones inc (Albanel)","Stella-Jones inc.",null,null,382,"Stella Jones inc (Albanel)"]
[null,null,null,"",null,null,385,"CAAF","Scierie Lemay Inc.","Scierie Lemay inc.",null,null,385,"Scierie Lemay Inc."]
[null,null,null,"",null,null,386,"CAAF","Pan-O-Starr inc.","Pan-O-Starr inc.",null,null,386,"Pan-O-Starr inc."]
[null,null,null,"",null,null,390,"CAAF","S.M.T. inc.","S.M.T. inc.",null,null,390,"S.M.T. inc."]
[null,null,null,"",null,null,392,"CAAF","Société en commandite Scierie Tackipotcikan","Société en commandite Scierie Tackipotcikan",null,null,392,"Société en commandite Scierie Tackipotcikan"]
[null,null,null,"",null,null,396,"CAAF","Welsh et Fils inc.","Welsh et Fils inc.",null,null,396,"Welsh et Fils inc."]
[null,null,null,"",null,null,397,"CAAF","9118-1578 Québec inc. (Scierie Messines)","9118-1578 Québec inc. (Scierie Messines)",null,null,397,"9118-1578 Québec inc. (Scierie Messines)"]
[null,null,null,{"$f":"IF(B195<>\"\",CONCATENATE(B195,\"_\",C195),\"\")","v":""},null,null,399,"CAAF","Les Exploitation J.Y.B. Papineau inc.","Les Exploitations J.Y.B. Papineau inc.",null,null,399,"Les Exploitation J.Y.B. Papineau inc."]
[null,null,null,"",null,null,402,"CAAF","Forex Amos inc.","Forex Amos inc.",null,null,402,"Forex Amos inc."]
[null,null,null,"",null,null,404,"CAAF","PF Résolu Canada inc. (Maniwaki)","PF Résolu Canada inc.",null,null,404,"PF Résolu Canada inc. (Maniwaki)"]
[null,null,null,"",null,null,405,"CAAF","Groupe Crête division St-Faustin inc.","Groupe Crête division St-Faustin inc.",null,null,405,"Groupe Crête division St-Faustin inc."]
[null,null,null,"",null,null,406,"CAAF","9066-7866 Québec inc.","9066-7866 Québec inc",null,null,406,"9066-7866 Québec inc."]
[null,null,null,"",null,null,407,"CAAF","9074-3899 Québec inc.(usine st-Félicien)","9074-3899 Québec inc.",null,null,407,"9074-3899 Québec inc.(usine st-Félicien)"]
[null,null,null,"",null,null,408,"CAAF","Produits Forestiers Bonavignon inc.","Produits Forestiers Bonavignon inc.",null,null,408,"Produits Forestiers Bonavignon inc."]
[null,null,null,"",null,null,413,"CAAF","Damabois division Cap-Chat inc.","Damabois division Cap-Chat inc.",null,null,413,"Damabois division Cap-Chat inc."]
[null,null,null,"",null,null,415,"CAAF","Maibec inc.","Maibec inc.",null,null,415,"Maibec inc."]
[null,null,null,"",null,null,420,"CAAF","9139-7265 Québec inc. (Les Entreprises Ushkuai)","9139-7265 Québec inc. (Les Entreprises Ushkuai)",null,null,420,"9139-7265 Québec inc. (Les Entreprises Ushkuai)"]
[null,null,null,"",null,null,425,"CAAF","Bois Nobles Ka 'N' Enda   (sciage 2)","Forex inc. - Division Bois Nobles",null,null,425,"Bois Nobles Ka 'N' Enda   (sciage 2)"]
[null,null,null,"",null,null,427,"CAAF","Papiers de publications Kruger inc.","Papier de publication Kruger inc",null,null,427,"Papiers de publications Kruger inc."]
[null,null,null,"",null,null,428,"CAAF","Bois Cargault inc.","Bois Cargault inc.",null,null,428,"Bois Cargault inc."]
[null,null,null,"",null,null,430,"CAAF","Trébio inc","Trébio inc",null,null,430,"Trébio inc"]
[null,null,null,"",null,null,434,"CAAF","Scierie de la Vallée","Scierie de la Vallée",null,null,434,"Scierie de la Vallée"]
[null,null,null,"",null,null,438,"CAAF","Cédart-Tech inc.","Cédart-Tech inc.",null,null,438,"Cédart-Tech inc."]
[null,null,null,"",null,null,439,"CAAF","Transfobec Mauricie","9141-2189 Québec inc. (Transfobec Mauricie)",null,null,439,"Transfobec Mauricie"]
[null,null,null,"",null,null,440,"CAAF","Les Industries Picard & Poulin inc.","Les Industries Picard & Poulin inc.",null,null,440,"Les Industries Picard & Poulin inc."]
[null,null,null,"",null,null,441,"CAAF","Elkem Métal Canada inc.","Elkem Métal Canada inc.",null,null,441,"Elkem Métal Canada inc."]
[null,null,null,"",null,null,442,"CAAF","14699499 Canada inc. (Arbec Amos)","14969499 Canada inc.",null,null,442,"14699499 Canada inc. (Arbec Amos)"]
[null,null,null,"",null,null,443,"CAAF","Xylo-Carbone inc.","Xylo-Carbone inc.",null,null,443,"Xylo-Carbone inc."]
[null,null,null,"",null,null,444,"CAAF","Arbec, Usine La Tuque","Arbec, Bois d'oeuvre inc.",null,null,444,"Arbec, Usine La Tuque"]
[null,null,null,"",null,null,445,"CAAF","Damabois inc","Damabois inc.",null,null,445,"Damabois inc"]
[null,null,null,"",null,null,446,"CAAF","Scierie Arbotek inc.","Scierie Arbotek inc.",null,null,446,"Scierie Arbotek inc."]
[null,null,null,"",null,null,447,"CAAF","Champeau Inc.","Champeau Inc.",null,null,447,"Champeau Inc."]
[null,null,null,"",null,null,450,"CAAF","Savco inc.","Savco inc.",null,null,450,"Savco inc."]
[null,null,null,"",null,null,451,"CAAF","Bois CFM inc. (Sainte-Florence)","Bois CFM inc.",null,null,451,"Bois CFM inc. (Sainte-Florence)"]
[null,null,null,"",null,null,452,"CAAF","9383-2376 Quebec inc. (Scierie Matra)","9383-2376 Québec inc. (Scierie Matra)",null,null,452,"9383-2376 Quebec inc. (Scierie Matra)"]
[null,null,null,"",null,null,453,"CAAF","Biomasse du Lac Taureau","9455-8624 Quebec inc.",null,null,453,"Biomasse du Lac Taureau"]
[null,null,null,"",null,null,454,"CAAF","Irénée Grondin & fils ltée","Irénée Grondin & fils ltée",null,null,454,"Irénée Grondin & fils ltée"]
[null,null,null,"",null,null,455,"CAAF","Sciages GP inc.","Sciages GP inc.",null,null,455,"Sciages GP inc."]
[null,null,null,"",null,null,456,"CAAF","Mobilier Rustique (Beauce) inc.","Mobilier Rustique (Beauce) inc.",null,null,456,"Mobilier Rustique (Beauce) inc."]
[null,null,null,"",null,null,999,"CAAF","Ministère des Forêts, de la Faune et des Parcs","Ministère des Forêt, de la Faune et des Parcs",null,null,999,"Ministère des Forêts, de la Faune et des Parcs"]
[null,null,null,"",null,null,15198,"CAAF","Carrier Bégin","Carrier Bégin",null,null,15198,"Carrier Bégin"]
[null,null,null,"",null,null,15336,"CAAF","Hamel Clermond ltée","Hamel Clermond ltée",null,null,15336,"Hamel Clermond ltée"]
[null,null,null,"",null,null,19944,"CAAF","Mobilier Rustique (Beauce) inc.","Mobilier Rustique (Beauce) inc.",null,null,19944,"Mobilier Rustique (Beauce) inc."]
[null,null,null,"",null,null,457,"CAAF","Foresterie P. Belleville inc","Foresterie P. Belleville inc",null,null,457,"Foresterie P. Belleville inc"]
[null,null,null,""]
[null,null,null,""]
[null,null,null,""]
[null,null,null,""]
[null,null,null,""]
[null,null,null,""]
[null,null,null,""]
[null,null,null,""]
[null,null,null,""]
[null,null,null,""]
[null,null,null,""]
[null,null,null,""]
[null,null,null,""]
[null,null,null,""]
[null,null,null,""]
[null,null,null,""]
[null,null,null,""]
[null,null,null,""]
[null,null,null,""]
[null,null,null,""]
[null,null,null,""]
[null,null,null,""]
[null,null,null,""]
[null,null,null,""]
[null,null,null,""]
[null,null,null,""]
[null,null,null,""]
[null,null,null,{"$f":"IF(B259<>\"\",CONCATENATE(B259,\"_\",C259),\"\")","v":""}]
[null,null,null,""]
[null,null,null,""]
[null,null,null,""]
[null,null,null,""]
[null,null,null,""]
[null,null,null,""]
[null,null,null,""]
[null,null,null,""]
[null,null,null,""]
[null,null,null,""]
[null,null,null,""]
[null,null,null,""]
[null,null,null,""]
[null,null,null,""]
[null,null,null,""]
[null,null,null,""]
[null,null,null,""]
[null,null,null,""]
[null,null,null,""]
[null,null,null,""]
[null,null,null,""]
[null,null,null,""]
[null,null,null,""]
[null,null,null,""]
[null,null,null,""]
[null,null,null,""]
[null,null,null,""]
[null,null,null,""]
[null,null,null,""]
[null,null,null,""]
[null,null,null,""]
[null,null,null,""]
[null,null,null,""]
[null,null,null,""]
[null,null,null,""]
[null,null,null,""]
[null,null,null,""]
[null,null,null,""]
[null,null,null,""]
[null,null,null,""]
[null,null,null,""]
[null,null,null,""]
[null,null,null,""]
[null,null,null,""]
[null,null,null,""]
[null,null,null,""]
[null,null,null,""]
[null,null,null,""]
[null,null,null,""]
[null,null,null,""]
[null,null,null,""]
[null,null,null,""]
[null,null,null,""]
[null,null,null,""]
[null,null,null,""]
[null,null,null,""]
[null,null,null,""]
[null,null,null,""]
[null,null,null,""]
[null,null,null,""]
[null,null,null,""]
[null,null,null,""]
[null,null,null,""]
[null,null,null,{"$f":"IF(B323<>\"\",CONCATENATE(B323,\"_\",C323),\"\")","v":""}]
[null,null,null,""]
[null,null,null,""]
[null,null,null,""]
[null,null,null,""]
[null,null,null,""]
[null,null,null,""]
[null,null,null,""]
[null,null,null,""]
[null,null,null,""]
[null,null,null,""]
[null,null,null,""]
[null,null,null,""]
[null,null,null,""]
[null,null,null,""]
[null,null,null,""]
[null,null,null,""]
[null,null,null,""]
[null,null,null,""]
[null,null,null,""]
[null,null,null,""]
[null,null,null,""]
[null,null,null,""]
[null,null,null,""]
[null,null,null,""]